Transaction Number,Service - Fund ,Service  - Function ,Service - Cost Centre,Expense Type ,Expense Description,Supplier Name,Supplier Post Code (first 4 digits),Payment Date,Amount �
115297233,Streetsmart,Streetsmart,Waste - Disposal,Supplies and Services,Materials,1ST IMPRESSIONS SIGNS & GRAPHICS LTD,SN1 ,24/11/2023,794.00
114562235,Physical Support,Adults,Physical Support 65 and over,3rd Party Payments,Personal Budget - Domiciliary care,247 HOME CARE LTD,SN5 ,17/11/2023,"17,310.72"
114562235,Physical Support,Adults,Physical Support 65 and over,3rd Party Payments,Personal Budget - Domiciliary care,247 HOME CARE LTD,SN5 ,17/11/2023,"-12,910.80"
114562235,Physical Support,Adults,Physical Support 65 and over,3rd Party Payments,Personal Budget - Domiciliary care,247 HOME CARE LTD,SN5 ,17/11/2023,-776.16
114562235,Physical Support,Adults,Physical Support 65 and over,3rd Party Payments,Personal Budget - Domiciliary care,247 HOME CARE LTD,SN5 ,17/11/2023,"2,163.84"
114062233,Routes to Employment,"Education, Inclusion and Skills",Adult Learning,Supplies and Services,Materials,4IMPRINT.CO.UK,M32 ,13/11/2023,"1,482.97"
113642233,School Transport,"Education, Inclusion and Skills",Mainstream School Transport,Transport Costs,Home to School Transport,4K TRAVEL LTD,SN1 ,08/11/2023,"4,257.00"
115201331,Homelessness and Travellers,Housing Services,Private Sector Landlords,Transfer Payments,Payment of Costs,REDACTED PERSONAL DATA,SN3 ,24/11/2023,800.00
113857233,Responsive Repairs,Repairs,Responsive Repairs,3rd Party Payments,Contract Payments,ABBEY ELECTRICAL (SWINDON) LTD T/A ABBEY ELECTRICAL UK,SN6 ,10/11/2023,429.76
114239233,Early Years Block,Dedicated Schools Grant (DSG),Free Nursery Education Commissioning - three & four  year olds,3rd Party Payments,Contracts - Child Care,ABBEY FARM EDUCATE TOGETHER PRIMARY,SN25,15/11/2023,"6,625.32"
112737234,Streetsmart,Streetsmart,Waterside Fleet Workshops,Supplies and Services,Equipment,ABBEY FIRE PROTECTION LTD,SN15,03/11/2023,448.75
114481257,High Needs Block,Dedicated Schools Grant (DSG),SEN Resourcing Assessment Panel,3rd Party Payments,Top up funding - Academies and Free Schools Pre 16,ABBEY MEADS COMMUNITY PRIMARY SCHOOL,SN25,15/11/2023,"5,074.59"
114520233,Physical Support,Adults,Physical Support 65 and over,3rd Party Payments,Personal Budget - Domiciliary care,ABICARE SERVICES LTD,BS32,15/11/2023,"1,059.84"
114520233,Physical Support,Adults,Physical Support 18 - 64,3rd Party Payments,Personal Budget - Domiciliary care,ABICARE SERVICES LTD,BS32,15/11/2023,"2,603.52"
114520233,Physical Support,Adults,Physical Support 18 - 64,3rd Party Payments,Personal Budget - Domiciliary care,ABICARE SERVICES LTD,BS32,15/11/2023,-8.40
114520233,Mental Health,Adults,Mental Health 65 and over,3rd Party Payments,Personal Budget - Domiciliary care,ABICARE SERVICES LTD,BS32,15/11/2023,"1,290.24"
114520233,Physical Support,Adults,Physical Support 18 - 64,3rd Party Payments,Personal Budget - Domiciliary care,ABICARE SERVICES LTD,BS32,15/11/2023,69.12
114520233,Physical Support,Adults,Physical Support 65 and over,3rd Party Payments,Personal Budget - Domiciliary care,ABICARE SERVICES LTD,BS32,15/11/2023,-128.80
114520233,Physical Support,Adults,Physical Support 18 - 64,3rd Party Payments,Personal Budget - Domiciliary care,ABICARE SERVICES LTD,BS32,15/11/2023,-286.04
114520233,Mental Health,Adults,Mental Health 65 and over,3rd Party Payments,Personal Budget - Domiciliary care,ABICARE SERVICES LTD,BS32,15/11/2023,-156.80
114525233,Physical Support,Adults,Physical Support 18 - 64,3rd Party Payments,Personal Budget - Domiciliary care,ABICARE SERVICES LTD (LIVE IN),SP2 ,15/11/2023,"-9,768.64"
114525233,Mental Health,Adults,Mental Health 65 and over,3rd Party Payments,Personal Budget - Domiciliary care,ABICARE SERVICES LTD (LIVE IN),SP2 ,15/11/2023,"14,192.64"
114525233,Physical Support,Adults,Physical Support 65 and over,3rd Party Payments,Personal Budget - Domiciliary care,ABICARE SERVICES LTD (LIVE IN),SP2 ,15/11/2023,"-9,392.64"
114525233,Physical Support,Adults,Physical Support 65 and over,3rd Party Payments,Personal Budget - Domiciliary care,ABICARE SERVICES LTD (LIVE IN),SP2 ,15/11/2023,"14,192.64"
114525233,Physical Support,Adults,Physical Support 18 - 64,3rd Party Payments,Personal Budget - Domiciliary care,ABICARE SERVICES LTD (LIVE IN),SP2 ,15/11/2023,"14,192.64"
114525233,Physical Support,Adults,Physical Support 18 - 64,3rd Party Payments,Personal Budget - Domiciliary care,ABICARE SERVICES LTD (LIVE IN),SP2 ,15/11/2023,"-5,153.28"
114525233,Mental Health,Adults,Mental Health 65 and over,3rd Party Payments,Personal Budget - Domiciliary care,ABICARE SERVICES LTD (LIVE IN),SP2 ,15/11/2023,"-9,768.64"
114525233,Physical Support,Adults,Physical Support 18 - 64,3rd Party Payments,Personal Budget - Domiciliary care,ABICARE SERVICES LTD (LIVE IN),SP2 ,15/11/2023,"9,953.28"
114239234,Early Years Block,Dedicated Schools Grant (DSG),Free Nursery Education Commissioning - three & four  year olds,3rd Party Payments,Contracts - Child Care,REDACTED PERSONAL DATA,SN2 ,15/11/2023,686.00
113596233,Disabled Children,Children & Families,Occupational Therapy - Children,Supplies and Services,Equipment,ACCESS DIRECT SERVICES LIMITED,SN3 ,08/11/2023,75.00
113596233,Disabled Children,Children & Families,Occupational Therapy - Children,Supplies and Services,Equipment,ACCESS DIRECT SERVICES LIMITED,SN3 ,08/11/2023,"1,125.00"
115513233,Heritage,Culture,SMAG relocation,Capital,Contractor Payments,ACCESS DISPLAYS LTD,SN4 ,29/11/2023,"21,910.00"
115513233,Museums & Heritage,Culture & Heritage,Swindon Museum & Art Gallery,Supplies and Services,Equipment,ACCESS DISPLAYS LTD,SN4 ,29/11/2023,"12,578.00"
112738233,Streetsmart,Streetsmart,Waterside Fleet Hires,Transport Costs,Vehicle Hire / Contract,ACCESS HIRE NATIONWIDE,WF6 ,03/11/2023,"1,671.79"
115201389,Homelessness and Travellers,Housing Services,Private Sector Landlords,Transfer Payments,Payment of Costs,REDACTED PERSONAL DATA,SN8 ,24/11/2023,650.00
115201351,Homelessness and Travellers,Housing Services,Private Sector Landlords,Transfer Payments,Payment of Costs,REDACTED PERSONAL DATA,SN8 ,24/11/2023,700.00
113997233,Social Care,Children & Families,Children's Resource and Home Finding Team,3rd Party Payments,Independent Fostering Agency Placements,ACTION FOR CHILDREN,WD18,10/11/2023,"1,907.64"
114013233,Social Care,Children & Families,Children's Resource and Home Finding Team,3rd Party Payments,Independent Fostering Agency Placements,ACTION FOR CHILDREN,WD18,10/11/2023,"3,843.07"
113993233,Social Care,Children & Families,Children's Resource and Home Finding Team,3rd Party Payments,Independent Fostering Agency Placements,ACTION FOR CHILDREN,WD18,10/11/2023,"3,068.70"
114001233,Social Care,Children & Families,Children's Resource and Home Finding Team,3rd Party Payments,Independent Fostering Agency Placements,ACTION FOR CHILDREN,WD18,10/11/2023,"3,494.01"
114003233,Social Care,Children & Families,Children's Resource and Home Finding Team,3rd Party Payments,Independent Fostering Agency Placements,ACTION FOR CHILDREN,WD18,10/11/2023,"1,882.02"
114005233,Social Care,Children & Families,Children's Resource and Home Finding Team,3rd Party Payments,Independent Fostering Agency Placements,ACTION FOR CHILDREN,WD18,10/11/2023,"3,542.10"
113995233,Social Care,Children & Families,Children's Resource and Home Finding Team,3rd Party Payments,Independent Fostering Agency Placements,ACTION FOR CHILDREN,WD18,10/11/2023,"3,494.01"
114015233,Social Care,Children & Families,Children's Resource and Home Finding Team,3rd Party Payments,Independent Fostering Agency Placements,ACTION FOR CHILDREN,WD18,10/11/2023,"1,080.75"
114011233,Social Care,Children & Families,Children's Resource and Home Finding Team,3rd Party Payments,Independent Fostering Agency Placements,ACTION FOR CHILDREN,WD18,10/11/2023,"3,542.10"
114007233,Social Care,Children & Families,Children's Resource and Home Finding Team,3rd Party Payments,Independent Fostering Agency Placements,ACTION FOR CHILDREN,WD18,10/11/2023,"3,843.07"
113999233,Social Care,Children & Families,Children's Resource and Home Finding Team,3rd Party Payments,Independent Fostering Agency Placements,ACTION FOR CHILDREN,WD18,10/11/2023,"3,072.90"
114009233,Social Care,Children & Families,Children's Resource and Home Finding Team,3rd Party Payments,Independent Fostering Agency Placements,ACTION FOR CHILDREN,WD18,10/11/2023,"1,080.75"
114481315,High Needs Block,Dedicated Schools Grant (DSG),SEN Resourcing Assessment Panel,3rd Party Payments,Top up funding - Academies and Free Schools Post 16,ACTIVATE LEARNING EDUCATION TRUST,OX1 ,15/11/2023,"2,021.08"
114481291,High Needs Block,Dedicated Schools Grant (DSG),SEN Resourcing Assessment Panel,3rd Party Payments,Top up funding - Academies and Free Schools Pre 16,ACTIVATE LEARNING EDUCATION TRUST,OX1 ,15/11/2023,"5,587.50"
115203326,Learning Disabilities,Adults,Learning Disability 18 - 64,Income,Client Contribution - Personal Budget - DP,REDACTED PERSONAL DATA,SN4 ,24/11/2023,-49.00
115203326,Learning Disabilities,Adults,Learning Disability 18 - 64,Transfer Payments,Personal Budget - Direct Payments - Domiciliary Care,REDACTED PERSONAL DATA,SN4 ,24/11/2023,"1,237.28"
115203312,Learning Disabilities,Adults,Learning Disability 18 - 64,Income,Client Contribution - Personal Budget - DP,REDACTED PERSONAL DATA,SN3 ,24/11/2023,-35.16
115203312,Learning Disabilities,Adults,Learning Disability 18 - 64,Income,Client Contribution - Personal Budget - DP,REDACTED PERSONAL DATA,SN3 ,24/11/2023,-156.00
115203312,Learning Disabilities,Adults,Learning Disability 18 - 64,Transfer Payments,Personal Budget - Direct Payments - Domiciliary Care,REDACTED PERSONAL DATA,SN3 ,24/11/2023,410.88
115203312,Learning Disabilities,Adults,Learning Disability 18 - 64,Transfer Payments,Personal Budget - Direct Payments - Domiciliary Care,REDACTED PERSONAL DATA,SN3 ,24/11/2023,"1,823.36"
115201350,Homelessness and Travellers,Housing Services,Private Sector Landlords,Transfer Payments,Payment of Costs,ADVANCE HOUSING & SUPPORT LTD,OX28,24/11/2023,"1,074.00"
Corporate Card Transaction,Homelessness and Travellers,Housing Services,Homelessness Prevention,Transfer Payments,Payment of Costs,Afan Valley Es Booking,,09/11/2023, 757.00 
Corporate Card Transaction,Homelessness and Travellers,Housing Services,Bed and Breakfast Accommodation,Transfer Payments,Payment of Costs,Afan Valley Es Booking,,23/11/2023, 660.00 
Corporate Card Transaction,Homelessness and Travellers,Housing Services,Bed and Breakfast Accommodation,Transfer Payments,Payment of Costs,Afan Valley Es Booking,,20/11/2023, 750.00 
112939233,Social Care,Children & Families,Children's Resource and Home Finding Team,3rd Party Payments,Independent Fostering Agency Placements,AFFINITY FOSTERING SERVICES LTD,CM4 ,03/11/2023,"3,690.00"
112939235,Social Care,Children & Families,Children's Resource and Home Finding Team,3rd Party Payments,Independent Fostering Agency Placements,AFFINITY FOSTERING SERVICES LTD,CM4 ,03/11/2023,"5,464.20"
112939234,Social Care,Children & Families,Children's Resource and Home Finding Team,3rd Party Payments,Independent Fostering Agency Placements,AFFINITY FOSTERING SERVICES LTD,CM4 ,03/11/2023,"3,690.00"
115707233,Landscaping & Open Space,Culture & Heritage & Art,Moredon Recreation - Multi Sports Hub,Capital,Contractor Payments,AGGREGATE INDUSTRIES UK LTD T/A SPADEOAK,HP10,29/11/2023,"195,048.59"
115127233,Learning Disabilities,Adults,Learning Disability 65 and over,Income,Client Contribution - Supported Living,AGINCARE ENABLE LTD,DT5 ,22/11/2023,-141.44
115127233,Learning Disabilities,Adults,Learning Disability 65 and over,3rd Party Payments,Supported Lodgings (Childrens)/Supported Living (Adults),AGINCARE ENABLE LTD,DT5 ,22/11/2023,"6,099.00"
115127233,Learning Disabilities,Adults,Learning Disability 65 and over,3rd Party Payments,Supported Lodgings (Childrens)/Supported Living (Adults),AGINCARE ENABLE LTD,DT5 ,22/11/2023,"2,573.48"
115127233,Learning Disabilities,Adults,Learning Disability 65 and over,Income,Client Contribution - Supported Living,AGINCARE ENABLE LTD,DT5 ,22/11/2023,-335.16
114932233,Physical Support,Adults,Physical Support 65 and over,3rd Party Payments,Residential Care,AGINCARE LTD,DT5 ,22/11/2023,"3,780.00"
114932233,Physical Support,Adults,Physical Support 65 and over,Income,Client Contribution - Residential,AGINCARE LTD,DT5 ,22/11/2023,"-1,231.12"
Corporate Card Transaction,Landlord Services,Supervision & Management,Estate Management Team,Premises Costs,Non-contract Cleaning,Airbnb * Hmwmmzjszq,,02/11/2023, 550.40 
113408234,Travel,Highways & Transport,Public Transport,3rd Party Payments,Contract Payments,AKCESS CIC,SN2 ,08/11/2023,"15,023.18"
114829234,School Transport,"Education, Inclusion and Skills",Special Educational Needs Transport,Transport Costs,Home to School Transport,AKCESS CIC,SN2 ,20/11/2023,"2,256.25"
114829234,School Transport,"Education, Inclusion and Skills",Mainstream School Transport,Transport Costs,Home to School Transport,AKCESS CIC,SN2 ,20/11/2023,"2,177.08"
114220233,Streetsmart,Streetsmart,Waste - Processing,Supplies and Services,Repairs & Maintenance,ALBUTT LTD,GL20,15/11/2023,867.00
113816233,Learning Disabilities,Adults,Learning Disability 18 - 64,3rd Party Payments,Supported Accommodation Scheme,REDACTED PERSONAL DATA,SN2 ,22/11/2023,"2,280.00"
114245233,Disabled Children,Children & Families,DCT Daytime Short Breaks,Transfer Payments,Personal Budget - Direct Payments - Other,REDACTED PERSONAL DATA,SN1 ,15/11/2023,661.50
114628239,Disabled Children,Children & Families,DCT Daytime Short Breaks,Transfer Payments,Personal Budget - Direct Payments - Other,REDACTED PERSONAL DATA,SN1 ,17/11/2023,558.90
115203346,Learning Disabilities,Adults,Learning Disability 18 - 64,Income,Client Contribution - Personal Budget - DP,REDACTED PERSONAL DATA,SN25,24/11/2023,-19.76
115203346,Learning Disabilities,Adults,Learning Disability 18 - 64,Transfer Payments,Personal Budget - Direct Payments - Domiciliary Care,REDACTED PERSONAL DATA,SN25,24/11/2023,"1,400.08"
115203346,Learning Disabilities,Adults,Learning Disability 18 - 64,Transfer Payments,Personal Budget - Direct Payments - Domiciliary Care,REDACTED PERSONAL DATA,SN25,24/11/2023,68.48
115203346,Learning Disabilities,Adults,Learning Disability 18 - 64,Income,Client Contribution - Personal Budget - DP,REDACTED PERSONAL DATA,SN25,24/11/2023,-403.64
115203649,Learning Disabilities,Adults,Learning Disability 18 - 64,Transfer Payments,Personal Budget - Direct Payments - Domiciliary Care,REDACTED PERSONAL DATA,GL53,24/11/2023,"44,816.20"
115203649,Learning Disabilities,Adults,Learning Disability 18 - 64,Transfer Payments,Personal Budget - Direct Payments - Other,REDACTED PERSONAL DATA,GL53,24/11/2023,"16,800.00"
115203649,Learning Disabilities,Adults,Learning Disability 18 - 64,Transfer Payments,Personal Budget - Direct Payments - Domiciliary Care,REDACTED PERSONAL DATA,GL53,24/11/2023,"3,007.76"
114239236,Early Years Block,Dedicated Schools Grant (DSG),Free Nursery Education Commissioning - two year olds,3rd Party Payments,Contracts - Child Care,ALFRESCO CHILDCARE,SN6 ,15/11/2023,864.64
114239237,Early Years Block,Dedicated Schools Grant (DSG),Free Nursery Education Commissioning - three & four  year olds,3rd Party Payments,Contracts - Child Care,ALFRESCO CHILDCARE,SN6 ,15/11/2023,"6,840.40"
113838233,Learning Disabilities,Adults,Learning Disability 18 - 64,3rd Party Payments,Supported Accommodation Scheme,REDACTED PERSONAL DATA,SN1 ,22/11/2023,"2,666.00"
115203607,Learning Disabilities,Adults,Learning Disability 18 - 64,Transfer Payments,Personal Budget - Direct Payments - Other,REDACTED PERSONAL DATA,SN4 ,24/11/2023,118.80
115203607,Learning Disabilities,Adults,Learning Disability 18 - 64,Transfer Payments,Personal Budget - Direct Payments - Domiciliary Care,REDACTED PERSONAL DATA,SN4 ,24/11/2023,197.52
115203607,Learning Disabilities,Adults,Learning Disability 18 - 64,Transfer Payments,Personal Budget - Direct Payments - Domiciliary Care,REDACTED PERSONAL DATA,SN4 ,24/11/2023,"2,378.80"
115203607,Learning Disabilities,Adults,Learning Disability 18 - 64,Transfer Payments,Personal Budget - Direct Payments - Domiciliary Care,REDACTED PERSONAL DATA,SN4 ,24/11/2023,469.50
115203607,Learning Disabilities,Adults,Learning Disability 18 - 64,Transfer Payments,Personal Budget - Direct Payments - Domiciliary Care,REDACTED PERSONAL DATA,SN4 ,24/11/2023,"2,817.60"
115203607,Learning Disabilities,Adults,Learning Disability 18 - 64,Transfer Payments,Personal Budget - Direct Payments - Other,REDACTED PERSONAL DATA,SN4 ,24/11/2023,151.20
115203607,Learning Disabilities,Adults,Learning Disability 18 - 64,Transfer Payments,Personal Budget - Direct Payments - Other,REDACTED PERSONAL DATA,SN4 ,24/11/2023,157.92
115203607,Learning Disabilities,Adults,Learning Disability 18 - 64,Transfer Payments,Personal Budget - Direct Payments - Domiciliary Care,REDACTED PERSONAL DATA,SN4 ,24/11/2023,"1,448.48"
113840233,Learning Disabilities,Adults,Learning Disability 18 - 64,3rd Party Payments,Supported Accommodation Scheme,REDACTED PERSONAL DATA,SN2 ,22/11/2023,"2,226.00"
113840233,Learning Disabilities,Adults,Learning Disability 18 - 64,3rd Party Payments,Supported Accommodation Scheme,REDACTED PERSONAL DATA,SN2 ,22/11/2023,"1,840.00"
113840233,Learning Disabilities,Adults,Learning Disability 18 - 64,3rd Party Payments,Supported Accommodation Scheme,REDACTED PERSONAL DATA,SN2 ,22/11/2023,"1,866.00"
115203273,Learning Disabilities,Adults,Learning Disability 18 - 64,Income,Client Contribution - Personal Budget - DP,REDACTED PERSONAL DATA,SN5 ,24/11/2023,-130.08
115203273,Learning Disabilities,Adults,Learning Disability 18 - 64,Transfer Payments,Personal Budget - Direct Payments - Other,REDACTED PERSONAL DATA,SN5 ,24/11/2023,23.80
115203273,Learning Disabilities,Adults,Learning Disability 18 - 64,Income,Client Contribution - Personal Budget - DP,REDACTED PERSONAL DATA,SN5 ,24/11/2023,-142.20
115203273,Learning Disabilities,Adults,Learning Disability 18 - 64,Income,Client Contribution - Personal Budget - DP,REDACTED PERSONAL DATA,SN5 ,24/11/2023,-1.08
115203273,Learning Disabilities,Adults,Learning Disability 18 - 64,Transfer Payments,Personal Budget - Direct Payments - Domiciliary Care,REDACTED PERSONAL DATA,SN5 ,24/11/2023,"3,079.68"
115203273,Learning Disabilities,Adults,Learning Disability 18 - 64,Income,Client Contribution - Personal Budget - DP,REDACTED PERSONAL DATA,SN5 ,24/11/2023,-169.04
115203273,Learning Disabilities,Adults,Learning Disability 18 - 64,Transfer Payments,Personal Budget - Direct Payments - Domiciliary Care,REDACTED PERSONAL DATA,SN5 ,24/11/2023,"3,660.00"
115203273,Learning Disabilities,Adults,Learning Disability 18 - 64,Transfer Payments,Personal Budget - Direct Payments - Domiciliary Care,REDACTED PERSONAL DATA,SN5 ,24/11/2023,"2,817.36"
114239238,Early Years Block,Dedicated Schools Grant (DSG),Free Nursery Education Commissioning - three & four  year olds,3rd Party Payments,Contracts - Child Care,REDACTED PERSONAL DATA,SN1 ,15/11/2023,588.00
114239239,Early Years Block,Dedicated Schools Grant (DSG),Free Nursery Education Commissioning - three & four  year olds,3rd Party Payments,Contracts - Child Care,REDACTED PERSONAL DATA,SN1 ,15/11/2023,"1,215.20"
115203311,Learning Disabilities,Adults,Learning Disability 18 - 64,Transfer Payments,Personal Budget - Direct Payments - Domiciliary Care,REDACTED PERSONAL DATA,SN5 ,24/11/2023,39.20
115203311,Learning Disabilities,Adults,Learning Disability 18 - 64,Transfer Payments,Personal Budget - Direct Payments - Domiciliary Care,REDACTED PERSONAL DATA,SN5 ,24/11/2023,"3,628.80"
115203311,Learning Disabilities,Adults,Learning Disability 18 - 64,Income,Client Contribution - Personal Budget - DP,REDACTED PERSONAL DATA,SN5 ,24/11/2023,-1.36
115203311,Learning Disabilities,Adults,Learning Disability 18 - 64,Income,Client Contribution - Personal Budget - DP,REDACTED PERSONAL DATA,SN5 ,24/11/2023,-127.04
113667233,Highways & Transport,Highways & Transport,Rights of Way (ROW),Supplies and Services,Repairs & Maintenance,ALLBUILD BUILDING & LANDSCAPING SERVICES,SN25,10/11/2023,960.00
112398233,Environmental & Regulatory,Highways & Transport,Shaw Farm Landfill Site,Supplies and Services,Testing / Inspection,ALLBUILD BUILDING & LANDSCAPING SERVICES,SN25,03/11/2023,425.00
113686233,Local Transport Plan Funded,Strategic Planning and Highways,Rights of way Improvement Plan,Capital,Contractor Payments,ALLBUILD BUILDING & LANDSCAPING SERVICES,SN25,10/11/2023,"2,250.00"
113668233,Highways & Transport,Highways & Transport,Rights of Way (ROW),Supplies and Services,Repairs & Maintenance,ALLBUILD BUILDING & LANDSCAPING SERVICES,SN25,10/11/2023,"1,050.00"
112308244,Streetsmart,Streetsmart,Waterside Fleet Workshops,Supplies and Services,Equipment,ALLIANCE AUTOMOTIVE UK T/A BRAYMARC,BD4 ,01/11/2023,915.00
115506233,Landlord Services,Supervision & Management,Estate Management Team,Supplies and Services,Contracts,ALLPAY-NET LIMITED,HR1 ,29/11/2023,"1,948.07"
113069233,Treasury,Corporate Finance,Treasury,Supplies and Services,Bank Charges,ALLPAY-NET LIMITED,HR1 ,06/11/2023,"1,123.53"
111752234,Disabled Children,Children & Families,DCT Daytime Short Breaks,3rd Party Payments,Respite Care,ALPHA24 HEALTHCARE LTD,EC3A,01/11/2023,933.75
111753234,Disabled Children,Children & Families,DCT Daytime Short Breaks,3rd Party Payments,Respite Care,ALPHA24 HEALTHCARE LTD,EC3A,01/11/2023,652.50
111754262,Disabled Children,Children & Families,DCT Daytime Short Breaks,3rd Party Payments,Respite Care,ALPHA24 HEALTHCARE LTD,EC3A,01/11/2023,652.50
111803233,Disabled Children,Children & Families,DCT Daytime Short Breaks,3rd Party Payments,Respite Care,ALPHA24 HEALTHCARE LTD,EC3A,01/11/2023,652.50
111759233,Disabled Children,Children & Families,DCT Daytime Short Breaks,3rd Party Payments,Respite Care,ALPHA24 HEALTHCARE LTD,EC3A,01/11/2023,"1,305.00"
111721233,Disabled Children,Children & Families,DCT Daytime Short Breaks,3rd Party Payments,Respite Care,ALPHA24 HEALTHCARE LTD,EC3A,01/11/2023,978.75
112374233,Social Care,Children & Families,Looked After Children Service,3rd Party Payments,Personal Needs,ALPHA24 HEALTHCARE LTD,EC3A,01/11/2023,"1,050.00"
112373233,Social Care,Children & Families,Looked After Children Service,3rd Party Payments,Personal Needs,ALPHA24 HEALTHCARE LTD,EC3A,01/11/2023,"1,350.00"
115014233,Social Care,Children & Families,Legal Fees,Supplies and Services,Fees,ALPHABIOLABS,WA5 ,22/11/2023,419.00
114991233,Physical Support,Adults,Physical Support 65 and over,3rd Party Payments,Nursing Care,ALTOGETHER CARE WEYMOUTH CARE HOME,DT4 ,22/11/2023,"4,023.28"
114991233,Physical Support,Adults,Physical Support 65 and over,Income,Client Contribution - Nursing,ALTOGETHER CARE WEYMOUTH CARE HOME,DT4 ,22/11/2023,-691.20
111705233,"Volutary Sector, Equipment and Carers",Adults,Voluntary Sector Adults,3rd Party Payments,Contracts - Social Care,ALZHEIMERS SOCIETY,PL6 ,01/11/2023,"2,433.00"
111935233,Town Centre,"Economy, Growth and Place",Uk shared Properity Fund,Supplies and Services,Services,ALZHEIMERS SOCIETY,PL6 ,01/11/2023,"5,833.33"
114079234,"Volutary Sector, Equipment and Carers",Adults,Voluntary Sector Adults,3rd Party Payments,Contracts - Social Care,ALZHEIMERS SOCIETY,PL6 ,13/11/2023,"2,433.00"
115203276,Learning Disabilities,Adults,Learning Disability 18 - 64,Transfer Payments,Personal Budget - Direct Payments - Domiciliary Care,REDACTED PERSONAL DATA,SN3 ,24/11/2023,"1,782.66"
115203276,Learning Disabilities,Adults,Learning Disability 18 - 64,Transfer Payments,Personal Budget - Direct Payments - Domiciliary Care,REDACTED PERSONAL DATA,SN3 ,24/11/2023,81.40
115240242,Social Care,Children & Families,Children's Resource and Home Finding Team,3rd Party Payments,Semi Independent,AMEGREEN CHILDREN'S SERVICES LTD,RG7 ,24/11/2023,"12,857.10"
113777233,Responsive Repairs,Repairs,Responsive Repairs,Premises Costs,Repairs - Buildings,AMELIO UTILITIES(GLOU) LTD T/A 3 COUNTIES DRAIN SERVICES,GL1 ,10/11/2023,493.74
113777233,Responsive Repairs,Repairs,Responsive Repairs,Premises Costs,Repairs - Buildings,AMELIO UTILITIES(GLOU) LTD T/A 3 COUNTIES DRAIN SERVICES,GL1 ,10/11/2023,"1,849.59"
113777233,Responsive Repairs,Repairs,Responsive Repairs,Premises Costs,Repairs - Buildings,AMELIO UTILITIES(GLOU) LTD T/A 3 COUNTIES DRAIN SERVICES,GL1 ,10/11/2023,351.49
113777233,Responsive Repairs,Repairs,Responsive Repairs,Premises Costs,Repairs - Buildings,AMELIO UTILITIES(GLOU) LTD T/A 3 COUNTIES DRAIN SERVICES,GL1 ,10/11/2023,353.14
113777233,Responsive Repairs,Repairs,Responsive Repairs,Premises Costs,Repairs - Buildings,AMELIO UTILITIES(GLOU) LTD T/A 3 COUNTIES DRAIN SERVICES,GL1 ,10/11/2023,176.57
113777233,Responsive Repairs,Repairs,Responsive Repairs,Premises Costs,Repairs - Buildings,AMELIO UTILITIES(GLOU) LTD T/A 3 COUNTIES DRAIN SERVICES,GL1 ,10/11/2023,281.19
113777233,Responsive Repairs,Repairs,Responsive Repairs,Premises Costs,Repairs - Buildings,AMELIO UTILITIES(GLOU) LTD T/A 3 COUNTIES DRAIN SERVICES,GL1 ,10/11/2023,904.08
113777233,Responsive Repairs,Repairs,Responsive Repairs,Premises Costs,Repairs - Buildings,AMELIO UTILITIES(GLOU) LTD T/A 3 COUNTIES DRAIN SERVICES,GL1 ,10/11/2023,140.60
113777233,Responsive Repairs,Repairs,Responsive Repairs,Premises Costs,Repairs - Buildings,AMELIO UTILITIES(GLOU) LTD T/A 3 COUNTIES DRAIN SERVICES,GL1 ,10/11/2023,198.67
113512233,Corporate,Corporate Finance,Corporate Financial Management,Supplies and Services,Consultants,AMELIORATE CONSULTANCY LTD,BS37,08/11/2023,"12,950.00"
112595233,Highways & Transport,Highways & Transport,Project Delivery,Supplies and Services,Services,AMEY OW LTD,L19 ,03/11/2023,"53,136.75"
113714233,Town Centre,"Economy, Growth and Place",Fleming Way Improvement Scheme,Capital,Professional Fees,AMEY OW LTD,L19 ,10/11/2023,"23,174.02"
114557243,Social Care,Children & Families,Children's Resource and Home Finding Team,3rd Party Payments,Independent Fostering Agency Placements,AMICUS FOSTER CARE,BS2 ,15/11/2023,"5,256.05"
114256233,Disabled Children,Children & Families,DCT Daytime Short Breaks,Transfer Payments,Personal Budget - Direct Payments - Other,REDACTED PERSONAL DATA,SN3 ,15/11/2023,703.00
114257233,Disabled Children,Children & Families,DCT Daytime Short Breaks,Transfer Payments,Personal Budget - Direct Payments - Other,REDACTED PERSONAL DATA,SN3 ,15/11/2023,"8,506.00"
115136238,Mental Health,Adults,Mental Health 18-64,Transfer Payments,Personal Budget - Direct Payments - Domiciliary Care,REDACTED PERSONAL DATA,SN25,24/11/2023,570.16
114239241,Early Years Block,Dedicated Schools Grant (DSG),Free Nursery Education Commissioning - three & four  year olds,3rd Party Payments,Contracts - Child Care,REDACTED PERSONAL DATA,SN25,15/11/2023,"1,176.00"
Corporate Card Transaction,Homelessness and Travellers,Housing Services,Bed and Breakfast Accommodation,Transfer Payments,Payment of Costs,Amznmktplace,,24/11/2023," 1,551.79 "
115591236,Learning Disabilities,Adults,Learning Disability 18 - 64,Supplies and Services,Services,ANGELS CARE AT HOME LIMITED,SN3 ,29/11/2023,709.12
115591235,Learning Disabilities,Adults,Learning Disability 18 - 64,Supplies and Services,Services,ANGELS CARE AT HOME LIMITED,SN3 ,29/11/2023,709.12
115201342,Homelessness and Travellers,Housing Services,Private Sector Landlords,Transfer Payments,Payment of Costs,ANGELVIEW PROPERTIES LTD,ALBO,24/11/2023,590.00
115546234,Planned Maintenance Programme,HRA Capital Financing,Windows,Capital,Contractor Payments,ANGLIAN BUILDING PRODUCTS LIMITED,NR6 ,29/11/2023,"7,658.76"
114239242,Early Years Block,Dedicated Schools Grant (DSG),Free Nursery Education Commissioning - three & four  year olds,3rd Party Payments,Contracts - Child Care,REDACTED PERSONAL DATA,SN1 ,15/11/2023,588.00
115203344,Physical Support,Adults,Physical Support 18 - 64,Transfer Payments,Personal Budget - Direct Payments - Domiciliary Care,REDACTED PERSONAL DATA,SN25,24/11/2023,376.00
115203344,Physical Support,Adults,Physical Support 18 - 64,Transfer Payments,Personal Budget - Direct Payments - Domiciliary Care,REDACTED PERSONAL DATA,SN25,24/11/2023,24.80
115203344,Physical Support,Adults,Physical Support 18 - 64,Transfer Payments,Personal Budget - Direct Payments - Domiciliary Care,REDACTED PERSONAL DATA,SN25,24/11/2023,171.20
115203344,Physical Support,Adults,Physical Support 18 - 64,Transfer Payments,Personal Budget - Direct Payments - Domiciliary Care,REDACTED PERSONAL DATA,SN25,24/11/2023,732.60
115203344,Physical Support,Adults,Physical Support 18 - 64,Transfer Payments,Personal Budget - Direct Payments - Domiciliary Care,REDACTED PERSONAL DATA,SN25,24/11/2023,"1,172.16"
113748233,Supported Employment,Housing Services,Community Meals,Supplies and Services,Food,APETITO LIMITED,BA14,10/11/2023,670.82
114019237,Responsive Repairs,Repairs,Responsive Repairs,3rd Party Payments,Contract Payments,APEX SCAFFOLDING SERVICES,SN2 ,10/11/2023,60.00
112495246,Responsive Repairs,Repairs,Responsive Repairs,3rd Party Payments,Contract Payments,APEX SCAFFOLDING SERVICES,SN2 ,03/11/2023,450.00
112712251,Responsive Repairs,Repairs,Responsive Repairs,3rd Party Payments,Contract Payments,APEX SCAFFOLDING SERVICES,SN2 ,03/11/2023,432.00
112495247,Responsive Repairs,Repairs,Responsive Repairs,3rd Party Payments,Contract Payments,APEX SCAFFOLDING SERVICES,SN2 ,03/11/2023,432.00
112495245,Responsive Repairs,Repairs,Responsive Repairs,3rd Party Payments,Contract Payments,APEX SCAFFOLDING SERVICES,SN2 ,03/11/2023,864.00
112495248,Responsive Repairs,Repairs,Responsive Repairs,3rd Party Payments,Contract Payments,APEX SCAFFOLDING SERVICES,SN2 ,03/11/2023,432.00
112712249,Responsive Repairs,Repairs,Responsive Repairs,3rd Party Payments,Contract Payments,APEX SCAFFOLDING SERVICES,SN2 ,03/11/2023,864.00
114393233,Adults - Staffing and Supporting People,Adults,ASC Senior Management,Supplies and Services,Design & Printing Costs,APOGEE CORPORATION LIMITED,ME16,15/11/2023,"2,948.43"
112995233,Streetsmart,Streetsmart,StreetSmart Contracts & Strategic Planning,Supplies and Services,Services,APOGEE CORPORATION LIMITED,ME16,06/11/2023,"49,578.55"
113811233,,,Balance Sheet,Balance Sheet & Recharge,Resources Recharges,APOGEE CORPORATION LIMITED,ME16,10/11/2023,"15,095.86"
114034233,HRA Overheads,Supervision & Management,Admin / Management General,Income,Grants - Government Organisations,APOGEE CORPORATION LIMITED,ME16,13/11/2023,"2,019.80"
112521233,,,Balance Sheet,Balance Sheet & Recharge,Resources Recharges,APOGEE CORPORATION LIMITED,ME16,03/11/2023,"10,503.55"
112085233,Learning Disabilities,Adults,Learning Disability 18 - 64,3rd Party Payments,Residential Care,APPLEFORD LTD T/A DANESWOOD,BS25,01/11/2023,"1,572.01"
114943233,Learning Disabilities,Adults,Learning Disability 18 - 64,Income,Client Contribution - Residential,APPLEFORD LTD T/A DANESWOOD,BS25,22/11/2023,-438.80
114943233,Learning Disabilities,Adults,Learning Disability 18 - 64,3rd Party Payments,Residential Care,APPLEFORD LTD T/A DANESWOOD,BS25,22/11/2023,"22,008.12"
113799233,Adults - Staffing and Supporting People,Adults,Blue Badges,Supplies and Services,Materials,APS GROUP,SK3 ,10/11/2023,"1,200.86"
115248233,Property Estates,Property,Borough Farms,Premises Costs,Repairs - Buildings,AQUA SOLVE WATER MANAGEMENT,OX44,24/11/2023,"4,285.00"
112931233,Learning Disabilities,Adults,Firethorn Close,Premises Costs,Contract Cleaning,AQUATRONIC GROUP MANAGEMENT PLC,CO6 ,03/11/2023,655.00
114865233,Early Years Block,Dedicated Schools Grant (DSG),Free Nursery Education Commissioning - three & four  year olds,3rd Party Payments,Contracts - Child Care,REDACTED PERSONAL DATA,SN2 ,22/11/2023,"7,980.00"
114831233,High Needs Block,Dedicated Schools Grant (DSG),SEN Resourcing Assessment Panel,3rd Party Payments,Top up funding - Maintained providers Pre 16,REDACTED PERSONAL DATA,SN2 ,22/11/2023,"7,980.00"
115035233,Planned Maintenance Programme,HRA Capital Financing,Exceptional Extensive,Capital,Contractor Payments,ARCADIS CONSULTING (UK) LTD,EC3M,22/11/2023,"3,894.37"
115035233,Planned Maintenance Programme,HRA Capital Financing,Exceptional Extensive,Capital,Contractor Payments,ARCADIS CONSULTING (UK) LTD,EC3M,22/11/2023,"11,189.06"
115035233,Planned Maintenance Programme,HRA Capital Financing,Exceptional Extensive,Capital,Contractor Payments,ARCADIS CONSULTING (UK) LTD,EC3M,22/11/2023,"10,251.79"
115035233,Planned Maintenance Programme,HRA Capital Financing,Exceptional Extensive,Capital,Contractor Payments,ARCADIS CONSULTING (UK) LTD,EC3M,22/11/2023,"10,881.00"
115035233,Planned Maintenance Programme,HRA Capital Financing,Exceptional Extensive,Capital,Contractor Payments,ARCADIS CONSULTING (UK) LTD,EC3M,22/11/2023,"27,900.00"
113741233,Social Care,Children & Families,Children's Resource and Home Finding Team,3rd Party Payments,Residential Care,AREA CAMDEN GROUP,N8 0,10/11/2023,"22,585.67"
113547234,Human Resources and Organisational Development,"People, Culture and Organisational Resilience",Pay & Reward,Employees,Temporary / Agency - by Accounts Payable,ARGONAUT MANAGEMENT SERVICES LIMITED,N11 ,08/11/2023,"8,400.00"
114997233,Mental Health,Adults,Mental Health 65 and over,3rd Party Payments,Nursing Care,ARIA HEALTHCARE GROUP LTD,CO4 ,22/11/2023,"6,000.00"
114353233,Lydiard Park,Culture & Heritage,Lydiard : Hotel Operations,Supplies and Services,Liquid,ARKELLS BREWERY LTD,SN2 ,15/11/2023,"1,571.48"
114099234,Lydiard Park,Culture & Heritage,Lydiard : Hotel Operations,Supplies and Services,Liquid,ARKELLS BREWERY LTD,SN2 ,13/11/2023,509.36
115424233,Lydiard Park,Culture & Heritage,Lydiard : Hotel Operations,Supplies and Services,Liquid,ARKELLS BREWERY LTD,SN2 ,24/11/2023,437.77
112740233,Streetsmart,Streetsmart,Waterside Fleet Hires,Transport Costs,Vehicle Hire / Contract,ARNOLD PLANT HIRE LIMITED,SK6 ,03/11/2023,"1,166.00"
112741233,Streetsmart,Streetsmart,Waterside Fleet Hires,Transport Costs,Vehicle Hire / Contract,ARNOLD PLANT HIRE LIMITED,SK6 ,03/11/2023,"1,738.00"
112739233,Streetsmart,Streetsmart,Waterside Fleet Hires,Transport Costs,Vehicle Hire / Contract,ARNOLD PLANT HIRE LIMITED,SK6 ,03/11/2023,"1,540.00"
111763233,School Transport,"Education, Inclusion and Skills",Special Educational Needs Transport,Transport Costs,Home to School Transport,ARNOLD ZAJDER A2J TRADE,SN10,01/11/2023,"2,652.00"
111852233,Streetsmart,Streetsmart,Waste - Processing,Premises Costs,Maintenance - Buildings,ARROW INDUSTRIAL GROUP LIMITED,RG21,01/11/2023,"33,215.00"
115450233,Streetsmart,Streetsmart,Waste - Processing,Premises Costs,Maintenance - Buildings,ARROW INDUSTRIAL GROUP LIMITED,RG21,27/11/2023,"2,210.00"
114995233,Mental Health,Adults,Mental Health 65 and over,3rd Party Payments,Residential Care,ARTI CARE HOMES (GLOUCESTER) LIMITED,WD7 ,22/11/2023,"4,800.00"
114945233,Mental Health,Adults,Mental Health 18-64,Income,Client Contribution - Residential,ASH VIEW HOUSE,BS15,22/11/2023,-418.80
114945233,Mental Health,Adults,Mental Health 18-64,3rd Party Payments,Residential Care,ASH VIEW HOUSE,BS15,22/11/2023,"7,993.72"
114885233,Physical Support,Adults,Physical Support 65 and over,Income,Client Contribution - Residential,ASHBURY LODGE,SN3 ,22/11/2023,-764.80
114885233,Physical Support,Adults,Physical Support 65 and over,Income,Client Contribution - Residential,ASHBURY LODGE,SN3 ,22/11/2023,"-1,084.96"
114885233,Mental Health,Adults,Mental Health 65 and over,3rd Party Payments,Residential Care,ASHBURY LODGE,SN3 ,22/11/2023,"2,988.96"
114885233,Physical Support,Adults,Physical Support 65 and over,Income,Client Contribution - Residential,ASHBURY LODGE,SN3 ,22/11/2023,"-1,308.16"
114885233,Physical Support,Adults,Physical Support 65 and over,3rd Party Payments,Residential Care,ASHBURY LODGE,SN3 ,22/11/2023,"-1,093.78"
114885233,Mental Health,Adults,Mental Health 65 and over,Income,Client Contribution - Residential,ASHBURY LODGE,SN3 ,22/11/2023,-881.64
114885233,Physical Support,Adults,Physical Support 65 and over,3rd Party Payments,Residential Care,ASHBURY LODGE,SN3 ,22/11/2023,"4,032.00"
114885233,Physical Support,Adults,Physical Support 65 and over,Income,Client Contribution - Residential,ASHBURY LODGE,SN3 ,22/11/2023,"-1,125.72"
114885233,Physical Support,Adults,Physical Support 65 and over,Income,Client Contribution - Residential,ASHBURY LODGE,SN3 ,22/11/2023,-691.20
114885233,Mental Health,Adults,Mental Health 65 and over,3rd Party Payments,Residential Care,ASHBURY LODGE,SN3 ,22/11/2023,"2,867.32"
114885233,Physical Support,Adults,Physical Support 65 and over,Income,Client Contribution - Residential,ASHBURY LODGE,SN3 ,22/11/2023,-730.76
114885233,Physical Support,Adults,Physical Support 65 and over,Income,Client Contribution - Residential,ASHBURY LODGE,SN3 ,22/11/2023,953.20
114885233,Physical Support,Adults,Physical Support 65 and over,3rd Party Payments,Residential Care,ASHBURY LODGE,SN3 ,22/11/2023,-407.13
114885233,Physical Support,Adults,Physical Support 65 and over,3rd Party Payments,Residential Care,ASHBURY LODGE,SN3 ,22/11/2023,"2,867.32"
114885233,Mental Health,Adults,Mental Health 65 and over,3rd Party Payments,Residential Care,ASHBURY LODGE,SN3 ,22/11/2023,"4,000.00"
114885233,Physical Support,Adults,Physical Support 65 and over,3rd Party Payments,Residential Care,ASHBURY LODGE,SN3 ,22/11/2023,"-2,867.32"
114885233,Physical Support,Adults,Physical Support 65 and over,Income,Client Contribution - Residential,ASHBURY LODGE,SN3 ,22/11/2023,-801.80
114885233,Physical Support,Adults,Physical Support 65 and over,Income,Client Contribution - Residential,ASHBURY LODGE,SN3 ,22/11/2023,-886.60
114885233,Physical Support,Adults,Physical Support 65 and over,Income,Client Contribution - Residential,ASHBURY LODGE,SN3 ,22/11/2023,-657.68
114885233,Mental Health,Adults,Mental Health 65 and over,3rd Party Payments,Residential Care,ASHBURY LODGE,SN3 ,22/11/2023,"2,571.43"
114885233,Mental Health,Adults,Mental Health 65 and over,Income,Client Contribution - Residential,ASHBURY LODGE,SN3 ,22/11/2023,-691.20
114884233,Physical Support,Adults,Physical Support 65 and over,3rd Party Payments,Nursing Care,ASHGROVE HOUSE NURSING HOME,SN5 ,22/11/2023,"6,080.00"
114884233,Physical Support,Adults,Physical Support 65 and over,Income,Client Contribution - Nursing,ASHGROVE HOUSE NURSING HOME,SN5 ,22/11/2023,-655.04
112662234,Public Health,Public Health,Smoking & Tobacco,3rd Party Payments,Contract Payments,ASHINGTON WAY PHARMACY,SN5 ,03/11/2023,115.00
112662234,Public Health,Public Health,Smoking & Tobacco,3rd Party Payments,Contract Payments,ASHINGTON WAY PHARMACY,SN5 ,03/11/2023,482.78
115136253,Physical Support,Adults,Physical Support 18 - 64,Transfer Payments,Personal Budget - Direct Payments - Domiciliary Care,REDACTED PERSONAL DATA,SN25,24/11/2023,"1,555.80"
114559234,Libraries,"Education, Inclusion and Skills",Library Delivery,Supplies and Services,Materials,ASKEWS AND HOLTS LIBRARY SERVICES LIMITED,PR1 ,17/11/2023,856.82
113690233,Libraries,"Education, Inclusion and Skills",Library Delivery,Supplies and Services,Materials,ASKEWS AND HOLTS LIBRARY SERVICES LIMITED,PR1 ,10/11/2023,"2,383.99"
112457233,Libraries,"Education, Inclusion and Skills",Library Delivery,Supplies and Services,Materials,ASKEWS AND HOLTS LIBRARY SERVICES LIMITED,PR1 ,03/11/2023,"1,600.52"
114559233,Libraries,"Education, Inclusion and Skills",Library Delivery,Supplies and Services,Materials,ASKEWS AND HOLTS LIBRARY SERVICES LIMITED,PR1 ,17/11/2023,"3,259.50"
114914233,Learning Disabilities,Adults,Learning Disability 18 - 64,3rd Party Payments,Residential Care,ASPECTS & MILESTONES TRUST,BS16,22/11/2023,"6,964.88"
114914233,Learning Disabilities,Adults,Learning Disability 18 - 64,Income,Client Contribution - Residential,ASPECTS & MILESTONES TRUST,BS16,22/11/2023,-463.20
115127234,Physical Support,Adults,Physical Support 18 - 64,3rd Party Payments,Supported Lodgings (Childrens)/Supported Living (Adults),ASPECTS 2 LTD,B70 ,22/11/2023,"4,200.00"
114952233,Learning Disabilities,Adults,Learning Disability 18 - 64,Income,Client Contribution - Residential,ASPECTS 2 LTD,B70 ,22/11/2023,-438.80
114952233,Learning Disabilities,Adults,Learning Disability 18 - 64,3rd Party Payments,Residential Care,ASPECTS 2 LTD,B70 ,22/11/2023,"9,278.64"
115127234,Mental Health,Adults,Mental Health 65 and over,3rd Party Payments,Supported Lodgings (Childrens)/Supported Living (Adults),ASPECTS 2 LTD,B70 ,22/11/2023,"1,449.60"
114341233,Disabled Children,Children & Families,DCT Overnight Short Breaks,3rd Party Payments,Respite Care,ASPRIS CHILDREN'S SERVICES,DL1 ,15/11/2023,"10,800.00"
114968233,Learning Disabilities,Adults,Learning Disability 18 - 64,Income,Client Contribution - Residential,ASTON CARE LIMITED,RG30,22/11/2023,-788.80
114969233,Learning Disabilities,Adults,Learning Disability 18 - 64,3rd Party Payments,Residential Care,ASTON CARE LIMITED,RG30,22/11/2023,"7,288.00"
114968233,Learning Disabilities,Adults,Learning Disability 18 - 64,3rd Party Payments,Residential Care,ASTON CARE LIMITED,RG30,22/11/2023,"9,733.80"
114969233,Learning Disabilities,Adults,Learning Disability 18 - 64,Income,Client Contribution - Residential,ASTON CARE LIMITED,RG30,22/11/2023,-410.80
114969233,Learning Disabilities,Adults,Learning Disability 18 - 64,Income,Client Contribution - Residential,ASTON CARE LIMITED,RG30,22/11/2023,-587.40
112168233,Learning Disabilities,Adults,Learning Disability 18 - 64,3rd Party Payments,Residential Care,ASTON CARE LIMITED,RG30,01/11/2023,695.27
114969233,Learning Disabilities,Adults,Learning Disability 18 - 64,3rd Party Payments,Residential Care,ASTON CARE LIMITED,RG30,22/11/2023,"8,008.00"
114969233,Learning Disabilities,Adults,Learning Disability 18 - 64,3rd Party Payments,Residential Care,ASTON CARE LIMITED,RG30,22/11/2023,"8,288.00"
114969233,Learning Disabilities,Adults,Learning Disability 18 - 64,Income,Client Contribution - Residential,ASTON CARE LIMITED,RG30,22/11/2023,-655.44
112832233,Learning Disabilities,Adults,Learning Disability 18 - 64,3rd Party Payments,Residential Care,ASTON CARE LIMITED,RG30,03/11/2023,520.57
114969233,Learning Disabilities,Adults,Learning Disability 18 - 64,Income,Client Contribution - Residential,ASTON CARE LIMITED,RG30,22/11/2023,94.44
114969233,Learning Disabilities,Adults,Learning Disability 18 - 64,Income,Client Contribution - Residential,ASTON CARE LIMITED,RG30,22/11/2023,-676.40
115577234,Early Help,Early Intervention & Prevention,"Holiday, Activities & Food Grant",3rd Party Payments,Contracts - Child Care,ATBSHOP LTD,SN2 ,29/11/2023,"6,462.00"
112301233,Highways Inspections & Maintenance,Highway Operations and Car Parking,Highway Maintenance,Supplies and Services,Materials,ATG ACCESS LTD,WA11,01/11/2023,128.00
112301233,Highways Inspections & Maintenance,Highway Operations and Car Parking,Highway Maintenance,Supplies and Services,Materials,ATG ACCESS LTD,WA11,01/11/2023,"2,455.00"
113742233,Social Care,Children & Families,Children's Resource and Home Finding Team,3rd Party Payments,Residential Care,A-TRIANGLE CARE LIMITED,FY5 ,10/11/2023,"26,549.29"
115240241,Social Care,Children & Families,Children's Resource and Home Finding Team,3rd Party Payments,Residential Care,A-TRIANGLE CARE LIMITED,FY5 ,24/11/2023,"25,692.86"
112715233,Safeguarding and Quality Assurance,Children & Families,Quality Assurance Team,Employees,Temporary / Agency - by Accounts Payable,ATTENTI LTD,EC2R,03/11/2023,"1,888.00"
112753233,Senior Management Team,Children & Families,Family Safeguarding Model,Employees,Temporary / Agency - by Accounts Payable,ATTENTI LTD,EC2R,03/11/2023,"2,360.00"
112758233,Senior Management Team,Children & Families,Family Safeguarding Model,Employees,Temporary / Agency - by Accounts Payable,ATTENTI LTD,EC2R,03/11/2023,"2,124.00"
114687233,Senior Management Team,Children & Families,Family Safeguarding Model,Employees,Temporary / Agency - by Accounts Payable,ATTENTI LTD,EC2R,17/11/2023,"2,950.00"
115694233,Social Care,Children & Families,CP & CIN Social Work - South,Employees,DBS checks,ATTENTI LTD,EC2R,29/11/2023,"23,249.81"
113372233,Social Care,Children & Families,CP & CIN Social Work - South,Employees,DBS checks,ATTENTI LTD,EC2R,08/11/2023,"21,123.81"
113535235,Social Care,Children & Families,CP & CIN Social Work - South,Employees,Temporary / Agency - by Accounts Payable,ATTENTI LTD,EC2R,08/11/2023,"18,997.81"
114559239,Social Care,Children & Families,Practise Development,Employees,Temporary / Agency - by Accounts Payable,ATTENTI LTD,EC2R,17/11/2023,"2,400.00"
113393233,Social Care,Children & Families,Practise Development,Employees,Temporary / Agency - by Accounts Payable,ATTENTI LTD,EC2R,08/11/2023,"2,400.00"
112714233,Social Care,Children & Families,Practise Development,Employees,Temporary / Agency - by Accounts Payable,ATTENTI LTD,EC2R,03/11/2023,"2,360.00"
113282233,Senior Management Team,Children & Families,Senior Management Team - Staffing,Employees,Temporary / Agency - by Accounts Payable,ATTENTI LTD,EC2R,08/11/2023,"3,980.00"
113137233,Senior Management Team,Children & Families,Family Safeguarding Model,Employees,Temporary / Agency - by Accounts Payable,ATTENTI LTD,EC2R,06/11/2023,"2,950.00"
113185233,Social Care,Children & Families,Practise Development,Employees,Temporary / Agency - by Accounts Payable,ATTENTI LTD,EC2R,06/11/2023,"2,360.00"
113154233,Social Care,Children & Families,Practise Development,Employees,Temporary / Agency - by Accounts Payable,ATTENTI LTD,EC2R,06/11/2023,"2,400.00"
114218233,Senior Management Team,Children & Families,Senior Management Team - Staffing,Employees,Temporary / Agency - by Accounts Payable,ATTENTI LTD,EC2R,15/11/2023,"3,540.00"
113371233,Senior Management Team,Children & Families,Senior Management Team - Staffing,Employees,Temporary / Agency - by Accounts Payable,ATTENTI LTD,EC2R,08/11/2023,"3,245.00"
115204233,Safeguarding and Quality Assurance,Children & Families,Quality Assurance Team,Employees,Temporary / Agency - by Accounts Payable,ATTENTI LTD,EC2R,24/11/2023,"2,360.00"
113531234,Social Care,Children & Families,CP & CIN Social Work - South,Employees,Temporary / Agency - by Accounts Payable,ATTENTI LTD,EC2R,08/11/2023,"2,183.00"
113804234,Social Care,Children & Families,Practise Development,Employees,Temporary / Agency - by Accounts Payable,ATTENTI LTD,EC2R,10/11/2023,"2,400.00"
113140233,Social Care,Children & Families,Practise Development,Employees,Temporary / Agency - by Accounts Payable,ATTENTI LTD,EC2R,06/11/2023,"2,400.00"
113807233,Senior Management Team,Children & Families,Senior Management Team - Staffing,Employees,Temporary / Agency - by Accounts Payable,ATTENTI LTD,EC2R,10/11/2023,"3,980.00"
113273233,Senior Management Team,Children & Families,Senior Management Team - Staffing,Employees,Temporary / Agency - by Accounts Payable,ATTENTI LTD,EC2R,08/11/2023,"3,540.00"
113186233,Safeguarding and Quality Assurance,Children & Families,Quality Assurance Team,Employees,Temporary / Agency - by Accounts Payable,ATTENTI LTD,EC2R,06/11/2023,"2,360.00"
114548233,Social Care,Children & Families,CP & CIN Social Work - South,Employees,DBS checks,ATTENTI LTD,EC2R,15/11/2023,"18,997.81"
113409238,Social Care,Children & Families,CP & CIN Social Work - South,Employees,DBS checks,ATTENTI LTD,EC2R,08/11/2023,"21,123.81"
115205237,Social Care,Children & Families,Practise Development,Employees,Temporary / Agency - by Accounts Payable,ATTENTI LTD,EC2R,24/11/2023,"2,360.00"
114559240,Social Care,Children & Families,Practise Development,Employees,Temporary / Agency - by Accounts Payable,ATTENTI LTD,EC2R,17/11/2023,"2,360.00"
114575234,Social Care,Children & Families,Practise Development,Employees,Temporary / Agency - by Accounts Payable,ATTENTI LTD,EC2R,17/11/2023,"1,416.00"
113603236,Social Care,Children & Families,Practise Development,Employees,Temporary / Agency - by Accounts Payable,ATTENTI LTD,EC2R,08/11/2023,"2,360.00"
113054233,Social Care,Children & Families,Practise Development,Employees,Temporary / Agency - by Accounts Payable,ATTENTI LTD,EC2R,06/11/2023,"2,360.00"
113277233,Safeguarding and Quality Assurance,Children & Families,Quality Assurance Team,Employees,Temporary / Agency - by Accounts Payable,ATTENTI LTD,EC2R,08/11/2023,"2,360.00"
113153368,Social Care,Children & Families,CP & CIN Social Work - South,Employees,Temporary / Agency - by Accounts Payable,ATTENTI LTD,EC2R,06/11/2023,"3,245.00"
113536234,Social Care,Children & Families,CP & CIN Social Work - South,Employees,Temporary / Agency - by Accounts Payable,ATTENTI LTD,EC2R,08/11/2023,"18,997.81"
113535234,Social Care,Children & Families,CP & CIN Social Work - South,Employees,Temporary / Agency - by Accounts Payable,ATTENTI LTD,EC2R,08/11/2023,"18,997.81"
113603235,Social Care,Children & Families,Practise Development,Employees,Temporary / Agency - by Accounts Payable,ATTENTI LTD,EC2R,08/11/2023,"1,416.00"
114723233,Senior Management Team,Children & Families,Senior Management Team - Staffing,Employees,Temporary / Agency - by Accounts Payable,ATTENTI LTD,EC2R,17/11/2023,"3,540.00"
112994233,Senior Management Team,Children & Families,Family Safeguarding Model,Employees,Temporary / Agency - by Accounts Payable,ATTENTI LTD,EC2R,06/11/2023,"2,950.00"
115695233,Social Care,Children & Families,CP & CIN Social Work - South,Employees,DBS checks,ATTENTI LTD,EC2R,29/11/2023,"21,123.81"
113558233,Social Care,Children & Families,Practise Development,Employees,Temporary / Agency - by Accounts Payable,ATTENTI LTD,EC2R,08/11/2023,"2,360.00"
114674233,Social Care,Children & Families,Practise Development,Employees,Temporary / Agency - by Accounts Payable,ATTENTI LTD,EC2R,17/11/2023,"2,400.00"
113604233,Social Care,Children & Families,Practise Development,Employees,Temporary / Agency - by Accounts Payable,ATTENTI LTD,EC2R,08/11/2023,"2,360.00"
113550234,Social Care,Children & Families,Practise Development,Employees,Temporary / Agency - by Accounts Payable,ATTENTI LTD,EC2R,08/11/2023,"2,360.00"
113391234,Social Care,Children & Families,Practise Development,Employees,Temporary / Agency - by Accounts Payable,ATTENTI LTD,EC2R,08/11/2023,"2,400.00"
112931234,Social Care,Children & Families,Practise Development,Employees,Temporary / Agency - by Accounts Payable,ATTENTI LTD,EC2R,03/11/2023,"2,360.00"
114219233,Senior Management Team,Children & Families,Senior Management Team - Staffing,Employees,Temporary / Agency - by Accounts Payable,ATTENTI LTD,EC2R,15/11/2023,"3,540.00"
113532233,Social Care,Children & Families,CP & CIN Social Work - South,Employees,Temporary / Agency - by Accounts Payable,ATTENTI LTD,EC2R,08/11/2023,"2,183.00"
114574233,Senior Management Team,Children & Families,Family Safeguarding Model,Employees,Temporary / Agency - by Accounts Payable,ATTENTI LTD,EC2R,17/11/2023,"2,360.00"
112982233,Senior Management Team,Children & Families,Family Safeguarding Model,Employees,Temporary / Agency - by Accounts Payable,ATTENTI LTD,EC2R,03/11/2023,"2,950.00"
113136233,Senior Management Team,Children & Families,Family Safeguarding Model,Employees,Temporary / Agency - by Accounts Payable,ATTENTI LTD,EC2R,06/11/2023,"2,360.00"
113534233,Social Care,Children & Families,CP & CIN Social Work - South,Employees,DBS checks,ATTENTI LTD,EC2R,08/11/2023,"18,997.81"
114559237,Social Care,Children & Families,Practise Development,Employees,Temporary / Agency - by Accounts Payable,ATTENTI LTD,EC2R,17/11/2023,"18,997.81"
114559238,Senior Management Team,Children & Families,Senior Management Team - Staffing,Employees,Temporary / Agency - by Accounts Payable,ATTENTI LTD,EC2R,17/11/2023,"3,980.00"
114987233,Physical Support,Adults,Physical Support 65 and over,3rd Party Payments,Residential Care,AURA CARE LIVING CIRENCESTER LTD,GL7 ,22/11/2023,"4,142.00"
111963272,Mental Health,Adults,Mental Health 18-64,3rd Party Payments,Nursing Care,AURA CARE LIVING CIRENCESTER LTD,GL7 ,01/11/2023,900.43
114987233,Mental Health,Adults,Mental Health 18-64,3rd Party Payments,Nursing Care,AURA CARE LIVING CIRENCESTER LTD,GL7 ,22/11/2023,"12,606.00"
114987233,Mental Health,Adults,Mental Health 18-64,3rd Party Payments,Residential Care,AURA CARE LIVING CIRENCESTER LTD,GL7 ,22/11/2023,"11,734.00"
114987233,Physical Support,Adults,Physical Support 65 and over,3rd Party Payments,Nursing Care,AURA CARE LIVING CIRENCESTER LTD,GL7 ,22/11/2023,"5,886.00"
114987233,Physical Support,Adults,Physical Support 65 and over,Income,Client Contribution - Residential,AURA CARE LIVING CIRENCESTER LTD,GL7 ,22/11/2023,"-1,021.48"
114987233,Mental Health,Adults,Mental Health 65 and over,3rd Party Payments,Residential Care,AURA CARE LIVING CIRENCESTER LTD,GL7 ,22/11/2023,"6,104.00"
114987233,Physical Support,Adults,Physical Support 65 and over,3rd Party Payments,Nursing Care,AURA CARE LIVING CIRENCESTER LTD,GL7 ,22/11/2023,"4,796.00"
111963265,Mental Health,Adults,Mental Health 18-64,3rd Party Payments,Residential Care,AURA CARE LIVING CIRENCESTER LTD,GL7 ,01/11/2023,838.14
114987233,Physical Support,Adults,Physical Support 65 and over,Income,Client Contribution - Nursing,AURA CARE LIVING CIRENCESTER LTD,GL7 ,22/11/2023,-691.20
114987233,Physical Support,Adults,Physical Support 65 and over,Income,Client Contribution - Nursing,AURA CARE LIVING CIRENCESTER LTD,GL7 ,22/11/2023,-735.64
114987233,Physical Support,Adults,Physical Support 65 and over,Income,Client Contribution - Nursing,AURA CARE LIVING CIRENCESTER LTD,GL7 ,22/11/2023,-608.00
114974233,Learning Disabilities,Adults,Learning Disability 18 - 64,3rd Party Payments,Residential Care,AUTONOMY LIFE LIMITED,SN12,22/11/2023,"10,027.60"
114974233,Learning Disabilities,Adults,Learning Disability 18 - 64,Income,Client Contribution - Residential,AUTONOMY LIFE LIMITED,SN12,22/11/2023,-628.56
112628233,Property Regeneration,Property,Regeneration Schemes,Supplies and Services,Services,AVISON YOUNG (UK) LTD,B1 2,03/11/2023,"21,640.00"
114896233,Learning Disabilities,Adults,Learning Disability 18 - 64,Income,Client Contribution - Residential,AVON AUTISTIC FOUNDATION LTD,BS11,22/11/2023,-483.20
114895233,Learning Disabilities,Adults,Learning Disability 18 - 64,3rd Party Payments,Residential Care,AVON AUTISTIC FOUNDATION LTD,BS11,22/11/2023,"5,482.04"
114895233,Learning Disabilities,Adults,Learning Disability 18 - 64,Income,Client Contribution - Residential,AVON AUTISTIC FOUNDATION LTD,BS11,22/11/2023,-438.80
114896233,Learning Disabilities,Adults,Learning Disability 18 - 64,3rd Party Payments,Residential Care,AVON AUTISTIC FOUNDATION LTD,BS11,22/11/2023,"7,668.32"
115201290,Homelessness and Travellers,Housing Services,Private Sector Landlords,Transfer Payments,Payment of Costs,AVONPARK PROPERTIES LTD,SN3 ,24/11/2023,615.00
115201378,Homelessness and Travellers,Housing Services,Private Sector Landlords,Transfer Payments,Payment of Costs,AVONPARK PROPERTIES LTD,SN3 ,24/11/2023,550.00
113367233,Organisational Resilience,"People, Culture and Organisational Resilience",Health & Safety,Supplies and Services,Accreditations,BACK CARE SOLUTIONS LTD,PR5 ,08/11/2023,821.50
112478237,Heritage,Culture,Lydiard House & Hotel Improvements,Capital,Contractor Payments,BAILEY PARTNERSHIP (CONSULTANTS) LLP,PL1 ,03/11/2023,"2,983.27"
114683234,Town Centre,"Economy, Growth and Place",Carriage Works Phase 3,Capital,Professional Fees,BAILEY PARTNERSHIP (CONSULTANTS) LLP,PL1 ,17/11/2023,"2,300.00"
111822233,Social Care,Children & Families,Childrens Homefinding Team,Employees,Temporary / Agency - by Accounts Payable,REDACTED PERSONAL DATA,BS1 ,01/11/2023,"1,875.00"
111819233,Social Care,Children & Families,Childrens Homefinding Team,Employees,Temporary / Agency - by Accounts Payable,REDACTED PERSONAL DATA,BS1 ,01/11/2023,"2,500.00"
111817233,Social Care,Children & Families,Childrens Homefinding Team,Employees,Temporary / Agency - by Accounts Payable,REDACTED PERSONAL DATA,BS1 ,01/11/2023,"2,500.00"
112722233,Social Care,Children & Families,Childrens Homefinding Team,Employees,Temporary / Agency - by Accounts Payable,REDACTED PERSONAL DATA,BS1 ,03/11/2023,625.00
111821233,Social Care,Children & Families,Childrens Homefinding Team,Employees,Temporary / Agency - by Accounts Payable,REDACTED PERSONAL DATA,BS1 ,01/11/2023,"3,125.00"
114556233,Social Care,Children & Families,Childrens Homefinding Team,Employees,Temporary / Agency - by Accounts Payable,REDACTED PERSONAL DATA,BS1 ,15/11/2023,"2,500.00"
112721233,Social Care,Children & Families,Childrens Homefinding Team,Employees,Temporary / Agency - by Accounts Payable,REDACTED PERSONAL DATA,BS1 ,03/11/2023,"1,000.00"
114236233,Social Care,Children & Families,Childrens Homefinding Team,Employees,Temporary / Agency - by Accounts Payable,REDACTED PERSONAL DATA,BS1 ,15/11/2023,"3,125.00"
115592236,Social Care,Children & Families,Children's Resource and Home Finding Team,3rd Party Payments,Independent Fostering Agency Placements,BANYA FAMILY PLACEMENT AGENCY LIMITED,SE24,29/11/2023,"1,540.56"
115592235,Social Care,Children & Families,Children's Resource and Home Finding Team,3rd Party Payments,Independent Fostering Agency Placements,BANYA FAMILY PLACEMENT AGENCY LIMITED,SE24,29/11/2023,"1,540.56"
115203606,Physical Support,Adults,Physical Support 65 and over,Transfer Payments,Personal Budget - Direct Payments - Domiciliary Care,REDACTED PERSONAL DATA,2969,24/11/2023,11.04
115203606,Physical Support,Adults,Physical Support 65 and over,Income,Client Contribution - Personal Budget - DP,REDACTED PERSONAL DATA,2969,24/11/2023,-120.70
115203606,Physical Support,Adults,Physical Support 65 and over,Transfer Payments,Personal Budget - Direct Payments - Domiciliary Care,REDACTED PERSONAL DATA,2969,24/11/2023,3.94
115203606,Physical Support,Adults,Physical Support 65 and over,Transfer Payments,Personal Budget - Direct Payments - Domiciliary Care,REDACTED PERSONAL DATA,2969,24/11/2023,-3.06
115203606,Physical Support,Adults,Physical Support 65 and over,Transfer Payments,Personal Budget - Direct Payments - Domiciliary Care,REDACTED PERSONAL DATA,2969,24/11/2023,"1,428.84"
115203606,Physical Support,Adults,Physical Support 65 and over,Income,Client Contribution - Personal Budget - DP,REDACTED PERSONAL DATA,2969,24/11/2023,119.77
115203606,Physical Support,Adults,Physical Support 65 and over,Transfer Payments,Personal Budget - Direct Payments - Domiciliary Care,REDACTED PERSONAL DATA,2969,24/11/2023,510.30
115203606,Physical Support,Adults,Physical Support 65 and over,Income,Client Contribution - Personal Budget - DP,REDACTED PERSONAL DATA,2969,24/11/2023,-324.24
115203606,Physical Support,Adults,Physical Support 65 and over,Transfer Payments,Personal Budget - Direct Payments - Domiciliary Care,REDACTED PERSONAL DATA,2969,24/11/2023,-396.90
115203606,Physical Support,Adults,Physical Support 65 and over,Income,Client Contribution - Personal Budget - DP,REDACTED PERSONAL DATA,2969,24/11/2023,0.93
114239245,Early Years Block,Dedicated Schools Grant (DSG),Free Nursery Education Commissioning - three & four  year olds,3rd Party Payments,Contracts - Child Care,BARN OWL PRE-SCHOOL,SN25,15/11/2023,"6,552.21"
112626233,School Transport,"Education, Inclusion and Skills",Mainstream School Transport,Transport Costs,Home to School Transport,BARNES COACHES LTD,SN3 ,03/11/2023,"6,972.00"
112626233,School Transport,"Education, Inclusion and Skills",Mainstream School Transport,Employees,Temporary / Agency - by Accounts Payable,BARNES COACHES LTD,SN3 ,03/11/2023,485.68
114224233,Libraries,"Education, Inclusion and Skills",Library Shop,Supplies and Services,Goods for resale,BARNES COACHES LTD,SN3 ,15/11/2023,552.68
113194236,Supported Housing,Special Services,Supported Housing Management,Supplies and Services,Equipment,BED FACTORY SWINDON T/A TBF (UK) LTD,SN3 ,06/11/2023,795.00
113478233,Schools Maintenance,Skills & Attainment,DFC Allocations to Schools,Capital,Grant Payments,BEECHCROFT INFANT SCHOOL,SN2 ,08/11/2023,"6,790.00"
114305233,Schools - Primary,Dedicated Schools Grant (DSG),Primary School Budgets,3rd Party Payments,Mainstream Delegated Funding,BEECHCROFT INFANT SCHOOL,SN2 ,15/11/2023,"96,892.00"
115103233,DSG Other Funding,Dedicated Schools Grant (DSG),DFE Additional Grants,Supplies and Services,Payments to Educational Bodies,BEECHCROFT INFANT SCHOOL,SN2 ,22/11/2023,"11,848.00"
114640249,DSG Other Funding,Dedicated Schools Grant (DSG),DFE Additional Grants,Supplies and Services,Payments to Educational Bodies,BEECHCROFT INFANT SCHOOL,SN2 ,17/11/2023,"22,938.00"
114475233,High Needs Block,Dedicated Schools Grant (DSG),SEN Resourcing Assessment Panel,3rd Party Payments,Top up funding - Maintained providers Pre 16,BEECHCROFT INFANT SCHOOL,SN2 ,15/11/2023,"5,471.17"
115081233,DSG Other Funding,Dedicated Schools Grant (DSG),DFE Additional Grants,Supplies and Services,Payments to Educational Bodies,BEECHCROFT INFANT SCHOOL,SN2 ,22/11/2023,"2,392.50"
114325233,DSG Other Funding,Dedicated Schools Grant (DSG),DFE Additional Grants,3rd Party Payments,Payment of Pupil Premium to school,BEECHCROFT INFANT SCHOOL,SN2 ,15/11/2023,"8,347.00"
114563248,DSG Other Funding,Dedicated Schools Grant (DSG),DFE Additional Grants,Supplies and Services,Payments to Educational Bodies,BEECHCROFT INFANT SCHOOL,SN2 ,17/11/2023,"10,296.00"
115044248,DSG Other Funding,Dedicated Schools Grant (DSG),DFE Additional Grants,Supplies and Services,Payments to Educational Bodies,BEECHCROFT INFANT SCHOOL,SN2 ,22/11/2023,885.94
111979234,Learning Disabilities,Adults,Learning Disability 18 - 64,3rd Party Payments,Residential Care,BEECHWOOD COURT LTD,CF10,01/11/2023,"2,139.13"
114942233,Learning Disabilities,Adults,Learning Disability 18 - 64,3rd Party Payments,Residential Care,BEECHWOOD COURT LTD,CF10,22/11/2023,"29,947.84"
114942233,Learning Disabilities,Adults,Learning Disability 18 - 64,3rd Party Payments,Residential Care,BEECHWOOD COURT LTD,CF10,22/11/2023,"20,830.56"
111979241,Learning Disabilities,Adults,Learning Disability 18 - 64,3rd Party Payments,Residential Care,BEECHWOOD COURT LTD,CF10,01/11/2023,"1,487.90"
114942233,Learning Disabilities,Adults,Learning Disability 18 - 64,Income,Client Contribution - Residential,BEECHWOOD COURT LTD,CF10,22/11/2023,-322.56
Corporate Card Transaction,Homelessness and Travellers,Housing Services,Bed and Breakfast Accommodation,Transfer Payments,Payment of Costs,Bellemasion.Uk,,22/11/2023, 704.00 
115240235,Social Care,Children & Families,Children's Resource and Home Finding Team,3rd Party Payments,Residential Care,BENJAMIN UK LIMITED,LU7 ,24/11/2023,"17,692.01"
115240236,Social Care,Children & Families,Children's Resource and Home Finding Team,3rd Party Payments,Residential Care,BENJAMIN UK LIMITED,LU7 ,24/11/2023,"17,121.30"
115240234,Social Care,Children & Families,Children's Resource and Home Finding Team,3rd Party Payments,Residential Care,BENJAMIN UK LIMITED,LU7 ,24/11/2023,"17,121.30"
115240238,Social Care,Children & Families,Children's Resource and Home Finding Team,3rd Party Payments,Residential Care,BENJAMIN UK LIMITED,LU7 ,24/11/2023,"17,692.01"
115240237,Social Care,Children & Families,Children's Resource and Home Finding Team,3rd Party Payments,Residential Care,BENJAMIN UK LIMITED,LU7 ,24/11/2023,"17,121.30"
115240239,Social Care,Children & Families,Children's Resource and Home Finding Team,3rd Party Payments,Residential Care,BENJAMIN UK LIMITED,LU7 ,24/11/2023,"1,712.13"
114798233,Social Care,Children & Families,CP & CIN Social Work - South,3rd Party Payments,Personal Needs,BEST - BE A BETTER YOU,SN3 ,20/11/2023,540.00
114819233,Social Care,Children & Families,CP & CIN Social Work - South,3rd Party Payments,Personal Needs,BEST - BE A BETTER YOU,SN3 ,20/11/2023,540.00
115073233,DSG Other Funding,Dedicated Schools Grant (DSG),DFE Additional Grants,Supplies and Services,Payments to Educational Bodies,BISHOPSTONE C E PRIMARY SCHOOL,SN6 ,22/11/2023,500.00
114563240,DSG Other Funding,Dedicated Schools Grant (DSG),DFE Additional Grants,Supplies and Services,Payments to Educational Bodies,BISHOPSTONE C E PRIMARY SCHOOL,SN6 ,17/11/2023,"9,561.00"
114298233,Schools - Primary,Dedicated Schools Grant (DSG),Primary School Budgets,3rd Party Payments,Mainstream Delegated Funding,BISHOPSTONE C E PRIMARY SCHOOL,SN6 ,15/11/2023,"27,038.00"
113479233,Schools Maintenance,Skills & Attainment,DFC Allocations to Schools,Capital,Grant Payments,BISHOPSTONE C E PRIMARY SCHOOL,SN6 ,08/11/2023,"4,506.25"
114640241,DSG Other Funding,Dedicated Schools Grant (DSG),DFE Additional Grants,Supplies and Services,Payments to Educational Bodies,BISHOPSTONE C E PRIMARY SCHOOL,SN6 ,17/11/2023,"6,380.00"
115095233,DSG Other Funding,Dedicated Schools Grant (DSG),DFE Additional Grants,Supplies and Services,Payments to Educational Bodies,BISHOPSTONE C E PRIMARY SCHOOL,SN6 ,22/11/2023,"3,283.00"
114318233,DSG Other Funding,Dedicated Schools Grant (DSG),DFE Additional Grants,3rd Party Payments,Payment of Pupil Premium to school,BISHOPSTONE C E PRIMARY SCHOOL,SN6 ,15/11/2023,"1,618.00"
115501233,Treasury,Corporate Finance,Community Infrastructure Levy,Supplies and Services,Fees,BISHOPSTONE PARISH COUNCIL,SN1 ,29/11/2023,"1,392.20"
Corporate Card Transaction,Homelessness and Travellers,Housing Services,Bed and Breakfast Accommodation,Transfer Payments,Payment of Costs,Bkg*hotel At Booking.C,,03/11/2023, 551.67 
Corporate Card Transaction,Homelessness and Travellers,Housing Services,Homelessness Prevention,Transfer Payments,Payment of Costs,Bkg*hotel At Booking.C,,15/11/2023, 905.85 
Corporate Card Transaction,Homelessness and Travellers,Housing Services,Homelessness Prevention,Transfer Payments,Payment of Costs,Bkg*hotel At Booking.C,,08/11/2023, 652.00 
Corporate Card Transaction,Homelessness and Travellers,Housing Services,Homelessness Prevention,Transfer Payments,Payment of Costs,Bkg*hotel At Booking.C,,01/11/2023, 653.00 
Corporate Card Transaction,Homelessness and Travellers,Housing Services,Bed and Breakfast Accommodation,Transfer Payments,Payment of Costs,Bkg*hotel At Booking.C,,17/11/2023, 717.43 
Corporate Card Transaction,Homelessness and Travellers,Housing Services,Bed and Breakfast Accommodation,Transfer Payments,Payment of Costs,Bkg*hotel At Booking.C,,22/11/2023, 544.93 
Corporate Card Transaction,Homelessness and Travellers,Housing Services,Bed and Breakfast Accommodation,Transfer Payments,Payment of Costs,Bkg*hotel At Booking.C,,21/11/2023, 760.00 
113575233,Homelessness and Travellers,Housing Services,Private Sector Landlords,Transfer Payments,Payment of Costs,BLOCK 3 STUDIO,SN1 ,08/11/2023,730.00
113314233,Homelessness and Travellers,Housing Services,Private Sector Landlords,Transfer Payments,Payment of Costs,BLOCK 3 STUDIO,SN1 ,08/11/2023,860.00
115681233,Social Care,Children & Families,Children's Resource and Home Finding Team,3rd Party Payments,Independent Fostering Agency Placements,BLUE SKY,HA1 ,29/11/2023,"5,742.60"
115680233,Social Care,Children & Families,Children's Resource and Home Finding Team,3rd Party Payments,Independent Fostering Agency Placements,BLUE SKY,HA1 ,29/11/2023,"5,934.02"
115682233,Social Care,Children & Families,Children's Resource and Home Finding Team,3rd Party Payments,Independent Fostering Agency Placements,BLUE SKY,HA1 ,29/11/2023,"6,510.00"
115678233,Social Care,Children & Families,Children's Resource and Home Finding Team,3rd Party Payments,Independent Fostering Agency Placements,BLUE SKY,HA1 ,29/11/2023,"6,456.68"
115679233,Social Care,Children & Families,Children's Resource and Home Finding Team,3rd Party Payments,Independent Fostering Agency Placements,BLUE SKY,HA1 ,29/11/2023,"6,248.40"
115676233,Social Care,Children & Families,Children's Resource and Home Finding Team,3rd Party Payments,Independent Fostering Agency Placements,BLUE SKY,HA1 ,29/11/2023,"6,248.40"
115683233,Social Care,Children & Families,Children's Resource and Home Finding Team,3rd Party Payments,Independent Fostering Agency Placements,BLUE SKY,HA1 ,29/11/2023,"6,300.00"
115677233,Social Care,Children & Families,Children's Resource and Home Finding Team,3rd Party Payments,Independent Fostering Agency Placements,BLUE SKY,HA1 ,29/11/2023,"6,456.68"
114521233,Learning Disabilities,Adults,Learning Disability 18 - 64,3rd Party Payments,Personal Budget - Domiciliary care,BLUEBIRD CARE (SWINDON),SN25,15/11/2023,"1,244.16"
114521233,Learning Disabilities,Adults,Learning Disability 18 - 64,3rd Party Payments,Personal Budget - Domiciliary care,BLUEBIRD CARE (SWINDON),SN25,15/11/2023,"2,534.40"
114521233,Physical Support,Adults,Physical Support 18 - 64,3rd Party Payments,Personal Budget - Domiciliary care,BLUEBIRD CARE (SWINDON),SN25,15/11/2023,"1,113.88"
114521233,Learning Disabilities,Adults,Learning Disability 18 - 64,3rd Party Payments,Personal Budget - Domiciliary care,BLUEBIRD CARE (SWINDON),SN25,15/11/2023,-43.36
114521233,Learning Disabilities,Adults,Learning Disability 18 - 64,3rd Party Payments,Personal Budget - Domiciliary care,BLUEBIRD CARE (SWINDON),SN25,15/11/2023,-151.20
114521233,Learning Disabilities,Adults,Learning Disability 18 - 64,3rd Party Payments,Personal Budget - Domiciliary care,BLUEBIRD CARE (SWINDON),SN25,15/11/2023,"1,113.88"
114521233,Physical Support,Adults,Physical Support 65 and over,3rd Party Payments,Personal Budget - Domiciliary care,BLUEBIRD CARE (SWINDON),SN25,15/11/2023,"1,805.92"
114521233,Physical Support,Adults,Physical Support 18 - 64,3rd Party Payments,Personal Budget - Domiciliary care,BLUEBIRD CARE (SWINDON),SN25,15/11/2023,"1,105.92"
114521233,Learning Disabilities,Adults,Learning Disability 18 - 64,3rd Party Payments,Personal Budget - Domiciliary care,BLUEBIRD CARE (SWINDON),SN25,15/11/2023,"-1,013.03"
114521233,Learning Disabilities,Adults,Learning Disability 18 - 64,3rd Party Payments,Personal Budget - Domiciliary care,BLUEBIRD CARE (SWINDON),SN25,15/11/2023,284.44
114521233,Mental Health,Adults,Mental Health 18-64,3rd Party Payments,Personal Budget - Domiciliary care,BLUEBIRD CARE (SWINDON),SN25,15/11/2023,-16.80
114521233,Physical Support,Adults,Physical Support 65 and over,3rd Party Payments,Personal Budget - Domiciliary care,BLUEBIRD CARE (SWINDON),SN25,15/11/2023,"1,774.08"
114521233,Physical Support,Adults,Physical Support 18 - 64,3rd Party Payments,Personal Budget - Domiciliary care,BLUEBIRD CARE (SWINDON),SN25,15/11/2023,-122.12
114521233,Learning Disabilities,Adults,Learning Disability 18 - 64,3rd Party Payments,Personal Budget - Domiciliary care,BLUEBIRD CARE (SWINDON),SN25,15/11/2023,-35.40
114521233,Learning Disabilities,Adults,Learning Disability 18 - 64,3rd Party Payments,Personal Budget - Domiciliary care,BLUEBIRD CARE (SWINDON),SN25,15/11/2023,"1,105.92"
114521233,Physical Support,Adults,Physical Support 65 and over,3rd Party Payments,Personal Budget - Domiciliary care,BLUEBIRD CARE (SWINDON),SN25,15/11/2023,-161.42
114521233,Physical Support,Adults,Physical Support 18 - 64,3rd Party Payments,Personal Budget - Domiciliary care,BLUEBIRD CARE (SWINDON),SN25,15/11/2023,-134.40
114521233,Learning Disabilities,Adults,Learning Disability 18 - 64,3rd Party Payments,Personal Budget - Domiciliary care,BLUEBIRD CARE (SWINDON),SN25,15/11/2023,-142.36
114521233,Learning Disabilities,Adults,Learning Disability 18 - 64,3rd Party Payments,Personal Budget - Domiciliary care,BLUEBIRD CARE (SWINDON),SN25,15/11/2023,-154.64
114521233,Learning Disabilities,Adults,Learning Disability 18 - 64,3rd Party Payments,Personal Budget - Domiciliary care,BLUEBIRD CARE (SWINDON),SN25,15/11/2023,-445.42
114521233,Physical Support,Adults,Physical Support 65 and over,3rd Party Payments,Personal Budget - Domiciliary care,BLUEBIRD CARE (SWINDON),SN25,15/11/2023,-215.60
114521233,Learning Disabilities,Adults,Learning Disability 18 - 64,3rd Party Payments,Personal Budget - Domiciliary care,BLUEBIRD CARE (SWINDON),SN25,15/11/2023,"2,586.14"
114521233,Learning Disabilities,Adults,Learning Disability 18 - 64,3rd Party Payments,Personal Budget - Domiciliary care,BLUEBIRD CARE (SWINDON),SN25,15/11/2023,276.48
114521233,Learning Disabilities,Adults,Learning Disability 18 - 64,3rd Party Payments,Personal Budget - Domiciliary care,BLUEBIRD CARE (SWINDON),SN25,15/11/2023,967.68
114521233,Learning Disabilities,Adults,Learning Disability 18 - 64,3rd Party Payments,Personal Budget - Domiciliary care,BLUEBIRD CARE (SWINDON),SN25,15/11/2023,-124.08
114521233,Learning Disabilities,Adults,Learning Disability 18 - 64,3rd Party Payments,Personal Budget - Domiciliary care,BLUEBIRD CARE (SWINDON),SN25,15/11/2023,-400.96
114521233,Learning Disabilities,Adults,Learning Disability 18 - 64,3rd Party Payments,Personal Budget - Domiciliary care,BLUEBIRD CARE (SWINDON),SN25,15/11/2023,971.66
114521233,Learning Disabilities,Adults,Learning Disability 18 - 64,3rd Party Payments,Personal Budget - Domiciliary care,BLUEBIRD CARE (SWINDON),SN25,15/11/2023,"1,264.06"
114521233,Mental Health,Adults,Mental Health 18-64,3rd Party Payments,Personal Budget - Domiciliary care,BLUEBIRD CARE (SWINDON),SN25,15/11/2023,138.24
114521233,Learning Disabilities,Adults,Learning Disability 18 - 64,3rd Party Payments,Personal Budget - Domiciliary care,BLUEBIRD CARE (SWINDON),SN25,15/11/2023,-120.50
114521233,Learning Disabilities,Adults,Learning Disability 18 - 64,3rd Party Payments,Personal Budget - Domiciliary care,BLUEBIRD CARE (SWINDON),SN25,15/11/2023,"-1,022.60"
113302233,Treasury,Corporate Finance,Community Infrastructure Levy,Supplies and Services,Fees,BLUNSDON PARISH COUNCIL,SN26,08/11/2023,"145,272.86"
114636233,Digital & Business Change,Digital & Business Change,IT Operations,Supplies and Services,MFD Charges,BNP PARIBAS LEASING SOLUTIONS,RG21,17/11/2023,882.12
114961233,Mental Health,Adults,Mental Health 65 and over,3rd Party Payments,Residential Care,BOLEALLER HOUSE LTD,EX15,22/11/2023,"5,299.80"
114909233,Physical Support,Adults,Physical Support 18 - 64,3rd Party Payments,Nursing Care,BOTHWELLS LTD,HA6 ,22/11/2023,"3,270.76"
114909233,Physical Support,Adults,Physical Support 65 and over,Income,Client Contribution - Nursing,BOTHWELLS LTD,HA6 ,22/11/2023,"-1,182.84"
114909233,Physical Support,Adults,Physical Support 18 - 64,Income,Client Contribution - Nursing,BOTHWELLS LTD,HA6 ,22/11/2023,-659.80
114909233,Physical Support,Adults,Physical Support 65 and over,3rd Party Payments,Nursing Care,BOTHWELLS LTD,HA6 ,22/11/2023,"7,160.96"
114909233,Physical Support,Adults,Physical Support 18 - 64,Income,Client Contribution - Nursing,BOTHWELLS LTD,HA6 ,22/11/2023,-425.60
114909233,Physical Support,Adults,Physical Support 65 and over,3rd Party Payments,Residential Care,BOTHWELLS LTD,HA6 ,22/11/2023,"3,600.00"
114909233,Physical Support,Adults,Physical Support 65 and over,3rd Party Payments,Nursing Care,BOTHWELLS LTD,HA6 ,22/11/2023,"2,867.32"
114909233,Physical Support,Adults,Physical Support 65 and over,Income,Client Contribution - Nursing,BOTHWELLS LTD,HA6 ,22/11/2023,-781.40
114909233,Physical Support,Adults,Physical Support 65 and over,Income,Client Contribution - Nursing,BOTHWELLS LTD,HA6 ,22/11/2023,-909.16
114909233,Physical Support,Adults,Physical Support 65 and over,Income,Client Contribution - Nursing,BOTHWELLS LTD,HA6 ,22/11/2023,"-1,384.80"
114909233,Physical Support,Adults,Physical Support 65 and over,Income,Client Contribution - Nursing,BOTHWELLS LTD,HA6 ,22/11/2023,-691.20
114909233,Physical Support,Adults,Physical Support 65 and over,Income,Client Contribution - Nursing,BOTHWELLS LTD,HA6 ,22/11/2023,-779.00
114909233,Physical Support,Adults,Physical Support 18 - 64,3rd Party Payments,Nursing Care,BOTHWELLS LTD,HA6 ,22/11/2023,"2,867.32"
111754248,Physical Support,Adults,Physical Support 65 and over,3rd Party Payments,Nursing Care,BOTHWELLS LTD,HA6 ,01/11/2023,511.50
114909233,Physical Support,Adults,Physical Support 65 and over,3rd Party Payments,Nursing Care,BOTHWELLS LTD,HA6 ,22/11/2023,"3,763.24"
112477233,Responsive Repairs,Repairs,Responsive Repairs,3rd Party Payments,Contract Payments,BOUNDARY SCAFFOLDING LTD,SN6 ,03/11/2023,"2,920.00"
113078233,Responsive Repairs,Repairs,Responsive Repairs,3rd Party Payments,Contract Payments,BOUNDARY SCAFFOLDING LTD,SN6 ,06/11/2023,720.00
112712247,Responsive Repairs,Repairs,Responsive Repairs,3rd Party Payments,Contract Payments,BOUNDARY SCAFFOLDING LTD,SN6 ,03/11/2023,890.00
112478233,Responsive Repairs,Repairs,Responsive Repairs,3rd Party Payments,Contract Payments,BOUNDARY SCAFFOLDING LTD,SN6 ,03/11/2023,660.00
112478236,Responsive Repairs,Repairs,Responsive Repairs,3rd Party Payments,Contract Payments,BOUNDARY SCAFFOLDING LTD,SN6 ,03/11/2023,"3,460.00"
113552236,Responsive Repairs,Repairs,Responsive Repairs,3rd Party Payments,Contract Payments,BOUNDARY SCAFFOLDING LTD,SN6 ,08/11/2023,"1,219.00"
114372234,Responsive Repairs,Repairs,Responsive Repairs,3rd Party Payments,Contract Payments,BOUNDARY SCAFFOLDING LTD,SN6 ,15/11/2023,"3,090.00"
112476233,Responsive Repairs,Repairs,Responsive Repairs,3rd Party Payments,Contract Payments,BOUNDARY SCAFFOLDING LTD,SN6 ,03/11/2023,890.00
112712245,Responsive Repairs,Repairs,Responsive Repairs,3rd Party Payments,Contract Payments,BOUNDARY SCAFFOLDING LTD,SN6 ,03/11/2023,890.00
113552237,Responsive Repairs,Repairs,Responsive Repairs,3rd Party Payments,Contract Payments,BOUNDARY SCAFFOLDING LTD,SN6 ,08/11/2023,"1,120.00"
113671233,Responsive Repairs,Repairs,Responsive Repairs,3rd Party Payments,Contract Payments,BPM CONTRACTING SERVICES LTD,BA2 ,10/11/2023,"2,622.52"
113787233,Responsive Repairs,Repairs,Responsive Repairs,3rd Party Payments,Contract Payments,BPM CONTRACTING SERVICES LTD,BA2 ,10/11/2023,759.02
115642234,Responsive Repairs,Repairs,Responsive Repairs,3rd Party Payments,Contract Payments,BPM CONTRACTING SERVICES LTD,BA2 ,29/11/2023,"2,525.29"
113390234,Responsive Repairs,Repairs,Responsive Repairs,3rd Party Payments,Contract Payments,BPM CONTRACTING SERVICES LTD,BA2 ,08/11/2023,"1,155.83"
114368234,Planned Maintenance Programme,HRA Capital Financing,Kitchens,Capital,Contractor Payments,BPM CONTRACTING SERVICES LTD,BA2 ,15/11/2023,"5,000.00"
113389235,Responsive Repairs,Repairs,Responsive Repairs,3rd Party Payments,Contract Payments,BPM CONTRACTING SERVICES LTD,BA2 ,08/11/2023,"1,105.33"
113157233,Lydiard Park,Culture & Heritage,Lydiard : Hotel Operations,Supplies and Services,Materials,BRAKE BROS LTD,TN24,06/11/2023,142.27
113157233,Lydiard Park,Culture & Heritage,Lydiard : Hotel Operations,Supplies and Services,Food,BRAKE BROS LTD,TN24,06/11/2023,376.97
115577235,Early Help,Early Intervention & Prevention,"Holiday, Activities & Food Grant",3rd Party Payments,Contracts - Child Care,BRAMBLE HOUSE DAY NURSERY LTD,SN2 ,29/11/2023,864.00
114831234,High Needs Block,Dedicated Schools Grant (DSG),SEN Resourcing Assessment Panel,3rd Party Payments,Top up funding - Maintained providers Pre 16,BRAMBLE HOUSE DAY NURSERY LTD,SN2 ,22/11/2023,"1,260.00"
115124238,Social Care,Children & Families,Children's Resource and Home Finding Team,3rd Party Payments,Residential Care,BRANAS ISAF LIMITED,EN6 ,22/11/2023,"23,785.80"
112499233,Education,"Education, Inclusion and Skills",Special Educational Needs and Disability Assessment and Commissioning team (SENDACT),Supplies and Services,Fees,BRISTOL CITY COUNCIL,BS1 ,03/11/2023,777.33
112798233,Facilities Management,"People, Culture and Organisational Resilience",Office Accommodation,Premises Costs,Maintenance - Buildings,BRISTOL FIRE,BS37,03/11/2023,257.00
112495238,Property Management,Property,Corporate Repairs & Maintenance Programme,Premises Costs,Maintenance - Buildings,BRISTOL FIRE,BS37,03/11/2023,914.75
112798233,Property Service Charged Properties,Property,Service Charged - Theatre Square,Premises Costs,Maintenance - Buildings,BRISTOL FIRE,BS37,03/11/2023,257.00
113623239,Property Management,Property,Corporate Repairs & Maintenance Programme,Premises Costs,Maintenance - Buildings,BRISTOL FIRE,BS37,08/11/2023,467.25
112474233,Property Management,Property,Corporate Repairs & Maintenance Programme,Premises Costs,Maintenance - Buildings,BRISTOL FIRE,BS37,03/11/2023,673.00
112475233,Property Management,Property,Corporate Repairs & Maintenance Programme,Premises Costs,Maintenance - Buildings,BRISTOL FIRE,BS37,03/11/2023,425.00
112629233,Lydiard Park,Culture & Heritage,Lydiard : Hotel Operations,Supplies and Services,Services,BRITISH TELECOMMUNICATIONS PLC,S98 ,03/11/2023,"1,887.00"
113801233,,,Balance Sheet,Balance Sheet & Recharge,British Telecom invoices,BRITISH TELECOMMUNICATIONS PLC,S98 ,10/11/2023,"21,660.19"
115212233,Corporate,Corporate Finance,Corporate Financial Management,Supplies and Services,Fees,BROADSTONE CONSULTANTS & ACTUARIES LTD,BS1 ,24/11/2023,"5,413.50"
115144233,Disabled Children,Children & Families,DCT Daytime Short Breaks,3rd Party Payments,Day Care,BRUNEL EDUCATION,SN5 ,22/11/2023,632.07
112304234,Disabled Children,Children & Families,DCT Daytime Short Breaks,3rd Party Payments,Day Care,BRUNEL EDUCATION,SN25,01/11/2023,924.00
114647233,Disabled Children,Children & Families,DCT Daytime Short Breaks,3rd Party Payments,Day Care,BRUNEL EDUCATION,SN25,17/11/2023,"1,076.86"
115163233,Disabled Children,Children & Families,DCT Daytime Short Breaks,3rd Party Payments,Day Care,BRUNEL EDUCATION,SN5 ,24/11/2023,795.94
112286233,Disabled Children,Children & Families,DCT Daytime Short Breaks,3rd Party Payments,Day Care,BRUNEL EDUCATION,SN25,01/11/2023,831.60
111938233,Disabled Children,Children & Families,Aiming High for Disabled Children,Supplies and Services,Services,BRUNEL EDUCATION,SN25,01/11/2023,"1,655.60"
114481286,High Needs Block,Dedicated Schools Grant (DSG),SEN Resourcing Assessment Panel,3rd Party Payments,Top up funding - Academies and Free Schools Pre 16,BRUNEL EDUCATION,SN25,15/11/2023,"2,455.68"
114481322,High Needs Block,Dedicated Schools Grant (DSG),Post 16 - New Responsibilties,3rd Party Payments,Independent Service Provider- Post 16,BRUNEL EDUCATION,SN25,15/11/2023,"113,367.67"
114655282,Disabled Children,Children & Families,DCT Daytime Short Breaks,3rd Party Payments,Day Care,BRUNEL EDUCATION,SN25,17/11/2023,702.30
114650233,Disabled Children,Children & Families,DCT Daytime Short Breaks,3rd Party Payments,Day Care,BRUNEL EDUCATION,SN25,17/11/2023,702.30
114646233,Disabled Children,Children & Families,DCT Daytime Short Breaks,3rd Party Payments,Day Care,BRUNEL EDUCATION,SN25,17/11/2023,561.84
111937233,Disabled Children,Children & Families,Aiming High for Disabled Children,Supplies and Services,Services,BRUNEL EDUCATION,SN25,01/11/2023,"8,173.00"
114727234,Disabled Children,Children & Families,DCT Daytime Short Breaks,3rd Party Payments,Day Care,BRUNEL EDUCATION,SN25,20/11/2023,912.99
115113233,Disabled Children,Children & Families,DCT Daytime Short Breaks,3rd Party Payments,Day Care,BRUNEL EDUCATION,SN25,22/11/2023,831.60
112287233,Disabled Children,Children & Families,DCT Daytime Short Breaks,3rd Party Payments,Day Care,BRUNEL EDUCATION,SN25,01/11/2023,"1,570.80"
114688234,Disabled Children,Children & Families,DCT Daytime Short Breaks,3rd Party Payments,Day Care,BRUNEL EDUCATION,SN25,17/11/2023,561.84
114667233,Disabled Children,Children & Families,DCT Daytime Short Breaks,3rd Party Payments,Day Care,BRUNEL EDUCATION,SN25,17/11/2023,983.22
114682235,Disabled Children,Children & Families,DCT Daytime Short Breaks,3rd Party Payments,Day Care,BRUNEL EDUCATION,SN25,17/11/2023,983.22
115141233,Disabled Children,Children & Families,DCT Daytime Short Breaks,3rd Party Payments,Day Care,BRUNEL EDUCATION,SN5 ,22/11/2023,702.30
114654233,Disabled Children,Children & Families,DCT Daytime Short Breaks,3rd Party Payments,Day Care,BRUNEL EDUCATION,SN25,17/11/2023,936.40
114481289,High Needs Block,Dedicated Schools Grant (DSG),SEN Resourcing Assessment Panel,3rd Party Payments,Top up funding - Academies and Free Schools Pre 16,REDACTED PERSONAL DATA,SN25,15/11/2023,"152,203.10"
115109233,DSG Other Funding,Dedicated Schools Grant (DSG),DFE Additional Grants,Supplies and Services,Payments to Educational Bodies,REDACTED PERSONAL DATA,SN25,22/11/2023,"22,087.00"
114481284,High Needs Block,Dedicated Schools Grant (DSG),SEN Resourcing Assessment Panel,3rd Party Payments,Top up funding - Academies and Free Schools Pre 16,REDACTED PERSONAL DATA,SN25,15/11/2023,"48,000.00"
114481287,High Needs Block,Dedicated Schools Grant (DSG),SEN Resourcing Assessment Panel,3rd Party Payments,Top up funding - Academies and Free Schools Pre 16,REDACTED PERSONAL DATA,SN25,15/11/2023,"206,608.33"
114481312,High Needs Block,Dedicated Schools Grant (DSG),SEN Resourcing Assessment Panel,3rd Party Payments,Top up funding - Academies and Free Schools Pre 16,REDACTED PERSONAL DATA,SN25,15/11/2023,"21,706.17"
114481311,High Needs Block,Dedicated Schools Grant (DSG),SEN Resourcing Assessment Panel,3rd Party Payments,Top up funding - Academies and Free Schools Pre 16,REDACTED PERSONAL DATA,SN25,15/11/2023,"13,224.24"
114331233,High Needs Block,Dedicated Schools Grant (DSG),Advisory Teacher Services,Supplies and Services,Payments to Educational Bodies,REDACTED PERSONAL DATA,SN25,15/11/2023,"7,250.00"
115110233,DSG Other Funding,Dedicated Schools Grant (DSG),DFE Additional Grants,Supplies and Services,Payments to Educational Bodies,REDACTED PERSONAL DATA,SN25,22/11/2023,"40,230.00"
115107233,DSG Other Funding,Dedicated Schools Grant (DSG),DFE Additional Grants,Supplies and Services,Payments to Educational Bodies,REDACTED PERSONAL DATA,SN25,22/11/2023,"34,971.00"
114481292,High Needs Block,Dedicated Schools Grant (DSG),SEN Resourcing Assessment Panel,3rd Party Payments,Top up funding - Academies and Free Schools Pre 16,REDACTED PERSONAL DATA,SN25,15/11/2023,"373,575.79"
114239346,Early Years Block,Dedicated Schools Grant (DSG),Free Nursery Education Commissioning - three & four  year olds,3rd Party Payments,Contracts - Child Care,REDACTED PERSONAL DATA,SN25,15/11/2023,"6,260.76"
114481283,High Needs Block,Dedicated Schools Grant (DSG),SEN Resourcing Assessment Panel,3rd Party Payments,Top up funding - Academies and Free Schools Pre 16,REDACTED PERSONAL DATA,SN25,15/11/2023,"167,335.20"
115108233,DSG Other Funding,Dedicated Schools Grant (DSG),DFE Additional Grants,Supplies and Services,Payments to Educational Bodies,REDACTED PERSONAL DATA,SN25,22/11/2023,"23,664.00"
114481285,High Needs Block,Dedicated Schools Grant (DSG),SEN Resourcing Assessment Panel,3rd Party Payments,Top up funding - Academies and Free Schools Pre 16,REDACTED PERSONAL DATA,SN25,15/11/2023,"7,291.67"
114481288,High Needs Block,Dedicated Schools Grant (DSG),SEN Resourcing Assessment Panel,3rd Party Payments,Top up funding - Academies and Free Schools Pre 16,REDACTED PERSONAL DATA,SN25,15/11/2023,"73,418.82"
114481314,High Needs Block,Dedicated Schools Grant (DSG),SEN Resourcing Assessment Panel,3rd Party Payments,Top up funding - Academies and Free Schools Post 16,REDACTED PERSONAL DATA,SN25,15/11/2023,"53,295.85"
114481308,High Needs Block,Dedicated Schools Grant (DSG),SEN Resourcing Assessment Panel,3rd Party Payments,Top up funding - Academies and Free Schools Pre 16,REDACTED PERSONAL DATA,SN25,15/11/2023,"7,332.89"
114481268,High Needs Block,Dedicated Schools Grant (DSG),SEN Resourcing Assessment Panel,3rd Party Payments,Top up funding - Academies and Free Schools Pre 16,REDACTED PERSONAL DATA,SN25,15/11/2023,"1,246.04"
114332233,High Needs Block,Dedicated Schools Grant (DSG),Advisory Teacher Services,Supplies and Services,Payments to Educational Bodies,REDACTED PERSONAL DATA,SN25,15/11/2023,"11,325.00"
114507233,High Needs Block,Dedicated Schools Grant (DSG),SEN Resourcing Assessment Panel,Supplies and Services,Services,REDACTED PERSONAL DATA,SN25,15/11/2023,"15,552.00"
114481293,High Needs Block,Dedicated Schools Grant (DSG),SEN Resourcing Assessment Panel,3rd Party Payments,Top up funding - Academies and Free Schools Pre 16,REDACTED PERSONAL DATA,SN25,15/11/2023,"194,437.40"
114481301,High Needs Block,Dedicated Schools Grant (DSG),SEN Resourcing Assessment Panel,3rd Party Payments,Top up funding - Academies and Free Schools Pre 16,REDACTED PERSONAL DATA,SN25,15/11/2023,"118,485.83"
113804233,Property Management,Property,Property Assets,Supplies and Services,Publicity,BRUNEL SURVEYS LTD,CM20,10/11/2023,550.00
113377234,NEV,"Economy, Growth and Place",Southern Connector Road,Capital,Consultants,BRUTON KNOWLES,GL2 ,08/11/2023,"2,153.37"
112674233,Streetsmart,Streetsmart,Waste - Processing,Supplies and Services,Repairs & Maintenance,BS ENGINEERING,DN21,03/11/2023,"1,950.00"
115650234,Property & Assets,Property & Assets,General Enhancement Works Corporate Buildings,Capital,Contractor Payments,BUILDTECH SW LIMITED,GL53,29/11/2023,"6,661.48"
115650234,Property & Assets,Property & Assets,General Enhancement Works Corporate Buildings,Capital,Contractor Payments,BUILDTECH SW LIMITED,GL53,29/11/2023,"8,141.80"
114996233,Physical Support,Adults,Physical Support 65 and over,3rd Party Payments,Residential Care,BUPA CARE HOME (ANS) LTD,LS5 ,22/11/2023,"4,400.00"
114239249,Early Years Block,Dedicated Schools Grant (DSG),Free Nursery Education Commissioning - two year olds,3rd Party Payments,Contracts - Child Care,"BUSY BEES, BROOME MANOR",SN3 ,15/11/2023,"1,296.96"
114239248,Early Years Block,Dedicated Schools Grant (DSG),Free Nursery Education Commissioning - three & four  year olds,3rd Party Payments,Contracts - Child Care,"BUSY BEES, BROOME MANOR",SN3 ,15/11/2023,"11,474.40"
114239251,Early Years Block,Dedicated Schools Grant (DSG),Free Nursery Education Commissioning - three & four  year olds,3rd Party Payments,Contracts - Child Care,"BUSY BEES, PEATMOOR",SN5 ,15/11/2023,"11,662.00"
114239250,Early Years Block,Dedicated Schools Grant (DSG),Free Nursery Education Commissioning - two year olds,3rd Party Payments,Contracts - Child Care,"BUSY BEES, PEATMOOR",SN5 ,15/11/2023,"2,593.92"
114239246,Early Years Block,Dedicated Schools Grant (DSG),Free Nursery Education Commissioning - two year olds,3rd Party Payments,Contracts - Child Care,"BUSY BEES, ST ANDREWS RIDGE",SN25,15/11/2023,864.64
114239247,Early Years Block,Dedicated Schools Grant (DSG),Free Nursery Education Commissioning - three & four  year olds,3rd Party Payments,Contracts - Child Care,"BUSY BEES, ST ANDREWS RIDGE",SN25,15/11/2023,"17,248.00"
115442233,Major Build Schemes,HRA Capital Financing,Queens Drive,Capital,Contractor Payments,BW SIGNS LIMITED,SN11,27/11/2023,"6,620.00"
112731233,Town Centre,"Economy, Growth and Place",Fleming Way Improvement Scheme,Capital,Contractor Payments,C.A. TELECOM UK LTD,CT5 ,03/11/2023,"40,017.58"
114925233,Learning Disabilities,Adults,Learning Disability 65 and over,Income,Client Contribution - Residential,C.H.O.I.C.E LTD,RG12,22/11/2023,-773.20
114925233,Learning Disabilities,Adults,Learning Disability 65 and over,3rd Party Payments,Residential Care,C.H.O.I.C.E LTD,RG12,22/11/2023,"9,862.32"
114922233,Learning Disabilities,Adults,Learning Disability 18 - 64,3rd Party Payments,Residential Care,C.H.O.I.C.E LTD,RG12,22/11/2023,"9,531.52"
114927233,Learning Disabilities,Adults,Learning Disability 18 - 64,3rd Party Payments,Residential Care,C.H.O.I.C.E LTD,RG12,22/11/2023,"12,844.16"
111979238,Learning Disabilities,Adults,Learning Disability 18 - 64,3rd Party Payments,Residential Care,C.H.O.I.C.E LTD,RG12,01/11/2023,986.72
114927233,Learning Disabilities,Adults,Learning Disability 18 - 64,Income,Client Contribution - Residential,C.H.O.I.C.E LTD,RG12,22/11/2023,-454.80
111882233,Learning Disabilities,Adults,Learning Disability 18 - 64,3rd Party Payments,Residential Care,C.H.O.I.C.E LTD,RG12,01/11/2023,990.72
114922233,Learning Disabilities,Adults,Learning Disability 18 - 64,Income,Client Contribution - Residential,C.H.O.I.C.E LTD,RG12,22/11/2023,-511.20
114925233,Learning Disabilities,Adults,Learning Disability 65 and over,3rd Party Payments,Residential Care,C.H.O.I.C.E LTD,RG12,22/11/2023,"10,516.64"
114923233,Learning Disabilities,Adults,Learning Disability 18 - 64,3rd Party Payments,Residential Care,C.H.O.I.C.E LTD,RG12,22/11/2023,"13,814.08"
114926233,Learning Disabilities,Adults,Learning Disability 18 - 64,Income,Client Contribution - Residential,C.H.O.I.C.E LTD,RG12,22/11/2023,-617.76
114927233,Physical Support,Adults,Physical Support 18 - 64,Income,Client Contribution - Residential,C.H.O.I.C.E LTD,RG12,22/11/2023,-483.20
114927233,Learning Disabilities,Adults,Learning Disability 18 - 64,3rd Party Payments,Residential Care,C.H.O.I.C.E LTD,RG12,22/11/2023,"13,870.08"
111881233,Learning Disabilities,Adults,Learning Disability 18 - 64,3rd Party Payments,Residential Care,C.H.O.I.C.E LTD,RG12,01/11/2023,917.44
114925233,Learning Disabilities,Adults,Learning Disability 65 and over,Income,Client Contribution - Residential,C.H.O.I.C.E LTD,RG12,22/11/2023,-607.60
111883233,Physical Support,Adults,Physical Support 18 - 64,3rd Party Payments,Residential Care,C.H.O.I.C.E LTD,RG12,01/11/2023,817.82
114921233,Learning Disabilities,Adults,Learning Disability 18 - 64,3rd Party Payments,Residential Care,C.H.O.I.C.E LTD,RG12,22/11/2023,"13,440.00"
114926233,Learning Disabilities,Adults,Learning Disability 18 - 64,3rd Party Payments,Residential Care,C.H.O.I.C.E LTD,RG12,22/11/2023,"10,380.16"
111979237,Learning Disabilities,Adults,Learning Disability 18 - 64,3rd Party Payments,Residential Care,C.H.O.I.C.E LTD,RG12,01/11/2023,680.82
114923233,Learning Disabilities,Adults,Learning Disability 18 - 64,Income,Client Contribution - Residential,C.H.O.I.C.E LTD,RG12,22/11/2023,-427.20
114926233,Learning Disabilities,Adults,Learning Disability 18 - 64,Income,Client Contribution - Residential,C.H.O.I.C.E LTD,RG12,22/11/2023,-481.00
114926233,Learning Disabilities,Adults,Learning Disability 18 - 64,Income,Client Contribution - Residential,C.H.O.I.C.E LTD,RG12,22/11/2023,-639.20
114927233,Physical Support,Adults,Physical Support 18 - 64,3rd Party Payments,Residential Care,C.H.O.I.C.E LTD,RG12,22/11/2023,"11,449.52"
114926233,Learning Disabilities,Adults,Learning Disability 18 - 64,3rd Party Payments,Residential Care,C.H.O.I.C.E LTD,RG12,22/11/2023,"9,887.36"
114924233,Learning Disabilities,Adults,Learning Disability 18 - 64,3rd Party Payments,Residential Care,C.H.O.I.C.E LTD,SO23,22/11/2023,"8,531.76"
114921233,Learning Disabilities,Adults,Learning Disability 18 - 64,Income,Client Contribution - Residential,C.H.O.I.C.E LTD,RG12,22/11/2023,-384.56
114926233,Learning Disabilities,Adults,Learning Disability 18 - 64,3rd Party Payments,Residential Care,C.H.O.I.C.E LTD,RG12,22/11/2023,"9,797.76"
114927233,Learning Disabilities,Adults,Learning Disability 18 - 64,Income,Client Contribution - Residential,C.H.O.I.C.E LTD,RG12,22/11/2023,-276.60
113256233,High Needs Block,Dedicated Schools Grant (DSG),Out of Borough School Fees,3rd Party Payments,Other Local Authority Mainstream Schools- Pre 16,REDACTED PERSONAL DATA,BS15,08/11/2023,"-24,808.00"
113414233,High Needs Block,Dedicated Schools Grant (DSG),Out of Borough School Fees,3rd Party Payments,Other Local Authority Mainstream Schools- Pre 16,REDACTED PERSONAL DATA,BS15,08/11/2023,"4,134.66"
113413233,High Needs Block,Dedicated Schools Grant (DSG),Out of Borough School Fees,3rd Party Payments,Other Local Authority Mainstream Schools- Pre 16,REDACTED PERSONAL DATA,BS15,08/11/2023,"4,134.66"
113233234,High Needs Block,Dedicated Schools Grant (DSG),Out of Borough School Fees,3rd Party Payments,Other Local Authority Mainstream Schools- Pre 16,REDACTED PERSONAL DATA,BS15,08/11/2023,"24,808.00"
113066233,"Data, Performance and Insight",Digital & Business Change,"Performance, Intelligence and Insight",Supplies and Services,Services,CACI LTD,W14 ,06/11/2023,"9,480.00"
115675233,Social Care,Children & Families,Children's Resource and Home Finding Team,3rd Party Payments,Residential Care,CALCOT SERVICES FOR CHILDREN LTD,RG7 ,29/11/2023,"28,414.20"
115674233,Social Care,Children & Families,Children's Resource and Home Finding Team,3rd Party Payments,Residential Care,CALCOT SERVICES FOR CHILDREN LTD,RG7 ,29/11/2023,"28,928.40"
114803501,Social Care,Children & Families,Placement Adoption Service,3rd Party Payments,Special Guardianship Orders,REDACTED PERSONAL DATA,SN2 ,20/11/2023,832.00
115203461,Learning Disabilities,Adults,Learning Disability 18 - 64,Transfer Payments,Personal Budget - Direct Payments - Domiciliary Care,REDACTED PERSONAL DATA,SP11,24/11/2023,520.96
115203461,Learning Disabilities,Adults,Learning Disability 18 - 64,Transfer Payments,Personal Budget - Direct Payments - Domiciliary Care,REDACTED PERSONAL DATA,SP11,24/11/2023,821.76
115203461,Learning Disabilities,Adults,Learning Disability 18 - 64,Transfer Payments,Personal Budget - Direct Payments - Domiciliary Care,REDACTED PERSONAL DATA,SP11,24/11/2023,360.48
115203461,Learning Disabilities,Adults,Learning Disability 18 - 64,Income,Client Contribution - Personal Budget - DP,REDACTED PERSONAL DATA,SP11,24/11/2023,-4.92
115203461,Learning Disabilities,Adults,Learning Disability 18 - 64,Income,Client Contribution - Personal Budget - DP,REDACTED PERSONAL DATA,SP11,24/11/2023,-27.12
115203461,Learning Disabilities,Adults,Learning Disability 18 - 64,Transfer Payments,Personal Budget - Direct Payments - Domiciliary Care,REDACTED PERSONAL DATA,SP11,24/11/2023,94.80
115203461,Learning Disabilities,Adults,Learning Disability 18 - 64,Income,Client Contribution - Personal Budget - DP,REDACTED PERSONAL DATA,SP11,24/11/2023,-10.36
115203461,Learning Disabilities,Adults,Learning Disability 18 - 64,Income,Client Contribution - Personal Budget - DP,REDACTED PERSONAL DATA,SP11,24/11/2023,-42.80
115203461,Learning Disabilities,Adults,Learning Disability 18 - 64,Income,Client Contribution - Personal Budget - DP,REDACTED PERSONAL DATA,SP11,24/11/2023,-18.76
115203461,Learning Disabilities,Adults,Learning Disability 18 - 64,Transfer Payments,Personal Budget - Direct Payments - Domiciliary Care,REDACTED PERSONAL DATA,SP11,24/11/2023,198.32
115203559,Learning Disabilities,Adults,Learning Disability 18 - 64,Transfer Payments,Personal Budget - Direct Payments - Domiciliary Care,REDACTED PERSONAL DATA,SP11,24/11/2023,651.20
112697233,Parking & Bus lanes,Highway Operations and Car Parking,Car Parking,Supplies and Services,Equipment,CAME PARKARE,BS16,03/11/2023,440.00
112699233,Parking & Bus lanes,Highway Operations and Car Parking,Car Parking,Supplies and Services,Fees,CAME PARKARE,BS16,03/11/2023,"2,072.30"
115203320,Physical Support,Adults,Physical Support 18 - 64,Transfer Payments,Personal Budget - Direct Payments - Domiciliary Care,REDACTED PERSONAL DATA,SN25,24/11/2023,408.24
115203320,Physical Support,Adults,Physical Support 18 - 64,Transfer Payments,Personal Budget - Direct Payments - Domiciliary Care,REDACTED PERSONAL DATA,SN25,24/11/2023,586.08
115203320,Physical Support,Adults,Physical Support 18 - 64,Income,Client Contribution - Personal Budget - DP,REDACTED PERSONAL DATA,SN25,24/11/2023,-75.68
115203320,Physical Support,Adults,Physical Support 18 - 64,Income,Client Contribution - Personal Budget - DP,REDACTED PERSONAL DATA,SN25,24/11/2023,-52.72
112733233,Customer Strategy & Operations,"People, Culture and Organisational Resilience",Customer Services,Supplies and Services,Design & Printing Costs,CANFORD AUDIO LIMITED,NE38,03/11/2023,"2,100.00"
113076233,Acquisitions,HRA Capital Financing,HRA Acquisitions Programme,Capital,Contractor Payments,CANTILLON GROUP LTD,SN25,06/11/2023,"3,104.91"
113076233,Void Repairs,Supervision & Management,Void Property Repairs,3rd Party Payments,Contract Payments,CANTILLON GROUP LTD,SN25,06/11/2023,"60,000.00"
113076233,Void Repairs,Supervision & Management,Void Property Repairs,3rd Party Payments,Contract Payments,CANTILLON GROUP LTD,SN25,06/11/2023,"12,615.38"
113076233,Void Repairs,Supervision & Management,Void Property Repairs,3rd Party Payments,Contract Payments,CANTILLON GROUP LTD,SN25,06/11/2023,109.90
113076233,Void Repairs,Supervision & Management,Void Property Repairs,3rd Party Payments,Contract Payments,CANTILLON GROUP LTD,SN25,06/11/2023,145.87
113076233,Void Repairs,Supervision & Management,Void Property Repairs,3rd Party Payments,Contract Payments,CANTILLON GROUP LTD,SN25,06/11/2023,"14,035.06"
113076233,Void Repairs,Supervision & Management,Void Property Repairs,3rd Party Payments,Contract Payments,CANTILLON GROUP LTD,SN25,06/11/2023,"7,313.83"
113076233,Void Properties,HRA Capital Financing,Voids - Bathrooms,Capital,Contractor Payments,CANTILLON GROUP LTD,SN25,06/11/2023,"2,696.26"
113076233,Void Repairs,Supervision & Management,Void Property Repairs,3rd Party Payments,Contract Payments,CANTILLON GROUP LTD,SN25,06/11/2023,"8,799.92"
113076233,Void Properties,HRA Capital Financing,Voids - Kitchens,Capital,Contractor Payments,CANTILLON GROUP LTD,SN25,06/11/2023,"3,515.62"
113076233,Void Properties,HRA Capital Financing,"Voids - Fencing, Concreting & Environmental Works",Capital,Contractor Payments,CANTILLON GROUP LTD,SN25,06/11/2023,"3,802.50"
115613241,Other Repairs,Repairs,Cyclical Maintenance,Supplies and Services,Testing / Inspection,CANTILLON GROUP LTD,SN25,29/11/2023,88.30
113076233,Void Repairs,Supervision & Management,Void Property Repairs,3rd Party Payments,Contract Payments,CANTILLON GROUP LTD,SN25,06/11/2023,"1,150.76"
113076233,Void Repairs,Supervision & Management,Void Property Repairs,3rd Party Payments,Contract Payments,CANTILLON GROUP LTD,SN25,06/11/2023,"10,294.73"
113076233,Void Repairs,Supervision & Management,Void Property Repairs,3rd Party Payments,Contract Payments,CANTILLON GROUP LTD,SN25,06/11/2023,"6,111.05"
113076233,Void Properties,HRA Capital Financing,Voids - Kitchens,Capital,Contractor Payments,CANTILLON GROUP LTD,SN25,06/11/2023,"4,054.14"
113076233,Planned Maintenance Programme,HRA Capital Financing,Kitchens,Capital,Contractor Payments,CANTILLON GROUP LTD,SN25,06/11/2023,"6,257.82"
113076233,Void Properties,HRA Capital Financing,"Voids - Fencing, Concreting & Environmental Works",Capital,Contractor Payments,CANTILLON GROUP LTD,SN25,06/11/2023,"5,649.68"
115613245,Other Repairs,Repairs,Cyclical Maintenance,Supplies and Services,Testing / Inspection,CANTILLON GROUP LTD,SN25,29/11/2023,160.00
113076233,Void Repairs,Supervision & Management,Void Property Repairs,3rd Party Payments,Contract Payments,CANTILLON GROUP LTD,SN25,06/11/2023,87.28
113076233,Void Repairs,Supervision & Management,Void Property Repairs,3rd Party Payments,Contract Payments,CANTILLON GROUP LTD,SN25,06/11/2023,"1,320.00"
113076233,Void Repairs,Supervision & Management,Void Property Repairs,3rd Party Payments,Contract Payments,CANTILLON GROUP LTD,SN25,06/11/2023,"6,425.43"
113076233,Void Properties,HRA Capital Financing,Voids - Kitchens,Capital,Contractor Payments,CANTILLON GROUP LTD,SN25,06/11/2023,"4,242.70"
113076233,Planned Maintenance Programme,HRA Capital Financing,Kitchens,Capital,Contractor Payments,CANTILLON GROUP LTD,SN25,06/11/2023,"4,178.86"
113076233,Void Properties,HRA Capital Financing,Voids - Bathrooms,Capital,Contractor Payments,CANTILLON GROUP LTD,SN25,06/11/2023,"2,681.37"
115613245,Other Repairs,Repairs,Cyclical Maintenance,Supplies and Services,Testing / Inspection,CANTILLON GROUP LTD,SN25,29/11/2023,265.79
113076233,Planned Maintenance Programme,HRA Capital Financing,Bathrooms,Capital,Contractor Payments,CANTILLON GROUP LTD,SN25,06/11/2023,"2,264.47"
113076233,Void Repairs,Supervision & Management,Void Property Repairs,3rd Party Payments,Contract Payments,CANTILLON GROUP LTD,SN25,06/11/2023,"2,678.43"
112712238,Other Repairs,Repairs,Cyclical Maintenance,Supplies and Services,Testing / Inspection,CANTILLON GROUP LTD,SN25,03/11/2023,"1,642.78"
113076233,Planned Maintenance Programme,HRA Capital Financing,Bathrooms,Capital,Contractor Payments,CANTILLON GROUP LTD,SN25,06/11/2023,"2,776.30"
113076233,Planned Maintenance Programme,HRA Capital Financing,Kitchens,Capital,Contractor Payments,CANTILLON GROUP LTD,SN25,06/11/2023,"4,811.30"
113076233,Void Properties,HRA Capital Financing,"Voids - Fencing, Concreting & Environmental Works",Capital,Contractor Payments,CANTILLON GROUP LTD,SN25,06/11/2023,"7,987.51"
113076233,Planned Maintenance Programme,HRA Capital Financing,Bathrooms,Capital,Contractor Payments,CANTILLON GROUP LTD,SN25,06/11/2023,"2,265.02"
113076233,Void Properties,HRA Capital Financing,"Voids - Fencing, Concreting & Environmental Works",Capital,Contractor Payments,CANTILLON GROUP LTD,SN25,06/11/2023,"6,595.87"
115613241,Other Repairs,Repairs,Cyclical Maintenance,Supplies and Services,Testing / Inspection,CANTILLON GROUP LTD,SN25,29/11/2023,355.39
112712239,Other Repairs,Repairs,Cyclical Maintenance,Supplies and Services,Testing / Inspection,CANTILLON GROUP LTD,SN25,03/11/2023,875.47
113076233,Void Properties,HRA Capital Financing,"Voids - Fencing, Concreting & Environmental Works",Capital,Contractor Payments,CANTILLON GROUP LTD,SN25,06/11/2023,"5,592.55"
113076233,Void Repairs,Supervision & Management,Void Property Repairs,3rd Party Payments,Contract Payments,CANTILLON GROUP LTD,SN25,06/11/2023,"-60,000.00"
113531233,Other Repairs,Repairs,Cyclical Maintenance,Supplies and Services,Equipment,CAPITA BUSINESS SERVICES LTD,DL1 ,08/11/2023,925.50
111830233,Business Development,Supervision & Management,ICT & Administration,3rd Party Payments,Contract Payments,CAPITA BUSINESS SERVICES LTD,DL1 ,01/11/2023,"1,300.00"
112747233,Streetsmart,Streetsmart,Waterside Fleet Workshops,Supplies and Services,Materials,CAR AND TRUCK SERVICES (SWINDON) LTD,SN1 ,03/11/2023,714.00
112307234,Streetsmart,Streetsmart,Waterside Fleet Workshops,Supplies and Services,Materials,CAR AND TRUCK SERVICES (SWINDON) LTD,SN1 ,01/11/2023,"1,421.07"
113374235,Treasury,Corporate Finance,Treasury,Supplies and Services,Bank Charges,CARD PROCESSING ADVISORY SERVICES LTD (CPRAS),W1W ,08/11/2023,"1,046.76"
113373234,Corporate,Corporate Finance,Commercialisation,Supplies and Services,Bank Charges,CARD PROCESSING ADVISORY SERVICES LTD (CPRAS),W1W ,08/11/2023,512.20
113374233,Treasury,Corporate Finance,Treasury,Supplies and Services,Bank Charges,CARD PROCESSING ADVISORY SERVICES LTD (CPRAS),W1W ,08/11/2023,"1,172.01"
115189234,Human Resources and Organisational Development,"People, Culture and Organisational Resilience",HR Operations,Employees,Employee Related Schemes,CARE FIRST,GL3 ,24/11/2023,"5,450.50"
115131257,Learning Disabilities,Adults,Learning Disability 18 - 64,3rd Party Payments,Supported Lodgings (Childrens)/Supported Living (Adults),CAREFORYOU LTD,N13 ,22/11/2023,"4,882.00"
113344233,Social Care,Children & Families,Placement - Care Leaver Team,3rd Party Payments,Semi Independent,CARETECH COMMUNITY SERVICES LTD,EN6 ,08/11/2023,"1,757.14"
114063233,Disabled Children,Children & Families,DCT Daytime Short Breaks,3rd Party Payments,Respite Care,CARING FOR COMMUNITIES AND PEOPLE (CCP),GL50,13/11/2023,741.65
113585233,Social Care,Children & Families,Unaccompanied Asylum Seeking Children (UASC),3rd Party Payments,Personal Needs,CARING FOR COMMUNITIES AND PEOPLE (CCP),GL50,08/11/2023,630.00
114553233,Physical Support,Adults,Physical Support 18 - 64,3rd Party Payments,Personal Budget - Domiciliary care,CARING HEART CARERS LIMITED,SN25,15/11/2023,"1,198.08"
114553233,Physical Support,Adults,Physical Support 65 and over,3rd Party Payments,Personal Budget - Domiciliary care,CARING HEART CARERS LIMITED,SN25,15/11/2023,"1,036.80"
115203284,Learning Disabilities,Adults,Learning Disability 18 - 64,Income,Client Contribution - Personal Budget - DP,REDACTED PERSONAL DATA,SN2 ,24/11/2023,-5.08
115203284,Learning Disabilities,Adults,Learning Disability 18 - 64,Income,Client Contribution - Personal Budget - DP,REDACTED PERSONAL DATA,SN2 ,24/11/2023,-4.52
115203284,Learning Disabilities,Adults,Learning Disability 18 - 64,Transfer Payments,Personal Budget - Direct Payments - Domiciliary Care,REDACTED PERSONAL DATA,SN2 ,24/11/2023,683.76
115203284,Learning Disabilities,Adults,Learning Disability 18 - 64,Transfer Payments,Personal Budget - Direct Payments - Domiciliary Care,REDACTED PERSONAL DATA,SN2 ,24/11/2023,651.20
115203284,Learning Disabilities,Adults,Learning Disability 18 - 64,Income,Client Contribution - Personal Budget - DP,REDACTED PERSONAL DATA,SN2 ,24/11/2023,-4.72
115203284,Learning Disabilities,Adults,Learning Disability 18 - 64,Transfer Payments,Personal Budget - Direct Payments - Domiciliary Care,REDACTED PERSONAL DATA,SN2 ,24/11/2023,359.52
115203284,Learning Disabilities,Adults,Learning Disability 18 - 64,Income,Client Contribution - Personal Budget - DP,REDACTED PERSONAL DATA,SN2 ,24/11/2023,-2.48
115203284,Learning Disabilities,Adults,Learning Disability 18 - 64,Transfer Payments,Personal Budget - Direct Payments - Domiciliary Care,REDACTED PERSONAL DATA,SN2 ,24/11/2023,736.16
114441233,High Needs Block,Dedicated Schools Grant (DSG),SEN Resourcing Assessment Panel,Supplies and Services,Services,REDACTED PERSONAL DATA,SN3 ,15/11/2023,752.54
115132233,High Needs Block,Dedicated Schools Grant (DSG),SEN Resourcing Assessment Panel,Supplies and Services,Services,REDACTED PERSONAL DATA,SN3 ,22/11/2023,"1,207.50"
114443233,High Needs Block,Dedicated Schools Grant (DSG),SEN Resourcing Assessment Panel,Supplies and Services,Services,REDACTED PERSONAL DATA,SN3 ,15/11/2023,"1,557.82"
115203360,Learning Disabilities,Adults,Learning Disability 18 - 64,Transfer Payments,Personal Budget - Direct Payments - Other,REDACTED PERSONAL DATA,SN2 ,24/11/2023,45.08
115203360,Learning Disabilities,Adults,Learning Disability 18 - 64,Transfer Payments,Personal Budget - Direct Payments - Other,REDACTED PERSONAL DATA,SN2 ,24/11/2023,96.00
115203360,Learning Disabilities,Adults,Learning Disability 18 - 64,Transfer Payments,Personal Budget - Direct Payments - Other,REDACTED PERSONAL DATA,SN2 ,24/11/2023,60.16
115203360,Learning Disabilities,Adults,Learning Disability 18 - 64,Transfer Payments,Personal Budget - Direct Payments - Other,REDACTED PERSONAL DATA,SN2 ,24/11/2023,360.96
115203360,Learning Disabilities,Adults,Learning Disability 18 - 64,Transfer Payments,Personal Budget - Direct Payments - Other,REDACTED PERSONAL DATA,SN2 ,24/11/2023,270.48
115203360,Learning Disabilities,Adults,Learning Disability 18 - 64,Transfer Payments,Personal Budget - Direct Payments - Other,REDACTED PERSONAL DATA,SN2 ,24/11/2023,151.20
115203360,Learning Disabilities,Adults,Learning Disability 18 - 64,Income,Client Contribution - Personal Budget - DP,REDACTED PERSONAL DATA,SN2 ,24/11/2023,-2.20
115203360,Learning Disabilities,Adults,Learning Disability 18 - 64,Transfer Payments,Personal Budget - Direct Payments - Other,REDACTED PERSONAL DATA,SN2 ,24/11/2023,94.80
115203360,Learning Disabilities,Adults,Learning Disability 18 - 64,Transfer Payments,Personal Budget - Direct Payments - Other,REDACTED PERSONAL DATA,SN2 ,24/11/2023,405.76
115203360,Learning Disabilities,Adults,Learning Disability 18 - 64,Transfer Payments,Personal Budget - Direct Payments - Other,REDACTED PERSONAL DATA,SN2 ,24/11/2023,157.92
115203360,Learning Disabilities,Adults,Learning Disability 18 - 64,Transfer Payments,Personal Budget - Direct Payments - Other,REDACTED PERSONAL DATA,SN2 ,24/11/2023,410.80
115203360,Learning Disabilities,Adults,Learning Disability 18 - 64,Transfer Payments,Personal Budget - Direct Payments - Other,REDACTED PERSONAL DATA,SN2 ,24/11/2023,142.20
115203360,Learning Disabilities,Adults,Learning Disability 18 - 64,Transfer Payments,Personal Budget - Direct Payments - Domiciliary Care,REDACTED PERSONAL DATA,SN2 ,24/11/2023,"1,408.50"
115203360,Learning Disabilities,Adults,Learning Disability 18 - 64,Income,Client Contribution - Personal Budget - DP,REDACTED PERSONAL DATA,SN2 ,24/11/2023,-1.32
115203360,Learning Disabilities,Adults,Learning Disability 18 - 64,Income,Client Contribution - Personal Budget - DP,REDACTED PERSONAL DATA,SN2 ,24/11/2023,-0.64
115203360,Learning Disabilities,Adults,Learning Disability 18 - 64,Income,Client Contribution - Personal Budget - DP,REDACTED PERSONAL DATA,SN2 ,24/11/2023,-5.68
115203360,Learning Disabilities,Adults,Learning Disability 18 - 64,Income,Client Contribution - Personal Budget - DP,REDACTED PERSONAL DATA,SN2 ,24/11/2023,-5.64
115203360,Learning Disabilities,Adults,Learning Disability 18 - 64,Income,Client Contribution - Personal Budget - DP,REDACTED PERSONAL DATA,SN2 ,24/11/2023,-5.00
115203360,Learning Disabilities,Adults,Learning Disability 18 - 64,Income,Client Contribution - Personal Budget - DP,REDACTED PERSONAL DATA,SN2 ,24/11/2023,-19.48
115203360,Learning Disabilities,Adults,Learning Disability 18 - 64,Income,Client Contribution - Personal Budget - DP,REDACTED PERSONAL DATA,SN2 ,24/11/2023,-1.96
115203360,Learning Disabilities,Adults,Learning Disability 18 - 64,Income,Client Contribution - Personal Budget - DP,REDACTED PERSONAL DATA,SN2 ,24/11/2023,-1.64
115203360,Learning Disabilities,Adults,Learning Disability 18 - 64,Income,Client Contribution - Personal Budget - DP,REDACTED PERSONAL DATA,SN2 ,24/11/2023,-3.76
115203360,Learning Disabilities,Adults,Learning Disability 18 - 64,Income,Client Contribution - Personal Budget - DP,REDACTED PERSONAL DATA,SN2 ,24/11/2023,-2.08
115203360,Learning Disabilities,Adults,Learning Disability 18 - 64,Transfer Payments,Personal Budget - Direct Payments - Other,REDACTED PERSONAL DATA,SN2 ,24/11/2023,118.80
115203360,Learning Disabilities,Adults,Learning Disability 18 - 64,Transfer Payments,Personal Budget - Direct Payments - Other,REDACTED PERSONAL DATA,SN2 ,24/11/2023,405.72
115203360,Learning Disabilities,Adults,Learning Disability 18 - 64,Income,Client Contribution - Personal Budget - DP,REDACTED PERSONAL DATA,SN2 ,24/11/2023,-0.84
114753233,Social Care,Children & Families,Placement Fostering Service,3rd Party Payments,Festival Payment,REDACTED PERSONAL DATA,SN2 ,20/11/2023,-480.00
114753233,Social Care,Children & Families,Placement Fostering Service,3rd Party Payments,Foster Care Basic Payments,REDACTED PERSONAL DATA,SN2 ,20/11/2023,"1,028.57"
114753233,Social Care,Children & Families,Placement Fostering Service,3rd Party Payments,Festival Payment,REDACTED PERSONAL DATA,SN2 ,20/11/2023,480.00
114753233,Social Care,Children & Families,Placement Fostering Service,3rd Party Payments,Carers Skills Payments - Advanced,REDACTED PERSONAL DATA,SN2 ,20/11/2023,634.29
114376233,Responsive Repairs,Repairs,Responsive Repairs,3rd Party Payments,Contract Payments,CARPET WAREHOUSE SWINDON LTD,SN2 ,15/11/2023,"1,041.81"
114370234,Responsive Repairs,Repairs,Responsive Repairs,3rd Party Payments,Contract Payments,CARPET WAREHOUSE SWINDON LTD,SN2 ,15/11/2023,"1,132.25"
114372233,Responsive Repairs,Repairs,Responsive Repairs,3rd Party Payments,Contract Payments,CARPET WAREHOUSE SWINDON LTD,SN2 ,15/11/2023,"1,177.02"
114374233,Responsive Repairs,Repairs,Responsive Repairs,3rd Party Payments,Contract Payments,CARPET WAREHOUSE SWINDON LTD,SN2 ,15/11/2023,"1,144.00"
114377233,Responsive Repairs,Repairs,Responsive Repairs,3rd Party Payments,Contract Payments,CARPET WAREHOUSE SWINDON LTD,SN2 ,15/11/2023,912.08
114371234,Responsive Repairs,Repairs,Responsive Repairs,3rd Party Payments,Contract Payments,CARPET WAREHOUSE SWINDON LTD,SN2 ,15/11/2023,847.06
114375233,Responsive Repairs,Repairs,Responsive Repairs,3rd Party Payments,Contract Payments,CARPET WAREHOUSE SWINDON LTD,SN2 ,15/11/2023,975.29
114373233,Responsive Repairs,Repairs,Responsive Repairs,3rd Party Payments,Contract Payments,CARPET WAREHOUSE SWINDON LTD,SN2 ,15/11/2023,800.00
112712248,Responsive Repairs,Repairs,Responsive Repairs,3rd Party Payments,Contract Payments,CARPET WAREHOUSE SWINDON LTD,SN2 ,03/11/2023,688.73
112712250,Responsive Repairs,Repairs,Responsive Repairs,3rd Party Payments,Contract Payments,CARPET WAREHOUSE SWINDON LTD,SN2 ,03/11/2023,855.78
112473233,Responsive Repairs,Repairs,Responsive Repairs,3rd Party Payments,Contract Payments,CARPET WAREHOUSE SWINDON LTD,SN2 ,03/11/2023,908.50
Corporate Card Transaction,Social Care,"Children, Families and Community Health Services",Placement - Care Leaver Team,Supplies and Services,Materials,Carpets 4 Less,,23/11/2023, 528.56 
115121233,Social Care,Children & Families,Legal Fees,Supplies and Services,Fees,CARTER BROWN LTD,B15 ,22/11/2023,"2,279.00"
115064233,Social Care,Children & Families,Legal Fees,Supplies and Services,Fees,CARTER BROWN LTD,B15 ,22/11/2023,"2,094.00"
114816233,Social Care,Children & Families,Legal Fees,Supplies and Services,Fees,CARTER BROWN LTD,B15 ,20/11/2023,"2,297.50"
113610233,Disabled Children,Children & Families,DCT Daytime Short Breaks,3rd Party Payments,Respite Care,CARTER BROWN LTD,B15 ,08/11/2023,"1,333.60"
114510239,DMJ Tower,Housing Services,DMJ Commercial,Premises Costs,Maintenance - Buildings,CARTER PUMPS LTD,SN10,15/11/2023,799.00
115203380,Learning Disabilities,Adults,Learning Disability 18 - 64,Income,Client Contribution - Personal Budget - DP,REDACTED PERSONAL DATA,SN6 ,24/11/2023,-19.16
115203380,Learning Disabilities,Adults,Learning Disability 18 - 64,Income,Client Contribution - Personal Budget - DP,REDACTED PERSONAL DATA,SN6 ,24/11/2023,-16.20
115203380,Learning Disabilities,Adults,Learning Disability 18 - 64,Income,Client Contribution - Personal Budget - DP,REDACTED PERSONAL DATA,SN6 ,24/11/2023,-13.32
115203380,Learning Disabilities,Adults,Learning Disability 18 - 64,Income,Client Contribution - Personal Budget - DP,REDACTED PERSONAL DATA,SN6 ,24/11/2023,87.92
115203380,Learning Disabilities,Adults,Learning Disability 18 - 64,Transfer Payments,Personal Budget - Direct Payments - Other,REDACTED PERSONAL DATA,SN6 ,24/11/2023,"2,352.00"
115203380,Learning Disabilities,Adults,Learning Disability 18 - 64,Transfer Payments,Personal Budget - Direct Payments - Other,REDACTED PERSONAL DATA,SN6 ,24/11/2023,198.32
115203380,Learning Disabilities,Adults,Learning Disability 18 - 64,Transfer Payments,Personal Budget - Direct Payments - Other,REDACTED PERSONAL DATA,SN6 ,24/11/2023,"-2,352.00"
115203380,Learning Disabilities,Adults,Learning Disability 18 - 64,Income,Client Contribution - Personal Budget - DP,REDACTED PERSONAL DATA,SN6 ,24/11/2023,-8.52
115203380,Learning Disabilities,Adults,Learning Disability 18 - 64,Income,Client Contribution - Personal Budget - DP,REDACTED PERSONAL DATA,SN6 ,24/11/2023,-13.52
115203380,Learning Disabilities,Adults,Learning Disability 18 - 64,Income,Client Contribution - Personal Budget - DP,REDACTED PERSONAL DATA,SN6 ,24/11/2023,-12.08
115203380,Learning Disabilities,Adults,Learning Disability 18 - 64,Income,Client Contribution - Personal Budget - DP,REDACTED PERSONAL DATA,SN6 ,24/11/2023,-22.96
115203380,Learning Disabilities,Adults,Learning Disability 18 - 64,Income,Client Contribution - Personal Budget - DP,REDACTED PERSONAL DATA,SN6 ,24/11/2023,-18.48
115203380,Learning Disabilities,Adults,Learning Disability 18 - 64,Transfer Payments,Personal Budget - Direct Payments - Other,REDACTED PERSONAL DATA,SN6 ,24/11/2023,94.80
115203380,Learning Disabilities,Adults,Learning Disability 18 - 64,Transfer Payments,Personal Budget - Direct Payments - Other,REDACTED PERSONAL DATA,SN6 ,24/11/2023,147.60
115203380,Learning Disabilities,Adults,Learning Disability 18 - 64,Transfer Payments,Personal Budget - Direct Payments - Other,REDACTED PERSONAL DATA,SN6 ,24/11/2023,150.40
115203380,Learning Disabilities,Adults,Learning Disability 18 - 64,Transfer Payments,Personal Budget - Direct Payments - Domiciliary Care,REDACTED PERSONAL DATA,SN6 ,24/11/2023,180.36
115203380,Learning Disabilities,Adults,Learning Disability 18 - 64,Income,Client Contribution - Personal Budget - DP,REDACTED PERSONAL DATA,SN6 ,24/11/2023,-25.28
115203380,Learning Disabilities,Adults,Learning Disability 18 - 64,Income,Client Contribution - Personal Budget - DP,REDACTED PERSONAL DATA,SN6 ,24/11/2023,-17.88
115203380,Learning Disabilities,Adults,Learning Disability 18 - 64,Transfer Payments,Personal Budget - Direct Payments - Domiciliary Care,REDACTED PERSONAL DATA,SN6 ,24/11/2023,205.44
115203380,Learning Disabilities,Adults,Learning Disability 18 - 64,Income,Client Contribution - Personal Budget - DP,REDACTED PERSONAL DATA,SN6 ,24/11/2023,-18.80
115203380,Learning Disabilities,Adults,Learning Disability 18 - 64,Income,Client Contribution - Personal Budget - DP,REDACTED PERSONAL DATA,SN6 ,24/11/2023,-26.16
112305233,Traded Services,"Education, Inclusion and Skills",Plas Pencelli Outdoor Education Centre,Supplies and Services,Materials,CASTELL HOWELL FOODS LIMITED,SA14,01/11/2023,876.11
112988233,Traded Services,"Education, Inclusion and Skills",Plas Pencelli Outdoor Education Centre,Supplies and Services,Materials,CASTELL HOWELL FOODS LIMITED,SA14,03/11/2023,841.31
112305233,Traded Services,"Education, Inclusion and Skills",Plas Pencelli Outdoor Education Centre,Supplies and Services,Materials,CASTELL HOWELL FOODS LIMITED,SA14,01/11/2023,284.76
112988233,Traded Services,"Education, Inclusion and Skills",Plas Pencelli Outdoor Education Centre,Supplies and Services,Materials,CASTELL HOWELL FOODS LIMITED,SA14,03/11/2023,288.15
114055233,Traded Services,"Education, Inclusion and Skills",Plas Pencelli Outdoor Education Centre,Supplies and Services,Materials,CASTELL HOWELL FOODS LIMITED,SA14,13/11/2023,189.65
114055233,Traded Services,"Education, Inclusion and Skills",Plas Pencelli Outdoor Education Centre,Supplies and Services,Materials,CASTELL HOWELL FOODS LIMITED,SA14,13/11/2023,750.40
115131233,Learning Disabilities,Adults,Learning Disability 18 - 64,3rd Party Payments,Supported Lodgings (Childrens)/Supported Living (Adults),CATHEDRAL HOMES,GL1 ,22/11/2023,675.00
115131233,Learning Disabilities,Adults,Learning Disability 18 - 64,3rd Party Payments,Supported Lodgings (Childrens)/Supported Living (Adults),CATHEDRAL HOMES,GL1 ,22/11/2023,"1,706.28"
115131233,Learning Disabilities,Adults,Learning Disability 18 - 64,Income,Client Contribution - Supported Living,CATHEDRAL HOMES,GL1 ,22/11/2023,-45.28
115131233,Learning Disabilities,Adults,Learning Disability 18 - 64,Income,Client Contribution - Supported Living,CATHEDRAL HOMES,GL1 ,22/11/2023,-17.92
115131233,Learning Disabilities,Adults,Learning Disability 18 - 64,3rd Party Payments,Supported Lodgings (Childrens)/Supported Living (Adults),CATHEDRAL HOMES,GL1 ,22/11/2023,"4,462.52"
115131233,Learning Disabilities,Adults,Learning Disability 18 - 64,3rd Party Payments,Supported Lodgings (Childrens)/Supported Living (Adults),CATHEDRAL HOMES,GL1 ,22/11/2023,"3,225.00"
115131233,Learning Disabilities,Adults,Learning Disability 18 - 64,Income,Client Contribution - Supported Living,CATHEDRAL HOMES,GL1 ,22/11/2023,-118.40
115131233,Learning Disabilities,Adults,Learning Disability 18 - 64,3rd Party Payments,Supported Lodgings (Childrens)/Supported Living (Adults),CATHEDRAL HOMES,GL1 ,22/11/2023,"2,325.00"
112091233,Learning Disabilities,Adults,Learning Disability 18 - 64,3rd Party Payments,Supported Lodgings (Childrens)/Supported Living (Adults),CATHEDRAL HOMES,GL1 ,01/11/2023,"2,000.89"
112709233,Museums & Heritage,Culture & Heritage,Steam:Operations,3rd Party Payments,Contract Payments,CATHEDRAL LEASING LIMITED,B77 ,03/11/2023,"1,089.48"
113837233,Learning Disabilities,Adults,Learning Disability 18 - 64,3rd Party Payments,Supported Accommodation Scheme,REDACTED PERSONAL DATA,SN6 ,22/11/2023,"1,480.00"
113837233,Learning Disabilities,Adults,Learning Disability 18 - 64,3rd Party Payments,Supported Accommodation Scheme,REDACTED PERSONAL DATA,SN6 ,22/11/2023,"2,280.00"
112728233,Town Centre,"Economy, Growth and Place",Kimmerfields enabling works,Capital,Contractor Payments,CC GROUND INVESTIGATIONS LTD,GL3 ,03/11/2023,"8,829.50"
115125233,Town Centre,"Economy, Growth and Place",Kimmerfields enabling works,Capital,Contractor Payments,CC GROUND INVESTIGATIONS LTD,GL3 ,22/11/2023,"1,010.00"
114518233,Mental Health,Adults,Mental Health 18-64,3rd Party Payments,Personal Budget - Domiciliary care,CELTIC CARE SERVICES LTD,SN15,15/11/2023,92.16
114518233,Mental Health,Adults,Mental Health 65 and over,3rd Party Payments,Personal Budget - Domiciliary care,CELTIC CARE SERVICES LTD,SN15,15/11/2023,645.12
114518233,Physical Support,Adults,Physical Support 65 and over,3rd Party Payments,Personal Budget - Domiciliary care,CELTIC CARE SERVICES LTD,SN15,15/11/2023,"1,612.80"
115164233,Town Centre,"Economy, Growth and Place",Towns Fund,Supplies and Services,Fees,CENTRE FOR ACCESSIBLE ENVIRONMENTS (CAE),BD11,24/11/2023,"1,466.25"
114041233,Streetsmart,Streetsmart,Waterside Fleet Hires,Transport Costs,Pool Cars,CERTAS ENERGY UK LTD,WA3 ,13/11/2023,"10,471.61"
112278234,Public Health,Public Health,Child 0-19 Public Health Programmes,3rd Party Payments,Contract Payments,CHAMELEON PDE LTD,CA6 ,01/11/2023,"3,000.00"
114095233,Public Health,Public Health,DAAT,3rd Party Payments,Contract Payments,CHANGE GROW LIVE SERVICES LTD,BN1 ,13/11/2023,"84,000.00"
112796233,Senior Management Team,Children & Families,Family Safeguarding Model,3rd Party Payments,Contract Payments,CHANGE GROW LIVE SERVICES LTD,BN1 ,03/11/2023,"51,669.00"
113384233,Public Health,Public Health,Disabled Facilities Grants,Capital,"Equipment, Fixtures & Fittings",CHANNEL 3 CONSULTING LIMITED,CF10,08/11/2023,"17,499.90"
111992234,Streetsmart,Streetsmart,Waterside Canteen,Supplies and Services,Confectionary,CHAPPLE & JENKINS LTD,BS15,01/11/2023,582.30
113187236,Void Repairs,Supervision & Management,Void Property Repairs,3rd Party Payments,Contract Payments,CHARLES HARDING ESTATE AGENTS LIMITED,SN1 ,06/11/2023,35.00
114123233,Other Repairs,Repairs,Unallocated job costs from OPEN system,Premises Costs,Maintenance - Buildings,CHARLES HARDING ESTATE AGENTS LIMITED,SN1 ,15/11/2023,30.00
114122233,Other Repairs,Repairs,Unallocated job costs from OPEN system,Premises Costs,Maintenance - Buildings,CHARLES HARDING ESTATE AGENTS LIMITED,SN1 ,15/11/2023,30.00
111798235,Homelessness and Travellers,Housing Services,Bed and Breakfast Accommodation,Transfer Payments,Payment of Costs,CHARLES HOPES HOLDINGS LIMITED,SO15,01/11/2023,"2,250.00"
111798238,Homelessness and Travellers,Housing Services,Bed and Breakfast Accommodation,Transfer Payments,Payment of Costs,CHARLES HOPES HOLDINGS LIMITED,SO15,01/11/2023,"4,500.00"
111757233,Homelessness and Travellers,Housing Services,Bed and Breakfast Accommodation,Transfer Payments,Payment of Costs,CHARLES HOPES HOLDINGS LIMITED,SO15,01/11/2023,"2,100.00"
111809233,Homelessness and Travellers,Housing Services,Bed and Breakfast Accommodation,Transfer Payments,Payment of Costs,CHARLES HOPES HOLDINGS LIMITED,SO15,01/11/2023,"2,250.00"
111806233,Homelessness and Travellers,Housing Services,Bed and Breakfast Accommodation,Transfer Payments,Payment of Costs,CHARLES HOPES HOLDINGS LIMITED,SO15,01/11/2023,225.00
111807233,Homelessness and Travellers,Housing Services,Bed and Breakfast Accommodation,Transfer Payments,Payment of Costs,CHARLES HOPES HOLDINGS LIMITED,SO15,01/11/2023,"2,250.00"
111757233,Homelessness and Travellers,Housing Services,Bed and Breakfast Accommodation,Transfer Payments,Payment of Costs,CHARLES HOPES HOLDINGS LIMITED,SO15,01/11/2023,150.00
111804233,Homelessness and Travellers,Housing Services,Bed and Breakfast Accommodation,Transfer Payments,Payment of Costs,CHARLES HOPES HOLDINGS LIMITED,SO15,01/11/2023,"2,250.00"
111806233,Homelessness and Travellers,Housing Services,Bed and Breakfast Accommodation,Transfer Payments,Payment of Costs,CHARLES HOPES HOLDINGS LIMITED,SO15,01/11/2023,"2,100.00"
111802233,Homelessness and Travellers,Housing Services,Bed and Breakfast Accommodation,Transfer Payments,Payment of Costs,CHARLES HOPES HOLDINGS LIMITED,SO15,01/11/2023,"4,500.00"
111808233,Homelessness and Travellers,Housing Services,Bed and Breakfast Accommodation,Transfer Payments,Payment of Costs,CHARLES HOPES HOLDINGS LIMITED,SO15,01/11/2023,"2,250.00"
114032233,Museums & Heritage,Culture & Heritage,Steam:Income Generation,Supplies and Services,Equipment,CHARLES SAUNDERS LTD,BS37,13/11/2023,307.37
111778233,Lydiard Park,Culture & Heritage,Lydiard : Coach House Caf�,Supplies and Services,Materials,CHARLES SAUNDERS LTD,BS37,01/11/2023,22.38
111778233,Lydiard Park,Culture & Heritage,Lydiard : Coach House Caf�,Supplies and Services,Confectionary,CHARLES SAUNDERS LTD,BS37,01/11/2023,192.68
113853233,Lydiard Park,Culture & Heritage,Lydiard : Coach House Caf�,Supplies and Services,Confectionary,CHARLES SAUNDERS LTD,BS37,10/11/2023,336.58
113853233,Lydiard Park,Culture & Heritage,Lydiard : Coach House Caf�,Supplies and Services,Food,CHARLES SAUNDERS LTD,BS37,10/11/2023,129.27
114032233,Museums & Heritage,Culture & Heritage,Steam:Operations,Supplies and Services,Materials,CHARLES SAUNDERS LTD,BS37,13/11/2023,193.75
111778233,Lydiard Park,Culture & Heritage,Lydiard : Coach House Caf�,Supplies and Services,Materials,CHARLES SAUNDERS LTD,BS37,01/11/2023,111.80
111778233,Lydiard Park,Culture & Heritage,Lydiard : Coach House Caf�,Supplies and Services,Food,CHARLES SAUNDERS LTD,BS37,01/11/2023,128.66
115289233,Early Years Block,Dedicated Schools Grant (DSG),Free Nursery Education Commissioning - three & four  year olds,3rd Party Payments,Contracts - Child Care,REDACTED PERSONAL DATA,SN4 ,24/11/2023,"1,929.38"
114252233,Disabled Children,Children & Families,DCT Daytime Short Breaks,Transfer Payments,Personal Budget - Direct Payments - Other,REDACTED PERSONAL DATA,SN1 ,15/11/2023,"2,401.00"
114239348,Early Years Block,Dedicated Schools Grant (DSG),Free Nursery Education Commissioning - two year olds,3rd Party Payments,Contracts - Child Care,CHILD BASE NURSERIES,MK16,15/11/2023,"2,039.11"
114239347,Early Years Block,Dedicated Schools Grant (DSG),Free Nursery Education Commissioning - three & four  year olds,3rd Party Payments,Contracts - Child Care,CHILD BASE NURSERIES,MK16,15/11/2023,"14,179.40"
114514233,Void Repairs,Supervision & Management,Void Property Repairs,3rd Party Payments,Contract Payments,CHILD SCAFFOLDING LTD,SN1 ,15/11/2023,600.00
113552234,Responsive Repairs,Repairs,Responsive Repairs,3rd Party Payments,Contract Payments,CHILD SCAFFOLDING LTD,SN1 ,08/11/2023,480.00
113188234,Responsive Repairs,Repairs,Responsive Repairs,3rd Party Payments,Contract Payments,CHILD SCAFFOLDING LTD,SN1 ,06/11/2023,460.00
113777235,Void Repairs,Supervision & Management,Void Property Repairs,3rd Party Payments,Contract Payments,CHILD SCAFFOLDING LTD,SN1 ,10/11/2023,440.00
113552233,Responsive Repairs,Repairs,Responsive Repairs,3rd Party Payments,Contract Payments,CHILD SCAFFOLDING LTD,SN1 ,08/11/2023,660.00
113188235,Responsive Repairs,Repairs,Responsive Repairs,3rd Party Payments,Contract Payments,CHILD SCAFFOLDING LTD,SN1 ,06/11/2023,740.00
112495237,Responsive Repairs,Repairs,Responsive Repairs,3rd Party Payments,Contract Payments,CHILD SCAFFOLDING LTD,SN1 ,03/11/2023,880.00
113552235,Responsive Repairs,Repairs,Responsive Repairs,3rd Party Payments,Contract Payments,CHILD SCAFFOLDING LTD,SN1 ,08/11/2023,580.00
114510233,Responsive Repairs,Repairs,Responsive Repairs,3rd Party Payments,Contract Payments,CHILD SCAFFOLDING LTD,SN1 ,15/11/2023,680.00
113320233,Responsive Repairs,Repairs,Responsive Repairs,3rd Party Payments,Contract Payments,CHILD SCAFFOLDING LTD,SN1 ,08/11/2023,"5,300.00"
114638234,Parking & Bus lanes,Highway Operations and Car Parking,Car Parking,Supplies and Services,Fees,CHIPSIDE LTD,SN15,17/11/2023,"1,038.80"
113271234,Treasury,Corporate Finance,Community Infrastructure Levy,Supplies and Services,Fees,CHISELDON PARISH COUNCIL,SN4 ,08/11/2023,"62,030.30"
113480233,Schools Maintenance,Skills & Attainment,DFC Allocations to Schools,Capital,Grant Payments,CHISELDON PRIMARY SCHOOL,SN4 ,08/11/2023,"6,097.00"
115096233,DSG Other Funding,Dedicated Schools Grant (DSG),DFE Additional Grants,Supplies and Services,Payments to Educational Bodies,CHISELDON PRIMARY SCHOOL,SN4 ,22/11/2023,"9,198.00"
115044241,DSG Other Funding,Dedicated Schools Grant (DSG),DFE Additional Grants,Supplies and Services,Payments to Educational Bodies,CHISELDON PRIMARY SCHOOL,SN4 ,22/11/2023,846.56
115074233,DSG Other Funding,Dedicated Schools Grant (DSG),DFE Additional Grants,Supplies and Services,Payments to Educational Bodies,CHISELDON PRIMARY SCHOOL,SN4 ,22/11/2023,"1,558.75"
114299233,Schools - Primary,Dedicated Schools Grant (DSG),Primary School Budgets,3rd Party Payments,Mainstream Delegated Funding,CHISELDON PRIMARY SCHOOL,SN4 ,15/11/2023,"71,288.00"
114463233,High Needs Block,Dedicated Schools Grant (DSG),SEN Resourcing Assessment Panel,3rd Party Payments,Top up funding - Maintained providers Pre 16,CHISELDON PRIMARY SCHOOL,SN4 ,15/11/2023,"1,231.25"
114563241,DSG Other Funding,Dedicated Schools Grant (DSG),DFE Additional Grants,Supplies and Services,Payments to Educational Bodies,CHISELDON PRIMARY SCHOOL,SN4 ,17/11/2023,"10,249.00"
114640242,DSG Other Funding,Dedicated Schools Grant (DSG),DFE Additional Grants,Supplies and Services,Payments to Educational Bodies,CHISELDON PRIMARY SCHOOL,SN4 ,17/11/2023,"17,809.00"
114319233,DSG Other Funding,Dedicated Schools Grant (DSG),DFE Additional Grants,3rd Party Payments,Payment of Pupil Premium to school,CHISELDON PRIMARY SCHOOL,SN4 ,15/11/2023,"5,441.00"
114910233,Learning Disabilities,Adults,Learning Disability 18 - 64,3rd Party Payments,Residential Care,CHOSEN CARE LTD,GL3 ,22/11/2023,"7,639.52"
111245233,Learning Disabilities,Adults,Learning Disability 18 - 64,3rd Party Payments,Residential Care,CHOSEN CARE LTD,GL3 ,06/11/2023,545.68
114910233,Learning Disabilities,Adults,Learning Disability 18 - 64,Income,Client Contribution - Residential,CHOSEN CARE LTD,GL3 ,22/11/2023,-779.20
114910233,Learning Disabilities,Adults,Learning Disability 18 - 64,3rd Party Payments,Residential Care,CHOSEN CARE LTD,GL3 ,22/11/2023,"7,631.68"
111244233,Learning Disabilities,Adults,Learning Disability 65 and over,3rd Party Payments,Residential Care,CHOSEN CARE LTD,GL3 ,06/11/2023,557.30
111243233,Learning Disabilities,Adults,Learning Disability 18 - 64,3rd Party Payments,Residential Care,CHOSEN CARE LTD,GL3 ,06/11/2023,545.12
114910233,Learning Disabilities,Adults,Learning Disability 18 - 64,Income,Client Contribution - Residential,CHOSEN CARE LTD,GL3 ,22/11/2023,-400.48
114910233,Learning Disabilities,Adults,Learning Disability 18 - 64,3rd Party Payments,Residential Care,CHOSEN CARE LTD,GL3 ,22/11/2023,"7,802.16"
115203430,Physical Support,Adults,Physical Support 18 - 64,Income,Client Contribution - Personal Budget - DP,REDACTED PERSONAL DATA,SN25,24/11/2023,-147.40
115203430,Physical Support,Adults,Physical Support 18 - 64,Transfer Payments,Personal Budget - Direct Payments - Domiciliary Care,REDACTED PERSONAL DATA,SN25,24/11/2023,952.56
114803349,Social Care,Children & Families,Placement Adoption Service,3rd Party Payments,Adoption Allowances,REDACTED PERSONAL DATA,SN6 ,20/11/2023,"1,055.64"
113153338,Social Care,Children & Families,Placement Adoption Service,3rd Party Payments,Adoption Allowances,REDACTED PERSONAL DATA,SN6 ,06/11/2023,"1,055.64"
114803348,Social Care,Children & Families,Placement Adoption Service,3rd Party Payments,Adoption Allowances,REDACTED PERSONAL DATA,SN6 ,20/11/2023,699.84
113153337,Social Care,Children & Families,Placement Adoption Service,3rd Party Payments,Adoption Allowances,REDACTED PERSONAL DATA,SN6 ,06/11/2023,699.84
112939253,Social Care,Children & Families,Children's Resource and Home Finding Team,3rd Party Payments,Independent Fostering Agency Placements,CHRYSALISCARE LTD,DA7 ,03/11/2023,"5,691.30"
112939252,Social Care,Children & Families,Children's Resource and Home Finding Team,3rd Party Payments,Independent Fostering Agency Placements,CHRYSALISCARE LTD,DA7 ,03/11/2023,"6,377.10"
114946233,Physical Support,Adults,Physical Support 18 - 64,3rd Party Payments,Nursing Care,CHURCH VIEW,SN3 ,22/11/2023,"2,867.32"
114946233,Physical Support,Adults,Physical Support 18 - 64,Income,Client Contribution - Nursing,CHURCH VIEW,SN3 ,22/11/2023,-552.52
114946233,Physical Support,Adults,Physical Support 65 and over,3rd Party Payments,Nursing Care,CHURCH VIEW,SN3 ,22/11/2023,"5,863.96"
114946233,Physical Support,Adults,Physical Support 65 and over,Income,Client Contribution - Nursing,CHURCH VIEW,SN3 ,22/11/2023,-984.92
114946233,Physical Support,Adults,Physical Support 65 and over,Income,Client Contribution - Nursing,CHURCH VIEW,SN3 ,22/11/2023,-491.76
114946233,Physical Support,Adults,Physical Support 18 - 64,Income,Client Contribution - Nursing,CHURCH VIEW,SN3 ,22/11/2023,-744.56
114946233,Mental Health,Adults,Mental Health 65 and over,3rd Party Payments,Nursing Care,CHURCH VIEW,SN3 ,22/11/2023,"5,000.00"
114946233,Physical Support,Adults,Physical Support 65 and over,3rd Party Payments,Nursing Care,CHURCH VIEW,SN3 ,22/11/2023,"2,988.96"
114946233,Physical Support,Adults,Physical Support 65 and over,Income,Client Contribution - Nursing,CHURCH VIEW,SN3 ,22/11/2023,-979.88
114946233,Physical Support,Adults,Physical Support 65 and over,3rd Party Payments,Nursing Care,CHURCH VIEW,SN3 ,22/11/2023,"2,867.32"
114946233,Physical Support,Adults,Physical Support 65 and over,3rd Party Payments,Nursing Care,CHURCH VIEW,SN3 ,22/11/2023,"3,746.16"
114946233,Physical Support,Adults,Physical Support 65 and over,3rd Party Payments,Nursing Care,CHURCH VIEW,SN3 ,22/11/2023,"6,496.00"
114946233,Physical Support,Adults,Physical Support 65 and over,Income,Client Contribution - Nursing,CHURCH VIEW,SN3 ,22/11/2023,-271.54
114946233,Physical Support,Adults,Physical Support 65 and over,Income,Client Contribution - Nursing,CHURCH VIEW,SN3 ,22/11/2023,"-2,867.32"
114946233,Physical Support,Adults,Physical Support 65 and over,Income,Client Contribution - Nursing,CHURCH VIEW,SN3 ,22/11/2023,-741.88
114946233,Physical Support,Adults,Physical Support 65 and over,Income,Client Contribution - Nursing,CHURCH VIEW,SN3 ,22/11/2023,-709.76
114946233,Physical Support,Adults,Physical Support 65 and over,Income,Client Contribution - Nursing,CHURCH VIEW,SN3 ,22/11/2023,-800.96
114946233,Physical Support,Adults,Physical Support 18 - 64,3rd Party Payments,Nursing Care,CHURCH VIEW,SN3 ,22/11/2023,"-4,569.71"
114946233,Physical Support,Adults,Physical Support 65 and over,3rd Party Payments,Nursing Care,CHURCH VIEW,SN3 ,22/11/2023,"-1,867.68"
114946233,Physical Support,Adults,Physical Support 65 and over,3rd Party Payments,Nursing Care,CHURCH VIEW,SN3 ,22/11/2023,"3,478.58"
114946233,Physical Support,Adults,Physical Support 65 and over,Income,Client Contribution - Nursing,CHURCH VIEW,SN3 ,22/11/2023,-763.24
114946233,Physical Support,Adults,Physical Support 65 and over,Income,Client Contribution - Nursing,CHURCH VIEW,SN3 ,22/11/2023,-930.44
114946233,Physical Support,Adults,Physical Support 18 - 64,3rd Party Payments,Nursing Care,CHURCH VIEW,SN3 ,22/11/2023,"2,988.96"
114965233,Learning Disabilities,Adults,Learning Disability 18 - 64,3rd Party Payments,Residential Care,CIDERSTONE HOUSE,SN25,22/11/2023,"12,163.20"
111245238,Learning Disabilities,Adults,Learning Disability 18 - 64,3rd Party Payments,Residential Care,CIDERSTONE HOUSE,SN25,06/11/2023,868.80
114965233,Learning Disabilities,Adults,Learning Disability 18 - 64,Income,Client Contribution - Residential,CIDERSTONE HOUSE,SN25,22/11/2023,-788.80
111245239,Learning Disabilities,Adults,Learning Disability 18 - 64,3rd Party Payments,Residential Care,CIDERSTONE HOUSE,SN25,06/11/2023,868.80
111245237,Learning Disabilities,Adults,Learning Disability 18 - 64,3rd Party Payments,Residential Care,CIDERSTONE HOUSE,SN25,06/11/2023,841.60
114965233,Learning Disabilities,Adults,Learning Disability 18 - 64,Income,Client Contribution - Residential,CIDERSTONE HOUSE,SN25,22/11/2023,-483.20
114965233,Learning Disabilities,Adults,Learning Disability 18 - 64,Income,Client Contribution - Residential,CIDERSTONE HOUSE,SN25,22/11/2023,-438.80
111245240,Learning Disabilities,Adults,Learning Disability 18 - 64,3rd Party Payments,Residential Care,CIDERSTONE HOUSE,SN25,06/11/2023,868.80
114965233,Learning Disabilities,Adults,Learning Disability 18 - 64,3rd Party Payments,Residential Care,CIDERSTONE HOUSE,SN25,22/11/2023,"11,782.40"
114965233,Learning Disabilities,Adults,Learning Disability 18 - 64,Income,Client Contribution - Residential,CIDERSTONE HOUSE,SN25,22/11/2023,-69.00
114965233,Learning Disabilities,Adults,Learning Disability 18 - 64,Income,Client Contribution - Residential,CIDERSTONE HOUSE,SN25,22/11/2023,-423.00
113848234,Highways & Transport,Highways & Transport,Highways Management,Supplies and Services,Subscriptions,CIPFA BUSINESS LIMITED,E1 8,10/11/2023,"1,645.00"
114481326,High Needs Block,Dedicated Schools Grant (DSG),Post 16 - New Responsibilties,3rd Party Payments,FE Colleges,CIRENCESTER COLLEGE,GL7 ,15/11/2023,"4,602.00"
114481320,High Needs Block,Dedicated Schools Grant (DSG),Out of Borough School Fees,3rd Party Payments,Other Local Authority Mainstream Schools- Pre 16,CIRENCESTER KINGSHILL SCHOOL,GL7 ,15/11/2023,609.58
114481321,High Needs Block,Dedicated Schools Grant (DSG),Out of Borough School Fees,3rd Party Payments,Other Local Authority Mainstream Schools- Pre 16,CIRENCESTER KINGSHILL SCHOOL,GL7 ,15/11/2023,609.58
115201241,Homelessness and Travellers,Housing Services,Private Sector Landlords,Transfer Payments,Payment of Costs,REDACTED PERSONAL DATA,SN5 ,24/11/2023,575.00
113401233,Elections & Democracy,Elections and Democracy,Register of Electors,Supplies and Services,Post,CIVICA ELECTION SERVICES LIMITED,N8 0,08/11/2023,"3,422.93"
115307233,Elections & Democracy,Elections and Democracy,Local Elections,Supplies and Services,Post,CIVICA ELECTION SERVICES LIMITED,N8 0,24/11/2023,"5,239.36"
113401233,Elections & Democracy,Elections and Democracy,Register of Electors,Supplies and Services,Materials,CIVICA ELECTION SERVICES LIMITED,N8 0,08/11/2023,"2,306.68"
115307233,Elections & Democracy,Elections and Democracy,Local Elections,Supplies and Services,Materials,CIVICA ELECTION SERVICES LIMITED,N8 0,24/11/2023,"2,979.90"
114686233,Digital & Business Change,Digital & Business Change,IT Systems,Supplies and Services,Services,CIVICA UK LTD,SE1 ,17/11/2023,"6,660.00"
113546234,Planning & Regulatory,Strategic Planning,Economy & Development Management,Employees,Temporary / Agency - by Accounts Payable,REDACTED PERSONAL DATA,BS37,08/11/2023,"13,811.90"
114273233,Disabled Children,Children & Families,DCT Daytime Short Breaks,Transfer Payments,Personal Budget - Direct Payments - Other,REDACTED PERSONAL DATA,SN3 ,15/11/2023,"13,483.90"
114239254,Early Years Block,Dedicated Schools Grant (DSG),Free Nursery Education Commissioning - three & four  year olds,3rd Party Payments,Contracts - Child Care,REDACTED PERSONAL DATA,SN2 ,15/11/2023,546.56
113468233,Education,"Education, Inclusion and Skills",Education Standards and Quality,Supplies and Services,Fees,CLARKE WILLMOTT LLP,TA1 ,08/11/2023,557.10
113623244,Responsive Repairs,Repairs,Responsive Repairs,3rd Party Payments,Contract Payments,CLOSOMAT LIMITED,M33 ,08/11/2023,515.00
114938233,Mental Health,Adults,Mental Health 65 and over,3rd Party Payments,Residential Care,COATE WATER CARE CO LTD,SN3 ,22/11/2023,"-2,867.32"
114938233,Physical Support,Adults,Physical Support 65 and over,3rd Party Payments,Residential Care,COATE WATER CARE CO LTD,SN3 ,22/11/2023,"4,400.00"
114938233,Physical Support,Adults,Physical Support 65 and over,Income,Client Contribution - Residential,COATE WATER CARE CO LTD,SN3 ,22/11/2023,-86.80
114938233,Physical Support,Adults,Physical Support 65 and over,Income,Client Contribution - Residential,COATE WATER CARE CO LTD,SN3 ,22/11/2023,-713.24
114938233,Memory & Cognition,Adults,Support for Memory and Cognition 65 and over,3rd Party Payments,Residential Care,COATE WATER CARE CO LTD,SN3 ,22/11/2023,"2,867.32"
114938233,Memory & Cognition,Adults,Support for Memory and Cognition 65 and over,3rd Party Payments,Residential Care,COATE WATER CARE CO LTD,SN3 ,22/11/2023,"2,048.09"
114938233,Physical Support,Adults,Physical Support 18 - 64,3rd Party Payments,Residential Care,COATE WATER CARE CO LTD,SN3 ,22/11/2023,"2,867.32"
114938233,Physical Support,Adults,Physical Support 65 and over,Income,Client Contribution - Residential,COATE WATER CARE CO LTD,SN3 ,22/11/2023,-760.96
114938233,Physical Support,Adults,Physical Support 65 and over,Income,Client Contribution - Residential,COATE WATER CARE CO LTD,SN3 ,22/11/2023,-933.04
114938233,Mental Health,Adults,Mental Health 65 and over,3rd Party Payments,Residential Care,COATE WATER CARE CO LTD,SN3 ,22/11/2023,"3,480.00"
115591241,Physical Support,Adults,Physical Support 65 and over,3rd Party Payments,Personal Budget - Respite Care,COATE WATER CARE CO LTD,SN3 ,29/11/2023,"3,985.71"
114938233,Physical Support,Adults,Physical Support 65 and over,Income,Client Contribution - Residential,COATE WATER CARE CO LTD,SN3 ,22/11/2023,-691.20
114938233,Physical Support,Adults,Physical Support 65 and over,Income,Client Contribution - Residential,COATE WATER CARE CO LTD,SN3 ,22/11/2023,"-1,040.80"
114938233,Physical Support,Adults,Physical Support 65 and over,Income,Client Contribution - Residential,COATE WATER CARE CO LTD,SN3 ,22/11/2023,"-1,395.32"
114938233,Physical Support,Adults,Physical Support 65 and over,3rd Party Payments,Residential Care,COATE WATER CARE CO LTD,SN3 ,22/11/2023,"2,867.32"
114938233,Mental Health,Adults,Mental Health 65 and over,3rd Party Payments,Residential Care,COATE WATER CARE CO LTD,SN3 ,22/11/2023,"2,867.32"
114938233,Physical Support,Adults,Physical Support 65 and over,Income,Client Contribution - Residential,COATE WATER CARE CO LTD,SN3 ,22/11/2023,-847.96
114938233,Physical Support,Adults,Physical Support 65 and over,Income,Client Contribution - Residential,COATE WATER CARE CO LTD,SN3 ,22/11/2023,-644.56
114938233,Physical Support,Adults,Physical Support 65 and over,Income,Client Contribution - Residential,COATE WATER CARE CO LTD,SN3 ,22/11/2023,"-1,434.76"
114938233,Physical Support,Adults,Physical Support 65 and over,Income,Client Contribution - Residential,COATE WATER CARE CO LTD,SN3 ,22/11/2023,"-2,280.92"
114938233,Physical Support,Adults,Physical Support 65 and over,Income,Client Contribution - Residential,COATE WATER CARE CO LTD,SN3 ,22/11/2023,-675.20
114938233,Physical Support,Adults,Physical Support 65 and over,Income,Client Contribution - Residential,COATE WATER CARE CO LTD,SN3 ,22/11/2023,-677.04
114938233,Physical Support,Adults,Physical Support 65 and over,Income,Client Contribution - Residential,COATE WATER CARE CO LTD,SN3 ,22/11/2023,"-1,175.40"
114938233,Physical Support,Adults,Physical Support 65 and over,3rd Party Payments,Residential Care,COATE WATER CARE CO LTD,SN3 ,22/11/2023,"3,900.00"
114938233,Physical Support,Adults,Physical Support 65 and over,Income,Client Contribution - Residential,COATE WATER CARE CO LTD,SN3 ,22/11/2023,-895.60
114938233,Physical Support,Adults,Physical Support 65 and over,Income,Client Contribution - Residential,COATE WATER CARE CO LTD,SN3 ,22/11/2023,"-1,328.68"
114938233,Physical Support,Adults,Physical Support 65 and over,3rd Party Payments,Residential Care,COATE WATER CARE CO LTD,SN3 ,22/11/2023,"2,988.96"
114938233,Physical Support,Adults,Physical Support 18 - 64,Income,Client Contribution - Residential,COATE WATER CARE CO LTD,SN3 ,22/11/2023,-416.56
114938233,Physical Support,Adults,Physical Support 65 and over,Income,Client Contribution - Residential,COATE WATER CARE CO LTD,SN3 ,22/11/2023,-727.20
114902233,Learning Disabilities,Adults,Learning Disability 18 - 64,Income,Client Contribution - Residential,COCKLEBURY FARMHOUSE,SN15,22/11/2023,-425.60
114902233,Learning Disabilities,Adults,Learning Disability 18 - 64,3rd Party Payments,Residential Care,COCKLEBURY FARMHOUSE,SN15,22/11/2023,"10,364.00"
114669233,Highways Inspections & Maintenance,Highway Operations and Car Parking,Highway Maintenance,Supplies and Services,Materials,COLAS LTD,B37 ,17/11/2023,780.00
114018233,Town Centre,"Economy, Growth and Place",Fleming Way Improvement Scheme,Capital,Contractor Payments,COLAS LTD,B37 ,10/11/2023,"231,346.37"
114864233,Early Years Block,Dedicated Schools Grant (DSG),Free Nursery Education Commissioning - three & four  year olds,3rd Party Payments,Contracts - Child Care,COLEVIEW PRE-SCHOOL,SN3 ,22/11/2023,"4,560.00"
112668234,Disabled Children,Children & Families,DCT Daytime Short Breaks,3rd Party Payments,Respite Care,COLLABORATIVE CARE SERVICES LTD,SN2 ,03/11/2023,"29,304.00"
114894233,Learning Disabilities,Adults,Learning Disability 18 - 64,Income,Client Contribution - Residential,COMMUNITY ACCESS NETWORK LTD,SN25,22/11/2023,-483.20
115128233,Learning Disabilities,Adults,Learning Disability 18 - 64,Income,Client Contribution - Supported Living,COMMUNITY ACCESS NETWORK LTD,SN25,22/11/2023,-0.60
112079233,Learning Disabilities,Adults,Learning Disability 18 - 64,3rd Party Payments,Residential Care,COMMUNITY ACCESS NETWORK LTD,SN25,01/11/2023,502.61
115128233,Learning Disabilities,Adults,Learning Disability 18 - 64,3rd Party Payments,Supported Lodgings (Childrens)/Supported Living (Adults),COMMUNITY ACCESS NETWORK LTD,SN25,22/11/2023,560.00
115128233,Learning Disabilities,Adults,Learning Disability 18 - 64,Income,Client Contribution - Supported Living,COMMUNITY ACCESS NETWORK LTD,SN25,22/11/2023,-0.68
114894233,Learning Disabilities,Adults,Learning Disability 18 - 64,3rd Party Payments,Residential Care,COMMUNITY ACCESS NETWORK LTD,SN25,22/11/2023,"7,036.52"
115128233,Learning Disabilities,Adults,Learning Disability 18 - 64,3rd Party Payments,Supported Lodgings (Childrens)/Supported Living (Adults),COMMUNITY ACCESS NETWORK LTD,SN25,22/11/2023,"1,503.88"
115128233,Learning Disabilities,Adults,Learning Disability 18 - 64,3rd Party Payments,Supported Lodgings (Childrens)/Supported Living (Adults),COMMUNITY ACCESS NETWORK LTD,SN25,22/11/2023,"1,360.00"
115128233,Learning Disabilities,Adults,Learning Disability 18 - 64,Income,Client Contribution - Supported Living,COMMUNITY ACCESS NETWORK LTD,SN25,22/11/2023,-37.84
115128233,Learning Disabilities,Adults,Learning Disability 18 - 64,3rd Party Payments,Supported Lodgings (Childrens)/Supported Living (Adults),COMMUNITY ACCESS NETWORK LTD,SN25,22/11/2023,"4,120.00"
115128233,Learning Disabilities,Adults,Learning Disability 18 - 64,3rd Party Payments,Supported Lodgings (Childrens)/Supported Living (Adults),COMMUNITY ACCESS NETWORK LTD,SN25,22/11/2023,24.00
115128234,Learning Disabilities,Adults,Learning Disability 65 and over,3rd Party Payments,Supported Lodgings (Childrens)/Supported Living (Adults),COMMUNITY ACCESS NETWORK LTD,SN25,22/11/2023,907.60
115128233,Learning Disabilities,Adults,Learning Disability 18 - 64,Income,Client Contribution - Supported Living,COMMUNITY ACCESS NETWORK LTD,SN25,22/11/2023,-103.68
115128233,Learning Disabilities,Adults,Learning Disability 18 - 64,3rd Party Payments,Supported Lodgings (Childrens)/Supported Living (Adults),COMMUNITY ACCESS NETWORK LTD,SN25,22/11/2023,27.76
114939233,Learning Disabilities,Adults,Learning Disability 18 - 64,3rd Party Payments,Residential Care,COMMUNITY THERAPEUTIC SERVICES LTD,BS22,22/11/2023,"12,423.92"
111975234,Learning Disabilities,Adults,Learning Disability 18 - 64,3rd Party Payments,Residential Care,COMMUNITY THERAPEUTIC SERVICES LTD,BS22,01/11/2023,887.42
113738233,Social Care,Children & Families,Children's Resource and Home Finding Team,3rd Party Payments,Residential Care,COMPASS CHILDREN'S HOMES LTD,LE7 ,10/11/2023,"31,276.83"
113737233,Social Care,Children & Families,Children's Resource and Home Finding Team,3rd Party Payments,Residential Care,COMPASS CHILDREN'S HOMES LTD,LE7 ,10/11/2023,"30,267.90"
115203374,Learning Disabilities,Adults,Learning Disability 18 - 64,Income,Client Contribution - Personal Budget - DP,REDACTED PERSONAL DATA,GL2 ,24/11/2023,-68.32
115203374,Learning Disabilities,Adults,Learning Disability 18 - 64,Transfer Payments,Personal Budget - Direct Payments - Other,REDACTED PERSONAL DATA,GL2 ,24/11/2023,"4,560.00"
115203374,Learning Disabilities,Adults,Learning Disability 18 - 64,Transfer Payments,Personal Budget - Direct Payments - Other,REDACTED PERSONAL DATA,GL2 ,24/11/2023,32.32
115203374,Learning Disabilities,Adults,Learning Disability 18 - 64,Income,Client Contribution - Personal Budget - DP,REDACTED PERSONAL DATA,GL2 ,24/11/2023,-0.48
113777239,Other Repairs,Repairs,Unallocated job costs from OPEN system,Premises Costs,Maintenance - Buildings,COOLINK LTD,SN11,10/11/2023,"2,237.00"
112478239,Property Management,Property,Corporate Repairs & Maintenance Programme,Premises Costs,Maintenance - Buildings,COOLINK LTD,SN11,03/11/2023,"1,219.00"
113777240,Property Management,Property,Corporate Repairs & Maintenance Programme,Premises Costs,Maintenance - Buildings,COOLINK LTD,SN11,10/11/2023,"1,183.00"
114121233,Responsive Repairs,Repairs,Responsive Repairs,3rd Party Payments,Contract Payments,REDACTED PERSONAL DATA,SN2 ,15/11/2023,"3,100.00"
115653233,Responsive Repairs,Repairs,Responsive Repairs,3rd Party Payments,Contract Payments,REDACTED PERSONAL DATA,SN2 ,29/11/2023,"1,400.00"
114121233,Responsive Repairs,Repairs,Responsive Repairs,3rd Party Payments,Contract Payments,REDACTED PERSONAL DATA,SN2 ,15/11/2023,"2,000.00"
115653233,Responsive Repairs,Repairs,Responsive Repairs,3rd Party Payments,Contract Payments,REDACTED PERSONAL DATA,SN2 ,29/11/2023,"1,000.00"
115116233,Museums & Heritage,Culture & Heritage,Steam:Income Generation,Supplies and Services,Goods for resale,CORGI HOSIERY LTD,SA18,22/11/2023,424.60
113153256,Social Care,Children & Families,Placement Adoption Service,3rd Party Payments,Adoption Allowances,REDACTED PERSONAL DATA,BA15,06/11/2023,860.00
114803268,Social Care,Children & Families,Placement Adoption Service,3rd Party Payments,Adoption Allowances,REDACTED PERSONAL DATA,BA15,20/11/2023,860.00
114913233,Learning Disabilities,Adults,Learning Disability 18 - 64,3rd Party Payments,Residential Care,CORNERSTONES UK LTD,SN9 ,22/11/2023,"8,650.40"
114913233,Learning Disabilities,Adults,Learning Disability 18 - 64,3rd Party Payments,Residential Care,CORNERSTONES UK LTD,SN9 ,22/11/2023,"8,465.28"
114913233,Learning Disabilities,Adults,Learning Disability 18 - 64,Income,Client Contribution - Residential,CORNERSTONES UK LTD,SN9 ,22/11/2023,-483.20
114913233,Learning Disabilities,Adults,Learning Disability 18 - 64,Income,Client Contribution - Residential,CORNERSTONES UK LTD,SN9 ,22/11/2023,-487.80
114913233,Learning Disabilities,Adults,Learning Disability 18 - 64,Income,Client Contribution - Residential,CORNERSTONES UK LTD,SN9 ,22/11/2023,-423.00
114913233,Learning Disabilities,Adults,Learning Disability 18 - 64,Income,Client Contribution - Residential,CORNERSTONES UK LTD,SN9 ,22/11/2023,-438.80
114913233,Learning Disabilities,Adults,Learning Disability 18 - 64,3rd Party Payments,Residential Care,CORNERSTONES UK LTD,SN9 ,22/11/2023,"7,337.52"
114913233,Learning Disabilities,Adults,Learning Disability 18 - 64,3rd Party Payments,Residential Care,CORNERSTONES UK LTD,SN9 ,22/11/2023,"6,626.24"
114913233,Learning Disabilities,Adults,Learning Disability 18 - 64,3rd Party Payments,Residential Care,CORNERSTONES UK LTD,SN9 ,22/11/2023,"9,501.40"
114913233,Learning Disabilities,Adults,Learning Disability 18 - 64,Income,Client Contribution - Residential,CORNERSTONES UK LTD,SN9 ,22/11/2023,-381.00
115203418,Learning Disabilities,Adults,Learning Disability 18 - 64,Transfer Payments,Personal Budget - Direct Payments - Domiciliary Care,REDACTED PERSONAL DATA,SP11,24/11/2023,410.88
115203418,Learning Disabilities,Adults,Learning Disability 18 - 64,Income,Client Contribution - Personal Budget - DP,REDACTED PERSONAL DATA,SP11,24/11/2023,-122.00
115203418,Learning Disabilities,Adults,Learning Disability 18 - 64,Transfer Payments,Personal Budget - Direct Payments - Domiciliary Care,REDACTED PERSONAL DATA,SP11,24/11/2023,82.00
115203418,Learning Disabilities,Adults,Learning Disability 18 - 64,Transfer Payments,Personal Budget - Direct Payments - Domiciliary Care,REDACTED PERSONAL DATA,SP11,24/11/2023,37.76
115203418,Learning Disabilities,Adults,Learning Disability 18 - 64,Income,Client Contribution - Personal Budget - DP,REDACTED PERSONAL DATA,SP11,24/11/2023,-38.52
115203418,Learning Disabilities,Adults,Learning Disability 18 - 64,Income,Client Contribution - Personal Budget - DP,REDACTED PERSONAL DATA,SP11,24/11/2023,-7.68
115203418,Learning Disabilities,Adults,Learning Disability 18 - 64,Transfer Payments,Personal Budget - Direct Payments - Domiciliary Care,REDACTED PERSONAL DATA,SP11,24/11/2023,"1,302.40"
115203418,Learning Disabilities,Adults,Learning Disability 18 - 64,Income,Client Contribution - Personal Budget - DP,REDACTED PERSONAL DATA,SP11,24/11/2023,-3.52
112617233,Streetsmart,Streetsmart,Waste - Processing,Supplies and Services,Repairs & Maintenance,COVEYA LTD,BS30,03/11/2023,"1,201.20"
115044242,DSG Other Funding,Dedicated Schools Grant (DSG),DFE Additional Grants,Supplies and Services,Payments to Educational Bodies,COVINGHAM PARK PRIMARY SCHOOL,SN3 ,22/11/2023,"1,200.94"
114563242,DSG Other Funding,Dedicated Schools Grant (DSG),DFE Additional Grants,Supplies and Services,Payments to Educational Bodies,COVINGHAM PARK PRIMARY SCHOOL,SN3 ,17/11/2023,"11,118.00"
114464233,High Needs Block,Dedicated Schools Grant (DSG),SEN Resourcing Assessment Panel,3rd Party Payments,Top up funding - Maintained providers Pre 16,COVINGHAM PARK PRIMARY SCHOOL,SN3 ,15/11/2023,"3,677.50"
113482233,Schools Maintenance,Skills & Attainment,DFC Allocations to Schools,Capital,Grant Payments,COVINGHAM PARK PRIMARY SCHOOL,SN3 ,08/11/2023,"8,106.25"
114640243,DSG Other Funding,Dedicated Schools Grant (DSG),DFE Additional Grants,Supplies and Services,Payments to Educational Bodies,COVINGHAM PARK PRIMARY SCHOOL,SN3 ,17/11/2023,"31,895.00"
115075233,DSG Other Funding,Dedicated Schools Grant (DSG),DFE Additional Grants,Supplies and Services,Payments to Educational Bodies,COVINGHAM PARK PRIMARY SCHOOL,SN3 ,22/11/2023,"2,320.00"
115097233,DSG Other Funding,Dedicated Schools Grant (DSG),DFE Additional Grants,Supplies and Services,Payments to Educational Bodies,COVINGHAM PARK PRIMARY SCHOOL,SN3 ,22/11/2023,"16,494.00"
114977233,Physical Support,Adults,Physical Support 65 and over,3rd Party Payments,Residential Care,COXWELL HALL AND MEWS NURSING HOME,TW20,22/11/2023,"6,000.00"
114977233,Physical Support,Adults,Physical Support 65 and over,3rd Party Payments,Residential Care,COXWELL HALL AND MEWS NURSING HOME,TW20,22/11/2023,"6,480.00"
114977233,Memory & Cognition,Adults,Support for Memory and Cognition 65 and over,3rd Party Payments,Residential Care,COXWELL HALL AND MEWS NURSING HOME,TW20,22/11/2023,"5,968.24"
114977233,Physical Support,Adults,Physical Support 65 and over,Income,Client Contribution - Residential,COXWELL HALL AND MEWS NURSING HOME,TW20,22/11/2023,-610.00
113225233,Learning Disabilities,Adults,Learning Disability 18 - 64,3rd Party Payments,Residential Care,CRAEGMOOR HEALTHCARE,BA14,15/11/2023,654.16
114898233,Learning Disabilities,Adults,Learning Disability 18 - 64,3rd Party Payments,Residential Care,CRAEGMOOR HEALTHCARE,BA14,22/11/2023,"9,158.28"
114898233,Learning Disabilities,Adults,Learning Disability 18 - 64,Income,Client Contribution - Residential,CRAEGMOOR HEALTHCARE,BA14,22/11/2023,-483.20
115577237,Early Help,Early Intervention & Prevention,"Holiday, Activities & Food Grant",3rd Party Payments,Contracts - Child Care,CRAFTING TREASURES - TANYA MEDCROFT,SN2 ,29/11/2023,"1,476.00"
114707233,Streetsmart,Streetsmart,Waste - Disposal,3rd Party Payments,Contract Payments,CRAPPER & SONS LANDFILL LTD,SN4 ,17/11/2023,"1,665.61"
114711233,Streetsmart,Streetsmart,Waste - Disposal,3rd Party Payments,Contract Payments,CRAPPER & SONS LANDFILL LTD,SN4 ,17/11/2023,"2,716.58"
114703233,Streetsmart,Streetsmart,Waste - Disposal,3rd Party Payments,Contract Payments,CRAPPER & SONS LANDFILL LTD,SN4 ,17/11/2023,"2,056.85"
111823233,Streetsmart,Streetsmart,Waste - Disposal,3rd Party Payments,Contract Payments,CRAPPER & SONS LANDFILL LTD,SN4 ,01/11/2023,"1,703.32"
114708233,Streetsmart,Streetsmart,Waste - Disposal,3rd Party Payments,Contract Payments,CRAPPER & SONS LANDFILL LTD,SN4 ,17/11/2023,"4,158.69"
114709233,Streetsmart,Streetsmart,Waste - Disposal,3rd Party Payments,Contract Payments,CRAPPER & SONS LANDFILL LTD,SN4 ,17/11/2023,"3,770.51"
114822233,Streetsmart,Streetsmart,Waste - Disposal,3rd Party Payments,Contract Payments,CRAPPER & SONS LANDFILL LTD,SN4 ,20/11/2023,"10,957.98"
114710233,Streetsmart,Streetsmart,Waste - Disposal,3rd Party Payments,Contract Payments,CRAPPER & SONS LANDFILL LTD,SN4 ,17/11/2023,"5,252.32"
111818233,Streetsmart,Streetsmart,Waste - Disposal,3rd Party Payments,Contract Payments,CRAPPER & SONS LANDFILL LTD,SN4 ,01/11/2023,"1,955.32"
111962233,Streetsmart,Streetsmart,Waste - Disposal,3rd Party Payments,Contract Payments,CRAPPER & SONS LANDFILL LTD,SN4 ,01/11/2023,"3,696.22"
114702233,Streetsmart,Streetsmart,Waste - Disposal,3rd Party Payments,Contract Payments,CRAPPER & SONS LANDFILL LTD,SN4 ,17/11/2023,976.25
114704233,Streetsmart,Streetsmart,Waste - Disposal,3rd Party Payments,Contract Payments,CRAPPER & SONS LANDFILL LTD,SN4 ,17/11/2023,"1,590.26"
115296233,Streetsmart,Streetsmart,Waste - Disposal,3rd Party Payments,Contract Payments,CRAPPER & SONS LANDFILL LTD,SN4 ,24/11/2023,"4,261.10"
111811233,Streetsmart,Streetsmart,Waste - Disposal,3rd Party Payments,Contract Payments,CRAPPER & SONS LANDFILL LTD,SN4 ,01/11/2023,"6,142.73"
114813233,Streetsmart,Streetsmart,Waste - Disposal,3rd Party Payments,Contract Payments,CRAPPER & SONS LANDFILL LTD,SN4 ,20/11/2023,"10,096.75"
111814233,Streetsmart,Streetsmart,Waste - Disposal,3rd Party Payments,Contract Payments,CRAPPER & SONS LANDFILL LTD,SN4 ,01/11/2023,"6,005.23"
114705233,Streetsmart,Streetsmart,Waste - Disposal,3rd Party Payments,Contract Payments,CRAPPER & SONS LANDFILL LTD,SN4 ,17/11/2023,428.38
111813233,Streetsmart,Streetsmart,Waste - Disposal,3rd Party Payments,Contract Payments,CRAPPER & SONS LANDFILL LTD,SN4 ,01/11/2023,"3,024.51"
111820233,Streetsmart,Streetsmart,Waste - Disposal,3rd Party Payments,Contract Payments,CRAPPER & SONS LANDFILL LTD,SN4 ,01/11/2023,"8,798.14"
111990233,Streetsmart,Streetsmart,Waste - Disposal,3rd Party Payments,Contract Payments,CRAPPER & SONS LANDFILL LTD,SN4 ,01/11/2023,"3,451.68"
112308250,Streetsmart,Streetsmart,Waste - Disposal,3rd Party Payments,Contract Payments,CRAPPER & SONS LANDFILL LTD,SN4 ,01/11/2023,"15,609.82"
114824233,Streetsmart,Streetsmart,Waste - Disposal,3rd Party Payments,Contract Payments,CRAPPER & SONS LANDFILL LTD,SN4 ,20/11/2023,600.00
114823233,Streetsmart,Streetsmart,Waste - Disposal,3rd Party Payments,Contract Payments,CRAPPER & SONS LANDFILL LTD,SN4 ,20/11/2023,"9,271.56"
114706233,Streetsmart,Streetsmart,Waste - Disposal,3rd Party Payments,Contract Payments,CRAPPER & SONS LANDFILL LTD,SN4 ,17/11/2023,"5,615.25"
114821233,Streetsmart,Streetsmart,StreetSmart Contracts & Strategic Planning,3rd Party Payments,Contract Payments,CRAPPER & SONS LANDFILL LTD,SN4 ,20/11/2023,"1,646.40"
113566234,"Data, Performance and Insight",Digital & Business Change,"Performance, Intelligence and Insight",Supplies and Services,Services,CRAYON DRAGONS LTD,SL6 ,08/11/2023,"12,000.00"
114501233,Community Health & Wellbeing,Public Health,Community Health and Wellbeing Management,Income,Fee Income,CREATE STUDIOS DIGITAL MEDIA LTD,SN1 ,15/11/2023,"2,000.00"
115122233,Human Resources and Organisational Development,"People, Culture and Organisational Resilience",Organisational Development,Employees,Training,CREATIVE SOCIAL WORK LTD,LL12,22/11/2023,600.00
112380234,Non-HRA Vehicles,Transport,Vehicle & Plant replacement strategy,Capital,Contractor Payments,CREATIVE VEHICLE WRAPPING LIMITED,WS11,01/11/2023,"1,208.09"
113805233,Treasury,Corporate Finance,Treasury,Supplies and Services,Contracts,CREDITSAFE UK LTD,CF83,10/11/2023,"1,200.00"
113434233,Physical Support,Adults,Fessey House,Supplies and Services,Food,CREED CATERING SUPPLIES LTD,GL51,08/11/2023,165.51
114207234,Physical Support,Adults,Fessey House,Supplies and Services,Food,CREED CATERING SUPPLIES LTD,GL51,15/11/2023,77.81
113209233,Physical Support,Adults,Fessey House,Supplies and Services,Food,CREED CATERING SUPPLIES LTD,GL51,08/11/2023,350.68
114208233,Physical Support,Adults,Fessey House,Supplies and Services,Food,CREED CATERING SUPPLIES LTD,GL51,15/11/2023,149.19
113211233,Physical Support,Adults,Fessey House,Supplies and Services,Food,CREED CATERING SUPPLIES LTD,GL51,08/11/2023,140.17
113434233,Physical Support,Adults,Fessey House,Supplies and Services,Food,CREED CATERING SUPPLIES LTD,GL51,08/11/2023,692.17
113209233,Physical Support,Adults,Fessey House,Supplies and Services,Food,CREED CATERING SUPPLIES LTD,GL51,08/11/2023,708.25
113211233,Physical Support,Adults,Fessey House,Supplies and Services,Food,CREED CATERING SUPPLIES LTD,GL51,08/11/2023,576.88
114207234,Physical Support,Adults,Fessey House,Supplies and Services,Food,CREED CATERING SUPPLIES LTD,GL51,15/11/2023,624.23
114208233,Physical Support,Adults,Fessey House,Supplies and Services,Food,CREED CATERING SUPPLIES LTD,GL51,15/11/2023,430.10
112509233,Sheltered Accomodation,Special Services,George Hall Court,Premises Costs,Maintenance - Grounds,CROCSEC LIMITED,SN25,03/11/2023,"2,380.00"
113606233,Organisational Resilience,"People, Culture and Organisational Resilience",Security,Employees,Casual Staff - Basic,CROCSEC LIMITED,SN25,08/11/2023,"2,091.00"
112454233,Organisational Resilience,"People, Culture and Organisational Resilience",Security,Employees,Casual Staff - Basic,CROCSEC LIMITED,SN25,03/11/2023,"2,091.00"
113158233,Licencing,Regulatory Services,Taxis & Private Hire,Supplies and Services,Testing / Inspection,CROSS STREET GARAGE (SWINDON) LTD,SN1 ,06/11/2023,"1,430.00"
114726233,School Transport,"Education, Inclusion and Skills",Special Educational Needs Transport,Transport Costs,Home to School Transport,CROSS STREET RADIO CARS,SN1 ,20/11/2023,"2,210.00"
114637235,School Transport,"Education, Inclusion and Skills",Special Educational Needs Transport,Transport Costs,Home to School Transport,CROSS STREET RADIO CARS,SN1 ,17/11/2023,"1,320.00"
114564233,School Transport,"Education, Inclusion and Skills",Special Educational Needs Transport,Transport Costs,Home to School Transport,CROSS STREET RADIO CARS,SN1 ,17/11/2023,"2,720.00"
114578234,School Transport,"Education, Inclusion and Skills",Special Educational Needs Transport,Transport Costs,Home to School Transport,CROSS STREET RADIO CARS,SN1 ,17/11/2023,"2,550.00"
114481233,High Needs Block,Dedicated Schools Grant (DSG),SEN Resourcing Assessment Panel,3rd Party Payments,Top up funding - Maintained providers Pre 16,CROWDYS HILL SCHOOL,SN2 ,15/11/2023,"68,304.88"
114563250,DSG Other Funding,Dedicated Schools Grant (DSG),DFE Additional Grants,Supplies and Services,Payments to Educational Bodies,CROWDYS HILL SCHOOL,SN2 ,17/11/2023,"9,666.00"
114327233,DSG Other Funding,Dedicated Schools Grant (DSG),DFE Additional Grants,3rd Party Payments,Payment of Pupil Premium to school,CROWDYS HILL SCHOOL,SN2 ,15/11/2023,"10,281.00"
115044250,DSG Other Funding,Dedicated Schools Grant (DSG),DFE Additional Grants,Supplies and Services,Payments to Educational Bodies,CROWDYS HILL SCHOOL,SN2 ,22/11/2023,"5,346.25"
115106233,DSG Other Funding,Dedicated Schools Grant (DSG),DFE Additional Grants,Supplies and Services,Payments to Educational Bodies,CROWDYS HILL SCHOOL,SN2 ,22/11/2023,"65,735.00"
113483233,Schools Maintenance,Skills & Attainment,DFC Allocations to Schools,Capital,Grant Payments,CROWDYS HILL SCHOOL,SN2 ,08/11/2023,"16,757.50"
114308233,High Needs Block,Dedicated Schools Grant (DSG),Special School Place,3rd Party Payments,HNB- Place Funding pre 16,CROWDYS HILL SCHOOL,SN2 ,15/11/2023,"170,000.00"
114481234,High Needs Block,Dedicated Schools Grant (DSG),SEN Resourcing Assessment Panel,3rd Party Payments,Top up funding - Maintained providers Pre 16,CROWDYS HILL SCHOOL,SN2 ,15/11/2023,"162,619.19"
114481235,High Needs Block,Dedicated Schools Grant (DSG),SEN Resourcing Assessment Panel,3rd Party Payments,Top up funding - Maintained providers Pre 16,CROWDYS HILL SCHOOL,SN2 ,15/11/2023,"4,375.00"
114481239,High Needs Block,Dedicated Schools Grant (DSG),SEN Resourcing Assessment Panel,3rd Party Payments,Top up funding - Maintained providers Post 16,CROWDYS HILL SCHOOL,SN2 ,15/11/2023,"58,983.79"
114307233,High Needs Block,Dedicated Schools Grant (DSG),Special School Place,3rd Party Payments,HNB- Place Funding post 16,CROWDYS HILL SCHOOL,SN2 ,15/11/2023,"38,334.00"
115083233,DSG Other Funding,Dedicated Schools Grant (DSG),DFE Additional Grants,Supplies and Services,Payments to Educational Bodies,CROWDYS HILL SCHOOL,SN2 ,22/11/2023,"26,626.50"
114524233,Physical Support,Adults,Physical Support 65 and over,3rd Party Payments,Personal Budget - Domiciliary care,CRYSTAL CARING LIMITED,SN2 ,15/11/2023,"1,474.56"
Corporate Card Transaction,Community Health & Wellbeing,Public Health,Community Health and Wellbeing Management,Supplies and Services,Food,Cs* Tesco Stores Gc,,23/11/2023," 1,267.50 "
Corporate Card Transaction,Community Health & Wellbeing,Public Health,Community Health and Wellbeing Management,Supplies and Services,Food,Cs* Tesco Stores Gc,,23/11/2023, 975.00 
Corporate Card Transaction,Homelessness and Travellers,Housing Services,Warm Welcome Project,Supplies and Services,Equipment,Currys Online,,20/11/2023, 640.00 
115182233,Landscaping & Open Space,Culture & Heritage & Art,Spring Gardens Refurbishment,Capital,Professional Fees,D & H SURVEYS LTD,SN15,24/11/2023,"1,050.00"
115203235,Physical Support,Adults,Physical Support 18 - 64,Income,Client Contribution - Personal Budget - DP,REDACTED PERSONAL DATA,SN25,24/11/2023,-58.88
115203235,Physical Support,Adults,Physical Support 18 - 64,Income,Client Contribution - Personal Budget - DP,REDACTED PERSONAL DATA,SN25,24/11/2023,-88.16
115203235,Physical Support,Adults,Physical Support 18 - 64,Transfer Payments,Personal Budget - Direct Payments - Domiciliary Care,REDACTED PERSONAL DATA,SN25,24/11/2023,547.84
115203235,Physical Support,Adults,Physical Support 18 - 64,Income,Client Contribution - Personal Budget - DP,REDACTED PERSONAL DATA,SN25,24/11/2023,-217.00
115203235,Physical Support,Adults,Physical Support 18 - 64,Income,Client Contribution - Personal Budget - DP,REDACTED PERSONAL DATA,SN25,24/11/2023,-8.12
115203235,Physical Support,Adults,Physical Support 18 - 64,Transfer Payments,Personal Budget - Direct Payments - Domiciliary Care,REDACTED PERSONAL DATA,SN25,24/11/2023,"2,018.72"
115203235,Physical Support,Adults,Physical Support 18 - 64,Transfer Payments,Personal Budget - Direct Payments - Domiciliary Care,REDACTED PERSONAL DATA,SN25,24/11/2023,75.52
115203235,Physical Support,Adults,Physical Support 18 - 64,Transfer Payments,Personal Budget - Direct Payments - Other,REDACTED PERSONAL DATA,SN25,24/11/2023,820.00
115203316,Physical Support,Adults,Physical Support 18 - 64,Transfer Payments,Personal Budget - Direct Payments - Domiciliary Care,REDACTED PERSONAL DATA,SP11,24/11/2023,"1,302.40"
115203316,Physical Support,Adults,Physical Support 18 - 64,Transfer Payments,Personal Budget - Direct Payments - Domiciliary Care,REDACTED PERSONAL DATA,SP11,24/11/2023,"1,058.20"
115203316,Physical Support,Adults,Physical Support 18 - 64,Transfer Payments,Personal Budget - Direct Payments - Domiciliary Care,REDACTED PERSONAL DATA,SP11,24/11/2023,252.34
115203316,Physical Support,Adults,Physical Support 18 - 64,Transfer Payments,Personal Budget - Direct Payments - Domiciliary Care,REDACTED PERSONAL DATA,SP11,24/11/2023,60.16
115203316,Physical Support,Adults,Physical Support 18 - 64,Transfer Payments,Personal Budget - Direct Payments - Domiciliary Care,REDACTED PERSONAL DATA,SP11,24/11/2023,201.71
115203316,Physical Support,Adults,Physical Support 18 - 64,Transfer Payments,Personal Budget - Direct Payments - Domiciliary Care,REDACTED PERSONAL DATA,SP11,24/11/2023,568.80
115203316,Physical Support,Adults,Physical Support 18 - 64,Transfer Payments,Personal Budget - Direct Payments - Domiciliary Care,REDACTED PERSONAL DATA,SP11,24/11/2023,198.32
115203316,Physical Support,Adults,Physical Support 18 - 64,Transfer Payments,Personal Budget - Direct Payments - Domiciliary Care,REDACTED PERSONAL DATA,SP11,24/11/2023,547.84
115203316,Physical Support,Adults,Physical Support 18 - 64,Transfer Payments,Personal Budget - Direct Payments - Domiciliary Care,REDACTED PERSONAL DATA,SP11,24/11/2023,650.56
115203307,Physical Support,Adults,Physical Support 18 - 64,Income,Client Contribution - Personal Budget - DP,REDACTED PERSONAL DATA,SN3 ,24/11/2023,-181.60
115203307,Physical Support,Adults,Physical Support 18 - 64,Transfer Payments,Personal Budget - Direct Payments - Domiciliary Care,REDACTED PERSONAL DATA,SN3 ,24/11/2023,"2,903.04"
115203280,Learning Disabilities,Adults,Learning Disability 18 - 64,Income,Client Contribution - Personal Budget - DP,REDACTED PERSONAL DATA,SN2 ,24/11/2023,-2.92
115203280,Learning Disabilities,Adults,Learning Disability 18 - 64,Transfer Payments,Personal Budget - Direct Payments - Domiciliary Care,REDACTED PERSONAL DATA,SN2 ,24/11/2023,272.16
115203280,Learning Disabilities,Adults,Learning Disability 18 - 64,Income,Client Contribution - Personal Budget - DP,REDACTED PERSONAL DATA,SN2 ,24/11/2023,-13.20
115203280,Learning Disabilities,Adults,Learning Disability 18 - 64,Transfer Payments,Personal Budget - Direct Payments - Domiciliary Care,REDACTED PERSONAL DATA,SN2 ,24/11/2023,"1,237.28"
115203331,Learning Disabilities,Adults,Learning Disability 18 - 64,Transfer Payments,Personal Budget - Direct Payments - Domiciliary Care,REDACTED PERSONAL DATA,SN2 ,24/11/2023,"3,081.60"
115203331,Learning Disabilities,Adults,Learning Disability 18 - 64,Transfer Payments,Personal Budget - Direct Payments - Domiciliary Care,REDACTED PERSONAL DATA,SN2 ,24/11/2023,"1,172.16"
115203331,Learning Disabilities,Adults,Learning Disability 18 - 64,Income,Client Contribution - Personal Budget - DP,REDACTED PERSONAL DATA,SN2 ,24/11/2023,-12.48
115203331,Learning Disabilities,Adults,Learning Disability 18 - 64,Income,Client Contribution - Personal Budget - DP,REDACTED PERSONAL DATA,SN2 ,24/11/2023,-22.88
115203331,Learning Disabilities,Adults,Learning Disability 18 - 64,Transfer Payments,Personal Budget - Direct Payments - Domiciliary Care,REDACTED PERSONAL DATA,SN2 ,24/11/2023,"3,907.20"
115203331,Learning Disabilities,Adults,Learning Disability 18 - 64,Income,Client Contribution - Personal Budget - DP,REDACTED PERSONAL DATA,SN2 ,24/11/2023,-32.84
115203331,Learning Disabilities,Adults,Learning Disability 18 - 64,Transfer Payments,Personal Budget - Direct Payments - Domiciliary Care,REDACTED PERSONAL DATA,SN2 ,24/11/2023,"2,148.40"
115203331,Learning Disabilities,Adults,Learning Disability 18 - 64,Income,Client Contribution - Personal Budget - DP,REDACTED PERSONAL DATA,SN2 ,24/11/2023,-41.64
115203315,Physical Support,Adults,Physical Support 18 - 64,Transfer Payments,Personal Budget - Direct Payments - Domiciliary Care,REDACTED PERSONAL DATA,SN2 ,24/11/2023,725.76
115203315,Physical Support,Adults,Physical Support 18 - 64,Income,Client Contribution - Personal Budget - DP,REDACTED PERSONAL DATA,SN2 ,24/11/2023,-95.72
115203306,Learning Disabilities,Adults,Learning Disability 18 - 64,Transfer Payments,Personal Budget - Direct Payments - Domiciliary Care,REDACTED PERSONAL DATA,SP11,24/11/2023,716.32
115203306,Learning Disabilities,Adults,Learning Disability 18 - 64,Income,Client Contribution - Personal Budget - DP,REDACTED PERSONAL DATA,SP11,24/11/2023,-138.36
115203306,Learning Disabilities,Adults,Learning Disability 18 - 64,Transfer Payments,Personal Budget - Direct Payments - Domiciliary Care,REDACTED PERSONAL DATA,SP11,24/11/2023,136.96
115203306,Learning Disabilities,Adults,Learning Disability 18 - 64,Income,Client Contribution - Personal Budget - DP,REDACTED PERSONAL DATA,SP11,24/11/2023,-71.00
115203306,Learning Disabilities,Adults,Learning Disability 18 - 64,Income,Client Contribution - Personal Budget - DP,REDACTED PERSONAL DATA,SP11,24/11/2023,-371.40
115203306,Learning Disabilities,Adults,Learning Disability 18 - 64,Income,Client Contribution - Personal Budget - DP,REDACTED PERSONAL DATA,SP11,24/11/2023,-26.44
113582233,Streetsmart,Streetsmart,Waterside Fleet Hires,Transport Costs,Vehicle Hire / Contract,DAWSONRENTLES SWEEPERS,HD6 ,08/11/2023,"2,954.77"
113580234,Streetsmart,Streetsmart,Waterside Fleet Hires,Transport Costs,Vehicle Hire / Contract,DAWSONRENTLES SWEEPERS,HD6 ,08/11/2023,"2,976.49"
113582234,Streetsmart,Streetsmart,Waterside Fleet Hires,Transport Costs,Vehicle Hire / Contract,DAWSONRENTLES SWEEPERS,HD6 ,08/11/2023,"3,324.11"
113581234,Streetsmart,Streetsmart,Waterside Fleet Hires,Transport Costs,Vehicle Hire / Contract,DAWSONRENTLES SWEEPERS,HD6 ,08/11/2023,"2,259.53"
113581233,Streetsmart,Streetsmart,Waterside Fleet Hires,Transport Costs,Vehicle Hire / Contract,DAWSONRENTLES SWEEPERS,HD6 ,08/11/2023,"2,954.77"
114282233,Physical Support,Adults,Fessey House,Supplies and Services,Equipment,DDC DOLPHIN LIMITED,BH12,15/11/2023,434.01
113018233,Social Care,Children & Families,Placement Fostering Service,3rd Party Payments,Foster Care Basic Payments,REDACTED PERSONAL DATA,SN5 ,06/11/2023,600.00
114758233,Social Care,Children & Families,Placement Fostering Service,3rd Party Payments,Carers Skills Payments - Advanced,REDACTED PERSONAL DATA,SN5 ,20/11/2023,370.00
113018233,Social Care,Children & Families,Placement Fostering Service,3rd Party Payments,Foster Care Additional Allowance,REDACTED PERSONAL DATA,SN5 ,06/11/2023,100.00
114758233,Social Care,Children & Families,Placement Fostering Service,3rd Party Payments,Foster Care Basic Payments,REDACTED PERSONAL DATA,SN5 ,20/11/2023,600.00
114758233,Social Care,Children & Families,Placement Fostering Service,3rd Party Payments,Foster Care Additional Allowance,REDACTED PERSONAL DATA,SN5 ,20/11/2023,100.00
113018233,Social Care,Children & Families,Placement Fostering Service,3rd Party Payments,Carers Skills Payments - Advanced,REDACTED PERSONAL DATA,SN5 ,06/11/2023,370.00
113760233,Homelessness and Travellers,Housing Services,Warm Welcome Project,Supplies and Services,Food,DELTA HOTELS BY MARRIOTT SWINDON,SN3 ,10/11/2023,"2,588.33"
112405233,Homelessness and Travellers,Housing Services,Warm Welcome Project,Supplies and Services,Food,DELTA HOTELS BY MARRIOTT SWINDON,SN3 ,01/11/2023,"4,018.00"
114239256,Early Years Block,Dedicated Schools Grant (DSG),Free Nursery Education Commissioning - three & four  year olds,3rd Party Payments,Contracts - Child Care,REDACTED PERSONAL DATA,SN5 ,15/11/2023,823.20
113841233,Learning Disabilities,Adults,Learning Disability 18 - 64,3rd Party Payments,Supported Accommodation Scheme,REDACTED PERSONAL DATA,SN2 ,22/11/2023,"1,480.00"
113841233,Learning Disabilities,Adults,Learning Disability 18 - 64,3rd Party Payments,Supported Accommodation Scheme,REDACTED PERSONAL DATA,SN2 ,22/11/2023,"2,152.76"
113841233,Learning Disabilities,Adults,Learning Disability 18 - 64,3rd Party Payments,Supported Accommodation Scheme,REDACTED PERSONAL DATA,SN2 ,22/11/2023,"1,822.76"
112745234,Town Centre,"Economy, Growth and Place",HAZ Streets and spaces,Capital,Professional Fees,REDACTED PERSONAL DATA,GL20,03/11/2023,"1,500.00"
113143233,Social Care,Children & Families,Placement Adoption Service,3rd Party Payments,Adoption Allowances,REDACTED PERSONAL DATA,CF44,06/11/2023,500.34
114803235,Social Care,Children & Families,Placement Adoption Service,3rd Party Payments,Adoption Allowances,REDACTED PERSONAL DATA,CF44,20/11/2023,500.34
114447233,High Needs Block,Dedicated Schools Grant (DSG),SEN Resourcing Assessment Panel,Supplies and Services,Services,REDACTED PERSONAL DATA,SN25,15/11/2023,"1,317.92"
Corporate Card Transaction,Digital & Business Change,Digital & Business Change,IT Operations,Supplies and Services,Materials,Digicert,,17/11/2023, 747.76 
113339233,DSG Other Funding,Dedicated Schools Grant (DSG),LAC pupil premium,3rd Party Payments,Education / Training,DIRECTION FOR EDUCATION LIMITED,TA8 ,08/11/2023,576.00
114637234,DSG Other Funding,Dedicated Schools Grant (DSG),LAC pupil premium,3rd Party Payments,Education / Training,DIRECTION FOR EDUCATION LIMITED,TA8 ,17/11/2023,576.00
113355233,Public Health,Public Health,Public Health,Employees,Training,DISTANCELEARNINGCENTRE.COM,OL14,08/11/2023,895.60
113355233,Public Health,Public Health,Public Health,Employees,Training,DISTANCELEARNINGCENTRE.COM,OL14,08/11/2023,140.00
114970233,Physical Support,Adults,Physical Support 65 and over,Income,Client Contribution - Nursing,DIVA CARE LIMITED,GL7 ,22/11/2023,-268.72
114970233,Physical Support,Adults,Physical Support 65 and over,3rd Party Payments,Nursing Care,DIVA CARE LIMITED,GL7 ,22/11/2023,"3,471.08"
115124242,Social Care,Children & Families,Children's Resource and Home Finding Team,3rd Party Payments,Independent Fostering Agency Placements,DIVERSE CARE UK LTD,ME4 ,22/11/2023,"6,004.08"
115124240,Social Care,Children & Families,Children's Resource and Home Finding Team,3rd Party Payments,Independent Fostering Agency Placements,DIVERSE CARE UK LTD,ME4 ,22/11/2023,"5,810.40"
115124241,Social Care,Children & Families,Children's Resource and Home Finding Team,3rd Party Payments,Independent Fostering Agency Placements,DIVERSE CARE UK LTD,ME4 ,22/11/2023,"4,067.28"
115124243,Social Care,Children & Families,Children's Resource and Home Finding Team,3rd Party Payments,Independent Fostering Agency Placements,DIVERSE CARE UK LTD,ME4 ,22/11/2023,"5,810.40"
113600236,Traded Services,"Education, Inclusion and Skills",Plas Pencelli Outdoor Education Centre,Supplies and Services,Equipment,DMM ---------------------------,LL55,08/11/2023,514.92
115062233,Social Care,Children & Families,Legal Fees,Supplies and Services,Fees,DNA WORLDWIDE GROUP,BA11,22/11/2023,434.00
115063233,Social Care,Children & Families,Legal Fees,Supplies and Services,Fees,DNA WORLDWIDE GROUP,BA11,22/11/2023,434.00
114856233,Social Care,Children & Families,Legal Fees,Supplies and Services,Fees,DNA WORLDWIDE GROUP,BA11,22/11/2023,797.00
115203489,Physical Support,Adults,Physical Support 18 - 64,Transfer Payments,Personal Budget - Direct Payments - Domiciliary Care,REDACTED PERSONAL DATA,SP11,24/11/2023,"2,767.60"
115203489,Physical Support,Adults,Physical Support 18 - 64,Transfer Payments,Personal Budget - Direct Payments - Domiciliary Care,REDACTED PERSONAL DATA,SP11,24/11/2023,102.72
115203489,Physical Support,Adults,Physical Support 18 - 64,Transfer Payments,Personal Budget - Direct Payments - Domiciliary Care,REDACTED PERSONAL DATA,SP11,24/11/2023,16.40
115203489,Physical Support,Adults,Physical Support 18 - 64,Transfer Payments,Personal Budget - Direct Payments - Domiciliary Care,REDACTED PERSONAL DATA,SP11,24/11/2023,"1,623.68"
112999233,Social Care,Children & Families,Placement Fostering Service,3rd Party Payments,Carers Skills Payments - Advanced,REDACTED PERSONAL DATA,SN3 ,06/11/2023,370.00
114736233,Social Care,Children & Families,Placement Fostering Service,3rd Party Payments,Foster Care Basic Payments,REDACTED PERSONAL DATA,SN3 ,20/11/2023,600.00
112999233,Social Care,Children & Families,Placement Fostering Service,3rd Party Payments,Foster Care Basic Payments,REDACTED PERSONAL DATA,SN3 ,06/11/2023,600.00
114736233,Social Care,Children & Families,Placement Fostering Service,3rd Party Payments,Holiday Payment,REDACTED PERSONAL DATA,SN3 ,20/11/2023,300.00
114736233,Social Care,Children & Families,Placement Fostering Service,3rd Party Payments,Carers Skills Payments - Advanced,REDACTED PERSONAL DATA,SN3 ,20/11/2023,370.00
114764233,Social Care,Children & Families,Placement Fostering Service,3rd Party Payments,Carers Skills Payments - Core,REDACTED PERSONAL DATA,SN2 ,20/11/2023,216.00
113024233,Social Care,Children & Families,Placement Fostering Service,3rd Party Payments,Carers Skills Payments - Core,REDACTED PERSONAL DATA,SN2 ,06/11/2023,216.00
114764233,Social Care,Children & Families,Placement Fostering Service,3rd Party Payments,Foster Care Basic Payments,REDACTED PERSONAL DATA,SN2 ,20/11/2023,600.00
113024233,Social Care,Children & Families,Placement Fostering Service,3rd Party Payments,Foster Care Basic Payments,REDACTED PERSONAL DATA,SN2 ,06/11/2023,600.00
114481277,High Needs Block,Dedicated Schools Grant (DSG),SEN Resourcing Assessment Panel,3rd Party Payments,Top up funding - Academies and Free Schools Pre 16,DORCAN ACADEMY,SN3 ,15/11/2023,"5,922.00"
113366234,Mainstream Schools Extension,Skills & Attainment,Dorcan Academy PAN,Capital,Contractor Payments,DORCAN ACADEMY,SN3 ,08/11/2023,"24,757.74"
115203603,Physical Support,Adults,Physical Support 18 - 64,Transfer Payments,Personal Budget - Direct Payments - Domiciliary Care,REDACTED PERSONAL DATA,SP11,24/11/2023,586.08
115203603,Physical Support,Adults,Physical Support 18 - 64,Transfer Payments,Personal Budget - Direct Payments - Domiciliary Care,REDACTED PERSONAL DATA,SP11,24/11/2023,890.24
115203603,Physical Support,Adults,Physical Support 18 - 64,Transfer Payments,Personal Budget - Direct Payments - Domiciliary Care,REDACTED PERSONAL DATA,SP11,24/11/2023,65.60
115201369,Homelessness and Travellers,Housing Services,Private Sector Landlords,Transfer Payments,Payment of Costs,REDACTED PERSONAL DATA,SN6 ,24/11/2023,800.00
115201394,Homelessness and Travellers,Housing Services,Private Sector Landlords,Transfer Payments,Payment of Costs,REDACTED PERSONAL DATA,SN6 ,24/11/2023,800.00
114116233,Customer Strategy & Operations,"People, Culture and Organisational Resilience",Cemeteries & Crematoria,Supplies and Services,Fees,REDACTED PERSONAL DATA,SN15,13/11/2023,"2,420.00"
113334233,Disabled Children,Children & Families,DCT Daytime Short Breaks,3rd Party Payments,Respite Care,DR RABHYA DEWSHI,OX4 ,08/11/2023,"1,144.40"
115577238,Early Help,Early Intervention & Prevention,"Holiday, Activities & Food Grant",3rd Party Payments,Contracts - Child Care,DRAYCOTT SPORTS CAMP,SN25,29/11/2023,"2,394.00"
112589233,Sheltered Accomodation,Special Services,Mountbatten House,Supplies and Services,Materials,DRPK CONTRACTS LTD,BT30,03/11/2023,254.99
112589233,Sheltered Accomodation,Special Services,Mountbatten House,Supplies and Services,Materials,DRPK CONTRACTS LTD,BT30,03/11/2023,594.98
112588233,Sheltered Accomodation,Special Services,George Tweed Gardens,Supplies and Services,Materials,DRPK CONTRACTS LTD,BT30,03/11/2023,945.00
112592233,Sheltered Accomodation,Special Services,Mountbatten House,Supplies and Services,Materials,DRPK CONTRACTS LTD,BT30,03/11/2023,700.00
112592233,Sheltered Accomodation,Special Services,Mountbatten House,Supplies and Services,Materials,DRPK CONTRACTS LTD,BT30,03/11/2023,300.00
112588233,Sheltered Accomodation,Special Services,George Tweed Gardens,Supplies and Services,Materials,DRPK CONTRACTS LTD,BT30,03/11/2023,405.00
114966233,Physical Support,Adults,Physical Support 18 - 64,3rd Party Payments,Nursing Care,DRUMMOND GRANGE NURSING HOME,EH18,22/11/2023,"6,603.00"
115159233,Social Care,Children & Families,Looked After Children Service,Transport Costs,Client Costs of Taxis,DUDLEY METROPOLITAN BOROUGH COUNCIL,DY1 ,24/11/2023,"7,680.00"
113826233,Learning Disabilities,Adults,Learning Disability 18 - 64,3rd Party Payments,Supported Accommodation Scheme,REDACTED PERSONAL DATA,SN25,22/11/2023,"2,280.00"
115131234,Mental Health,Adults,Mental Health 18-64,3rd Party Payments,Supported Lodgings (Childrens)/Supported Living (Adults),DYNAMIC SUPPORT LTD,SN25,22/11/2023,"8,400.00"
115131234,Learning Disabilities,Adults,Learning Disability 65 and over,3rd Party Payments,Supported Lodgings (Childrens)/Supported Living (Adults),DYNAMIC SUPPORT LTD,SN25,22/11/2023,"3,007.76"
115131234,Physical Support,Adults,Physical Support 65 and over,3rd Party Payments,Supported Lodgings (Childrens)/Supported Living (Adults),DYNAMIC SUPPORT LTD,SN25,22/11/2023,"3,920.00"
115131234,Physical Support,Adults,Physical Support 18 - 64,3rd Party Payments,Supported Lodgings (Childrens)/Supported Living (Adults),DYNAMIC SUPPORT LTD,SN25,22/11/2023,"8,400.00"
115131234,Learning Disabilities,Adults,Learning Disability 18 - 64,Income,Client Contribution - Supported Living,DYNAMIC SUPPORT LTD,SN25,22/11/2023,-18.12
115131234,Learning Disabilities,Adults,Learning Disability 18 - 64,Income,Client Contribution - Supported Living,DYNAMIC SUPPORT LTD,SN25,22/11/2023,-121.84
115131234,Learning Disabilities,Adults,Learning Disability 18 - 64,Income,Client Contribution - Supported Living,DYNAMIC SUPPORT LTD,SN25,22/11/2023,-125.28
115131234,Learning Disabilities,Adults,Learning Disability 18 - 64,3rd Party Payments,Supported Lodgings (Childrens)/Supported Living (Adults),DYNAMIC SUPPORT LTD,SN25,22/11/2023,"5,581.80"
115131234,Learning Disabilities,Adults,Learning Disability 18 - 64,3rd Party Payments,Supported Lodgings (Childrens)/Supported Living (Adults),DYNAMIC SUPPORT LTD,SN25,22/11/2023,"3,120.00"
115131234,Learning Disabilities,Adults,Learning Disability 18 - 64,3rd Party Payments,Supported Lodgings (Childrens)/Supported Living (Adults),DYNAMIC SUPPORT LTD,SN25,22/11/2023,751.96
115131234,Learning Disabilities,Adults,Learning Disability 18 - 64,3rd Party Payments,Supported Lodgings (Childrens)/Supported Living (Adults),DYNAMIC SUPPORT LTD,SN25,22/11/2023,"2,080.00"
115131234,Learning Disabilities,Adults,Learning Disability 18 - 64,3rd Party Payments,Supported Lodgings (Childrens)/Supported Living (Adults),DYNAMIC SUPPORT LTD,SN25,22/11/2023,"1,173.32"
115131234,Learning Disabilities,Adults,Learning Disability 18 - 64,3rd Party Payments,Supported Lodgings (Childrens)/Supported Living (Adults),DYNAMIC SUPPORT LTD,SN25,22/11/2023,970.48
114523233,Learning Disabilities,Adults,Learning Disability 18 - 64,3rd Party Payments,Personal Budget - Domiciliary care,DYNAMIC SUPPORT LTD,SN25,15/11/2023,-66.88
115131234,Physical Support,Adults,Physical Support 65 and over,3rd Party Payments,Supported Lodgings (Childrens)/Supported Living (Adults),DYNAMIC SUPPORT LTD,SN25,22/11/2023,"-4,125.94"
114523233,Physical Support,Adults,Physical Support 65 and over,3rd Party Payments,Personal Budget - Domiciliary care,DYNAMIC SUPPORT LTD,SN25,15/11/2023,"4,976.64"
115131234,Physical Support,Adults,Physical Support 18 - 64,3rd Party Payments,Supported Lodgings (Childrens)/Supported Living (Adults),DYNAMIC SUPPORT LTD,SN25,22/11/2023,622.44
115131234,Learning Disabilities,Adults,Learning Disability 18 - 64,Income,Client Contribution - Supported Living,DYNAMIC SUPPORT LTD,SN25,22/11/2023,-1.84
115131234,Learning Disabilities,Adults,Learning Disability 18 - 64,Income,Client Contribution - Supported Living,DYNAMIC SUPPORT LTD,SN25,22/11/2023,-203.04
115131234,Learning Disabilities,Adults,Learning Disability 18 - 64,3rd Party Payments,Supported Lodgings (Childrens)/Supported Living (Adults),DYNAMIC SUPPORT LTD,SN25,22/11/2023,340.00
115131234,Learning Disabilities,Adults,Learning Disability 18 - 64,3rd Party Payments,Supported Lodgings (Childrens)/Supported Living (Adults),DYNAMIC SUPPORT LTD,SN25,22/11/2023,"9,303.00"
115131234,Learning Disabilities,Adults,Learning Disability 18 - 64,3rd Party Payments,Supported Lodgings (Childrens)/Supported Living (Adults),DYNAMIC SUPPORT LTD,SN25,22/11/2023,"1,760.00"
115131234,Learning Disabilities,Adults,Learning Disability 18 - 64,3rd Party Payments,Supported Lodgings (Childrens)/Supported Living (Adults),DYNAMIC SUPPORT LTD,SN25,22/11/2023,"3,520.00"
115131234,Learning Disabilities,Adults,Learning Disability 18 - 64,3rd Party Payments,Supported Lodgings (Childrens)/Supported Living (Adults),DYNAMIC SUPPORT LTD,SN25,22/11/2023,"7,680.08"
115131234,Learning Disabilities,Adults,Learning Disability 18 - 64,3rd Party Payments,Supported Lodgings (Childrens)/Supported Living (Adults),DYNAMIC SUPPORT LTD,SN25,22/11/2023,"3,007.76"
112868233,Learning Disabilities,Adults,Learning Disability 18 - 64,3rd Party Payments,Supported Lodgings (Childrens)/Supported Living (Adults),DYNAMIC SUPPORT LTD,SN25,03/11/2023,"1,697.14"
115131234,Learning Disabilities,Adults,Learning Disability 65 and over,3rd Party Payments,Supported Lodgings (Childrens)/Supported Living (Adults),DYNAMIC SUPPORT LTD,SN25,22/11/2023,"3,920.00"
111698234,Physical Support,Adults,Physical Support 65 and over,3rd Party Payments,Nursing Care,DYNAMIC SUPPORT LTD,SN25,01/11/2023,844.80
114523233,Physical Support,Adults,Physical Support 65 and over,3rd Party Payments,Personal Budget - Domiciliary care,DYNAMIC SUPPORT LTD,SN25,15/11/2023,"15,482.88"
115131234,Physical Support,Adults,Physical Support 18 - 64,3rd Party Payments,Supported Lodgings (Childrens)/Supported Living (Adults),DYNAMIC SUPPORT LTD,SN25,22/11/2023,"1,200.42"
115131234,Learning Disabilities,Adults,Learning Disability 18 - 64,Income,Client Contribution - Supported Living,DYNAMIC SUPPORT LTD,SN25,22/11/2023,-153.36
115131234,Learning Disabilities,Adults,Learning Disability 18 - 64,Income,Client Contribution - Supported Living,DYNAMIC SUPPORT LTD,SN25,22/11/2023,-86.68
115131234,Learning Disabilities,Adults,Learning Disability 18 - 64,Income,Client Contribution - Supported Living,DYNAMIC SUPPORT LTD,SN25,22/11/2023,-89.80
115131234,Learning Disabilities,Adults,Learning Disability 18 - 64,3rd Party Payments,Supported Lodgings (Childrens)/Supported Living (Adults),DYNAMIC SUPPORT LTD,SN25,22/11/2023,"1,260.00"
115131234,Learning Disabilities,Adults,Learning Disability 18 - 64,3rd Party Payments,Supported Lodgings (Childrens)/Supported Living (Adults),DYNAMIC SUPPORT LTD,SN25,22/11/2023,"6,320.00"
112827233,Learning Disabilities,Adults,Learning Disability 18 - 64,3rd Party Payments,Supported Lodgings (Childrens)/Supported Living (Adults),DYNAMIC SUPPORT LTD,SN25,03/11/2023,"2,096.34"
114523233,Learning Disabilities,Adults,Learning Disability 18 - 64,3rd Party Payments,Personal Budget - Domiciliary care,DYNAMIC SUPPORT LTD,SN25,15/11/2023,"1,474.56"
115131234,Mental Health,Adults,Mental Health 18-64,3rd Party Payments,Supported Lodgings (Childrens)/Supported Living (Adults),DYNAMIC SUPPORT LTD,SN25,22/11/2023,"2,790.92"
115131234,Learning Disabilities,Adults,Learning Disability 18 - 64,Income,Client Contribution - Supported Living,DYNAMIC SUPPORT LTD,SN25,22/11/2023,-90.24
115131234,Learning Disabilities,Adults,Learning Disability 18 - 64,Income,Client Contribution - Supported Living,DYNAMIC SUPPORT LTD,SN25,22/11/2023,-26.32
115131234,Learning Disabilities,Adults,Learning Disability 18 - 64,3rd Party Payments,Supported Lodgings (Childrens)/Supported Living (Adults),DYNAMIC SUPPORT LTD,SN25,22/11/2023,"2,400.00"
115131234,Learning Disabilities,Adults,Learning Disability 18 - 64,3rd Party Payments,Supported Lodgings (Childrens)/Supported Living (Adults),DYNAMIC SUPPORT LTD,SN25,22/11/2023,"2,640.00"
115131234,Learning Disabilities,Adults,Learning Disability 18 - 64,3rd Party Payments,Supported Lodgings (Childrens)/Supported Living (Adults),DYNAMIC SUPPORT LTD,SN25,22/11/2023,"1,503.88"
115131234,Learning Disabilities,Adults,Learning Disability 18 - 64,3rd Party Payments,Supported Lodgings (Childrens)/Supported Living (Adults),DYNAMIC SUPPORT LTD,SN25,22/11/2023,"4,240.00"
115131234,Learning Disabilities,Adults,Learning Disability 18 - 64,3rd Party Payments,Supported Lodgings (Childrens)/Supported Living (Adults),DYNAMIC SUPPORT LTD,SN25,22/11/2023,"7,200.00"
115131234,Learning Disabilities,Adults,Learning Disability 18 - 64,3rd Party Payments,Supported Lodgings (Childrens)/Supported Living (Adults),DYNAMIC SUPPORT LTD,SN25,22/11/2023,480.00
115131234,Learning Disabilities,Adults,Learning Disability 18 - 64,3rd Party Payments,Supported Lodgings (Childrens)/Supported Living (Adults),DYNAMIC SUPPORT LTD,SN25,22/11/2023,299.20
115131234,Learning Disabilities,Adults,Learning Disability 18 - 64,3rd Party Payments,Supported Lodgings (Childrens)/Supported Living (Adults),DYNAMIC SUPPORT LTD,SN25,22/11/2023,718.08
115131234,Learning Disabilities,Adults,Learning Disability 18 - 64,3rd Party Payments,Supported Lodgings (Childrens)/Supported Living (Adults),DYNAMIC SUPPORT LTD,SN25,22/11/2023,138.08
115131234,Learning Disabilities,Adults,Learning Disability 18 - 64,3rd Party Payments,Supported Lodgings (Childrens)/Supported Living (Adults),DYNAMIC SUPPORT LTD,SN25,22/11/2023,"7,280.00"
114523233,Learning Disabilities,Adults,Learning Disability 18 - 64,3rd Party Payments,Personal Budget - Domiciliary care,DYNAMIC SUPPORT LTD,SN25,15/11/2023,506.88
115131234,Mental Health,Adults,Mental Health 18-64,3rd Party Payments,Supported Lodgings (Childrens)/Supported Living (Adults),DYNAMIC SUPPORT LTD,SN25,22/11/2023,"9,303.00"
115131234,Physical Support,Adults,Physical Support 18 - 64,3rd Party Payments,Supported Lodgings (Childrens)/Supported Living (Adults),DYNAMIC SUPPORT LTD,SN25,22/11/2023,"3,007.76"
115131234,Learning Disabilities,Adults,Learning Disability 18 - 64,Income,Client Contribution - Supported Living,DYNAMIC SUPPORT LTD,SN25,22/11/2023,-33.04
115131234,Learning Disabilities,Adults,Learning Disability 18 - 64,Income,Client Contribution - Supported Living,DYNAMIC SUPPORT LTD,SN25,22/11/2023,-43.68
115131234,Learning Disabilities,Adults,Learning Disability 18 - 64,Income,Client Contribution - Supported Living,DYNAMIC SUPPORT LTD,SN25,22/11/2023,-17.28
115131234,Learning Disabilities,Adults,Learning Disability 18 - 64,3rd Party Payments,Supported Lodgings (Childrens)/Supported Living (Adults),DYNAMIC SUPPORT LTD,SN25,22/11/2023,"3,536.12"
115131234,Learning Disabilities,Adults,Learning Disability 18 - 64,3rd Party Payments,Supported Lodgings (Childrens)/Supported Living (Adults),DYNAMIC SUPPORT LTD,SN25,22/11/2023,"1,390.40"
114523233,Learning Disabilities,Adults,Learning Disability 18 - 64,3rd Party Payments,Personal Budget - Domiciliary care,DYNAMIC SUPPORT LTD,SN25,15/11/2023,552.96
114523233,Physical Support,Adults,Physical Support 18 - 64,3rd Party Payments,Personal Budget - Domiciliary care,DYNAMIC SUPPORT LTD,SN25,15/11/2023,-14.24
115131234,Learning Disabilities,Adults,Learning Disability 18 - 64,Income,Client Contribution - Supported Living,DYNAMIC SUPPORT LTD,SN25,22/11/2023,-7.20
115131234,Learning Disabilities,Adults,Learning Disability 18 - 64,Income,Client Contribution - Supported Living,DYNAMIC SUPPORT LTD,SN25,22/11/2023,-11.60
115131234,Learning Disabilities,Adults,Learning Disability 18 - 64,3rd Party Payments,Supported Lodgings (Childrens)/Supported Living (Adults),DYNAMIC SUPPORT LTD,SN25,22/11/2023,"3,600.00"
115131234,Learning Disabilities,Adults,Learning Disability 18 - 64,3rd Party Payments,Supported Lodgings (Childrens)/Supported Living (Adults),DYNAMIC SUPPORT LTD,SN25,22/11/2023,"6,202.00"
115131234,Learning Disabilities,Adults,Learning Disability 18 - 64,3rd Party Payments,Supported Lodgings (Childrens)/Supported Living (Adults),DYNAMIC SUPPORT LTD,SN25,22/11/2023,"5,280.00"
115131234,Learning Disabilities,Adults,Learning Disability 18 - 64,3rd Party Payments,Supported Lodgings (Childrens)/Supported Living (Adults),DYNAMIC SUPPORT LTD,SN25,22/11/2023,"3,440.00"
115131234,Learning Disabilities,Adults,Learning Disability 18 - 64,3rd Party Payments,Supported Lodgings (Childrens)/Supported Living (Adults),DYNAMIC SUPPORT LTD,SN25,22/11/2023,"2,800.00"
